Workbook

Sheet Реестр
A1: 📆 | B1: =TODAY() -> 2023-10-18
B3: Дата получения запроса от менеджера КО на изготовление чертежа, эскиза, образца | E3: Шифр | F3: Дата оплаты/запуска матрицы | G3: Кол-во к заказу | H3: Поступило по факту | I3: Ст-ть матрицы от производителя, € | J3: Ст-ть матрицы от производителя, руб | K3: № запроса | L3: № предвар.ответа конструкт.отдела | M3: Серия | N3: Год | O3: Месяц | P3: День | Q3: Длина ОТ, м | R3: Длина ДО, м | S3: Среднемес.объем заказа (т) в месяц | T3: Вид покрытия | U3: Марка сплава | V3: Состояние поставки | W3: Назначение профиля | X3: Нормативная документация | Y3: Заказчик | AA3: Дублер | AB3: Комплектация | AD3: Планируемая дата прихода матрицы (временная) | AE3: Планируемая дата прихода матрицы | AF3: Примечание | AG3: Менеджер | AH3: Блок менеджеров коммерческого отдела | AI3: Ст-ть матрицы для клиента, руб | AJ3: Теор.вес п/м, кг | AK3: Усилие пресса | AL3: Диаметр втулки конт-ра, мм | AM3: Габаритные размеры инстр-та, мм | AN3: Категория сложности матрицы | AO3: Необходимость болстера/вставки | AP3: Кол-во каналов | AQ3: Статус чертежа профиля | AR3: Заполняется при отказе | AS3: Примечание | AT3: Статус чертежа матрицы | AU3: Заполняется при отказе | AV3: Примечание | AW3: Блок нач-ка констр.отдела | AY3: Стойкость (ресурс), тн | AZ3: Изготовитель
A5: Идентификатор заказа | B5: Менеджер по зак.матрич.инстр-та | C5: Целевая дата успешного вх.контроля матрицы | D5: Окончательный статус выполнения | E5: Нач-к констр.отдела | F5: Менеджер комм.отдела | G5: Менеджер по зак.матрич.инстр-та | H5: Менеджер по зак.матрич.инстр-та | I5: Менеджер по зак.матрич.инстр-та | J5: Менеджер по зак.матрич.инстр-та | K5: Менеджер комм.отдела | L5: Менеджер комм.отдела | M5: Менеджер комм.отдела | N5: Менеджер комм.отдела | O5: Менеджер комм.отдела | P5: Менеджер комм.отдела | Q5: Менеджер комм.отдела | R5: Менеджер комм.отдела | S5: Менеджер комм.отдела | T5: Менеджер комм.отдела | U5: Менеджер комм.отдела | V5: Менеджер комм.отдела | W5: Менеджер комм.отдела | X5: Менеджер комм.отдела | Y5: Менеджер комм.отдела | AA5: Менеджер по зак.матрич.инстр-та | AB5: Менеджер по зак.матрич.инстр-та | AD5: Менеджер по зак.матрич.инстр-та | AE5: Менеджер по зак.матрич.инстр-та | AF5: Менеджер по зак.матрич.инстр-та | AG5: Менеджер по зак.матрич.инстр-та | AH5: Статус | AI5: Нач-к констр.отдела | AJ5: Нач-к констр.отдела | AK5: Нач-к констр.отдела | AL5: Нач-к констр.отдела | AM5: Нач-к констр.отдела | AN5: Нач-к констр.отдела | AO5: Нач-к констр.отдела | AP5: Нач-к констр.отдела | AQ5: Нач-к констр.отдела | AR5: Нач-к констр.отдела | AS5: Нач-к констр.отдела | AT5: Нач-к констр.отдела | AU5: Нач-к констр.отдела | AV5: Нач-к констр.отдела | AW5: Статус | AX5: Статус | AY5: Нач-к участка корр-ки | AZ5: Нач-к участка корр-ки
A6: =IF(AH6="все заполнено",CONCATENATE(TEXT(B6,"ДД.ММ.ГГ"),"/",AG6,"/",K6),"") -> 02.10.23/Тимофеева/1 | B6: 2023-10-02 | C6: =Реестр!#REF! ->  | D6: =IF(Реестр!#REF!,IF(Реестр!#REF!<=Реестр!#REF!,"выполнено ","выполнено не в срок "),IF(Реестр!#REF!<$B$1>Реестр!#REF!,"просрочено ","срок не истек")) ->  | E6: =[3]Лист2!$X415 -> 0655-63 | J6: =I6*VLOOKUP(O6,'Пл.курс ЕВРО'!$A$2:$B$10,2,1) -> 0 | K6: 1 | L6: 270923-10 | M6: 0655 | N6: =TEXT(B6,"ГГГ") -> 2023 | O6: =TEXT(B6,"ММММММММ") -> Октябрь | P6: =DAY(B6) -> 2 | Q6: 6 | R6: 6 | S6: 0.5 | T6: неокр. | U6: АД31 | V6: Т1 | W6: 12.05. Авиастроение | X6: 22233-2018 | Y6: Тонар | AD6: =#REF!+#REF!+B6 ->  | AE6: =INDEX(#REF!,MATCH(1E+100,#REF!,1)) ->  | AG6: Тимофеева | AH6: =IF(COUNTA(K6,Q6:Y6,AG6)=0,"все пусто",IF(COUNTA(K6,Q6:Y6,AG6)=11,"все заполнено","что-то заполнено")) -> все заполнено | AI6: =[3]Лист2!$AF415 -> 225000 | AJ6: =[3]Лист2!$AA415 -> 4.539 | AK6: =[3]Лист2!$AB415 -> 4000 | AL6: =[3]Лист2!$AC415 -> 240 | AM6: =[3]Лист2!$AD415 -> 230х200 | AN6: =[3]Лист2!$AE415 -> B | AO6: =[3]Лист2!$Y415 -> Нет | AP6: =[3]Лист2!$Z415 -> 1 | AQ6: =[3]Лист2!$AH415 -> Согласовано Мещеряковым | AR6: =[3]Лист2!$AI415 -> 0 | AS6: =[3]Лист2!$AJ415 -> 00:00:00 | AT6: =[3]Лист2!$AS415 -> Согласовано Мещеряковым | AU6: =[3]Лист2!$AT415 -> 00:00:00 | AV6: =[3]Лист2!$AU415 -> 00:00:00 | AW6: =[3]Лист2!$AK415 -> все заполнено | AX6: =[3]Лист2!$AW415 -> все заполнено | AY6: =[4]Лист2!$AE415 -> 90 | AZ6: =[4]Лист2!$AF415 -> FRX
A7: 02.10.23/Тимофеева/2 | B7: 2023-10-02 | C7: =Реестр!#REF! ->  | D7: =IF(Реестр!#REF!,IF(Реестр!#REF!<=Реестр!#REF!,"выполнено ","выполнено не в срок "),IF(Реестр!#REF!<$B$1>Реестр!#REF!,"просрочено ","срок не истек")) ->  | E7: =[3]Лист2!$X416 -> 0661-03 | J7: =I7*VLOOKUP(O7,'Пл.курс ЕВРО'!$A$2:$B$10,2,1) -> 0 | K7: 2 | N7: 2023 | O7: Октябрь | P7: 2 | Q7: 2.5 | R7: 2.5 | S7: 17 | T7: анод защит. | U7: АД35 | V7: Т6 | W7: 15.01. ВПК | X7: 22233-2018 | Y7: Техпромимпорт | AD7: =#REF!+#REF!+B7 ->  | AE7: =INDEX(#REF!,MATCH(1E+100,#REF!,1)) ->  | AG7: Тимофеева | AH7: все заполнено | AI7: =[3]Лист2!$AF416 -> 755000 | AJ7: =[3]Лист2!$AA416 -> 4.338 | AK7: =[3]Лист2!$AB416 -> 4000 | AL7: =[3]Лист2!$AC416 -> 240 | AM7: =[3]Лист2!$AD416 -> 450х260 | AN7: =[3]Лист2!$AE416 -> D | AO7: =[3]Лист2!$Y416 -> Нет | AP7: =[3]Лист2!$Z416 -> 1 | AQ7: =[3]Лист2!$AH416 -> Согласовано Мещеряковым | AR7: =[3]Лист2!$AI416 -> 0 | AS7: =[3]Лист2!$AJ416 -> 00:00:00 | AT7: =[3]Лист2!$AS416 -> Согласовано Мещеряковым | AU7: =[3]Лист2!$AT416 -> 00:00:00 | AV7: =[3]Лист2!$AU416 -> 00:00:00 | AW7: =[3]Лист2!$AK416 -> все заполнено | AX7: =[3]Лист2!$AW416 -> все заполнено | AY7: =[4]Лист2!$AE416 -> 65 | AZ7: =[4]Лист2!$AF416 -> IM
A8: 02.10.23/Фролова/1 | B8: 2023-10-02 | C8: =Реестр!#REF! ->  | D8: =IF(Реестр!#REF!,IF(Реестр!#REF!<=Реестр!#REF!,"выполнено ","выполнено не в срок "),IF(Реестр!#REF!<$B$1>Реестр!#REF!,"просрочено ","срок не истек")) ->  | E8: =[3]Лист2!$X417 -> 1321-04 | F8: 2023-10-16 | J8: =I8*VLOOKUP(O8,'Пл.курс ЕВРО'!$A$2:$B$10,2,1) -> 0 | K8: 1 | L8: 300823-12 | N8: 2023 | O8: Октябрь | P8: 2 | Q8: 5.3 | R8: 5.4 | S8: 3 | T8: анод декор | U8: 6060 | V8: Т66 | W8: 05.02. Двери межкомнатные; окна\двери | X8: 22233-2018 | Y8: ФДТ | AD8: =#REF!+#REF!+B8 ->  | AE8: =INDEX(#REF!,MATCH(1E+100,#REF!,1)) ->  | AG8: Фролова | AH8: все заполнено | AI8: =[3]Лист2!$AF417 -> 85000 | AJ8: =[3]Лист2!$AA417 -> 0.854 | AK8: =[3]Лист2!$AB417 -> 1000 | AL8: =[3]Лист2!$AC417 -> 130 | AM8: =[3]Лист2!$AD417 -> 180х140 | AN8: =[3]Лист2!$AE417 -> C | AO8: =[3]Лист2!$Y417 -> Нет | AP8: =[3]Лист2!$Z417 -> 1 | AQ8: =[3]Лист2!$AH417 -> Согласовано Мещеряковым | AR8: =[3]Лист2!$AI417 -> 0 | AS8: =[3]Лист2!$AJ417 -> 00:00:00 | AT8: =[3]Лист2!$AS417 -> Согласовано Мещеряковым | AU8: =[3]Лист2!$AT417 -> 00:00:00 | AV8: =[3]Лист2!$AU417 -> 00:00:00 | AW8: =[3]Лист2!$AK417 -> все заполнено | AX8: =[3]Лист2!$AW417 -> все заполнено | AY8: =[4]Лист2!$AE417 -> 25 | AZ8: =[4]Лист2!$AF417 -> ПрИн
A9: 02.10.23/Акафьева/1 | B9: 2023-10-02 | C9: =Реестр!#REF! ->  | D9: =IF(Реестр!#REF!,IF(Реестр!#REF!<=Реестр!#REF!,"выполнено ","выполнено не в срок "),IF(Реестр!#REF!<$B$1>Реестр!#REF!,"просрочено ","срок не истек")) ->  | E9: =[3]Лист2!$X418 -> 2606-24 | F9: 2023-10-13 | G9: 1 | I9: 1095 | J9: =I9*VLOOKUP(O9,'Пл.курс ЕВРО'!$A$2:$B$10,2,1) -> 126888.6 | K9: 1 | L9: 280923-21 | N9: 2023 | O9: Октябрь | P9: 2 | Q9: 3 | R9: 6 | S9: 5 | T9: под анод. | U9: 6063 | V9: Т6 | W9: 11.02. Радиаторы охлаждения | X9: 22233-2018 | Y9: Авангард | AD9: =#REF!+#REF!+B9 ->  | AE9: =INDEX(#REF!,MATCH(1E+100,#REF!,1)) ->  | AG9: Акафьева | AH9: все заполнено | AI9: =[3]Лист2!$AF418 -> 110000 | AJ9: =[3]Лист2!$AA418 -> 1.48 | AK9: =[3]Лист2!$AB418 -> 1500 | AL9: =[3]Лист2!$AC418 -> 160 | AM9: =[3]Лист2!$AD418 -> 200х140 | AN9: =[3]Лист2!$AE418 -> C | AO9: =[3]Лист2!$Y418 -> Нет | AP9: =[3]Лист2!$Z418 -> 1 | AQ9: =[3]Лист2!$AH418 -> Согласовано Мещеряковым | AR9: =[3]Лист2!$AI418 -> 0 | AS9: =[3]Лист2!$AJ418 -> 00:00:00 | AT9: =[3]Лист2!$AS418 -> Согласовано Мещеряковым | AU9: =[3]Лист2!$AT418 -> 00:00:00 | AV9: =[3]Лист2!$AU418 -> 00:00:00 | AW9: =[3]Лист2!$AK418 -> все заполнено | AX9: =[3]Лист2!$AW418 -> все заполнено | AY9: =[4]Лист2!$AE418 -> 25 | AZ9: =[4]Лист2!$AF418 -> COMES
A10: =IF(AH10="все заполнено",CONCATENATE(TEXT(B10,"ДД.ММ.ГГ"),"/",AG10,"/",K10),"") -> 02.10.23/Зражевский/1 | B10: 2023-10-02 | C10: =Реестр!#REF! ->  | D10: =IF(Реестр!#REF!,IF(Реестр!#REF!<=Реестр!#REF!,"выполнено ","выполнено не в срок "),IF(Реестр!#REF!<$B$1>Реестр!#REF!,"просрочено ","срок не истек")) ->  | E10: =[3]Лист2!$X419 -> 1314-01 | J10: =I10*VLOOKUP(O10,'Пл.курс ЕВРО'!$A$2:$B$10,2,1) -> 0 | K10: 1 | M10: 1314-01 | N10: 2023 | O10: Октябрь | P10: 2 | Q10: 3 | R10: 6 | S10: 4 | T10: неокр. | U10: 6060 | V10: Т6 | W10: 03.07. Навесные вентилируемые фасады | X10: 22233-2018 | Y10: Ава-Трейд (Вектор Фасад) | AD10: =#REF!+#REF!+B10 ->  | AE10: =INDEX(#REF!,MATCH(1E+100,#REF!,1)) ->  | AG10: Зражевский | AH10: =IF(COUNTA(K10,Q10:Y10,AG10)=0,"все пусто",IF(COUNTA(K10,Q10:Y10,AG10)=11,"все заполнено","что-то заполнено")) -> все заполнено | AI10: =[3]Лист2!$AF419 -> 695000 | AJ10: =[3]Лист2!$AA419 -> 2.702 | AK10: =[3]Лист2!$AB419 -> 4000 | AL10: =[3]Лист2!$AC419 -> 240 | AM10: =[3]Лист2!$AD419 -> 450х260 | AN10: =[3]Лист2!$AE419 -> C | AO10: =[3]Лист2!$Y419 -> Нет | AP10: =[3]Лист2!$Z419 -> 1 | AQ10: =[3]Лист2!$AH419 -> Согласовано Мещеряковым | AR10: =[3]Лист2!$AI419 -> 0 | AS10: =[3]Лист2!$AJ419 -> 00:00:00 | AT10: =[3]Лист2!$AS419 -> Согласовано Мещеряковым | AU10: =[3]Лист2!$AT419 -> 00:00:00 | AV10: =[3]Лист2!$AU419 -> 00:00:00 | AW10: =[3]Лист2!$AK419 -> все заполнено | AX10: =[3]Лист2!$AW419 -> все заполнено | AY10: =[4]Лист2!$AE419 -> 70 | AZ10: =[4]Лист2!$AF419 -> ПрИн
A11: 03.10.23/Акафьева/1 | B11: 2023-10-03 | C11: =Реестр!#REF! ->  | D11: =IF(Реестр!#REF!,IF(Реестр!#REF!<=Реестр!#REF!,"выполнено ","выполнено не в срок "),IF(Реестр!#REF!<$B$1>Реестр!#REF!,"просрочено ","срок не истек")) ->  | E11: =[3]Лист2!$X420 -> 0269-44 | J11: =I11*VLOOKUP(O11,'Пл.курс ЕВРО'!$A$2:$B$10,2,1) -> 0 | K11: 1 | L11: 220823-1 | M11: 0269 | N11: 2023 | O11: Октябрь | P11: 3 | Q11: 3 | R11: 6 | S11: 0.5 | T11: неокр. | U11: АД31 | V11: Т1 | W11: 01.01. Общестроительный профиль | X11: 22233-2018 | Y11: Сталко | AD11: =#REF!+#REF!+B11 ->  | AE11: =INDEX(#REF!,MATCH(1E+100,#REF!,1)) ->  | AG11: Акафьева | AH11: все заполнено | AI11: =[3]Лист2!$AF420 -> 75000 | AJ11: =[3]Лист2!$AA420 -> 0.44 | AK11: =[3]Лист2!$AB420 -> 1000 | AL11: =[3]Лист2!$AC420 -> 130 | AM11: =[3]Лист2!$AD420 -> 180х140 | AN11: =[3]Лист2!$AE420 -> B | AO11: =[3]Лист2!$Y420 -> Нет | AP11: =[3]Лист2!$Z420 -> 1 | AQ11: =[3]Лист2!$AH420 -> Согласовано Мещеряковым | AR11: =[3]Лист2!$AI420 -> Невозможно изготовить | AS11: =[3]Лист2!$AJ420 -> Не достаточно размеров | AT11: =[3]Лист2!$AS420 -> Согласовано Мещеряковым | AU11: =[3]Лист2!$AT420 -> 00:00:00 | AV11: =[3]Лист2!$AU420 -> 00:00:00 | AW11: =[3]Лист2!$AK420 -> все заполнено | AX11: =[3]Лист2!$AW420 -> все заполнено | AY11: =[4]Лист2!$AE420 -> 30 | AZ11: =[4]Лист2!$AF420 -> FRX
A12: 03.10.23/Акафьева/2 | B12: 2023-10-03 | C12: =Реестр!#REF! ->  | D12: =IF(Реестр!#REF!,IF(Реестр!#REF!<=Реестр!#REF!,"выполнено ","выполнено не в срок "),IF(Реестр!#REF!<$B$1>Реестр!#REF!,"просрочено ","срок не истек")) ->  | E12: =[3]Лист2!$X421 -> 0269-45 | J12: =I12*VLOOKUP(O12,'Пл.курс ЕВРО'!$A$2:$B$10,2,1) -> 0 | K12: 2 | L12: 220823-2 | M12: 0269 | N12: 2023 | O12: Октябрь | P12: 3 | Q12: 3 | R12: 6 | S12: 0.5 | T12: неокр. | U12: АД31 | V12: Т1 | W12: 01.01. Общестроительный профиль | X12: 22233-2018 | Y12: Сталко | AD12: =#REF!+#REF!+B12 ->  | AE12: =INDEX(#REF!,MATCH(1E+100,#REF!,1)) ->  | AG12: Акафьева | AH12: все заполнено | AI12: =[3]Лист2!$AF421 -> 100000 | AJ12: =[3]Лист2!$AA421 -> 0.215 | AK12: =[3]Лист2!$AB421 -> 1000 | AL12: =[3]Лист2!$AC421 -> 130 | AM12: =[3]Лист2!$AD421 -> 180х140 | AN12: =[3]Лист2!$AE421 -> C | AO12: =[3]Лист2!$Y421 -> Нет | AP12: =[3]Лист2!$Z421 -> 2 | AQ12: =[3]Лист2!$AH421 -> Согласовано Мещеряковым | AR12: =[3]Лист2!$AI421 -> Невозможно изготовить | AS12: =[3]Лист2!$AJ421 -> Не достаточно размеров | AT12: =[3]Лист2!$AS421 -> Согласовано Мещеряковым | AU12: =[3]Лист2!$AT421 -> 00:00:00 | AV12: =[3]Лист2!$AU421 -> 00:00:00 | AW12: =[3]Лист2!$AK421 -> все заполнено | AX12: =[3]Лист2!$AW421 -> все заполнено | AY12: =[4]Лист2!$AE421 -> 15 | AZ12: =[4]Лист2!$AF421 -> EXP
A13: 03.10.23/Мельников/1 | B13: 2023-10-03 | C13: =Реестр!#REF! ->  | D13: =IF(Реестр!#REF!,IF(Реестр!#REF!<=Реестр!#REF!,"выполнено ","выполнено не в срок "),IF(Реестр!#REF!<$B$1>Реестр!#REF!,"просрочено ","срок не истек")) ->  | E13: =[3]Лист2!$X422 -> 1113-38 | J13: =I13*VLOOKUP(O13,'Пл.курс ЕВРО'!$A$2:$B$10,2,1) -> 0 | K13: 1 | L13: 031023-6 | M13: 1113 | N13: 2023 | O13: Октябрь | P13: 3 | Q13: 3 | R13: 6 | S13: 1 | T13: окраш. | U13: АД31 | V13: Т1 | W13: 09.01. Шкафы-купе | X13: 22233-2018 | Y13: Марти Глас | AD13: =#REF!+#REF!+B13 ->  | AE13: =INDEX(#REF!,MATCH(1E+100,#REF!,1)) ->  | AG13: Мельников | AH13: все заполнено | AI13: =[3]Лист2!$AF422 -> 90000 | AJ13: =[3]Лист2!$AA422 -> 0.287 | AK13: =[3]Лист2!$AB422 -> 1000 | AL13: =[3]Лист2!$AC422 -> 130 | AM13: =[3]Лист2!$AD422 -> 180х140 | AN13: =[3]Лист2!$AE422 -> B | AO13: =[3]Лист2!$Y422 -> Нет | AP13: =[3]Лист2!$Z422 -> 2 | AQ13: =[3]Лист2!$AH422 -> Согласовано Мещеряковым | AR13: =[3]Лист2!$AI422 -> 0 | AS13: =[3]Лист2!$AJ422 -> 00:00:00 | AT13: =[3]Лист2!$AS422 -> Согласовано Мещеряковым | AU13: =[3]Лист2!$AT422 -> 00:00:00 | AV13: =[3]Лист2!$AU422 -> 00:00:00 | AW13: =[3]Лист2!$AK422 -> все заполнено | AX13: =[3]Лист2!$AW422 -> все заполнено | AY13: =[4]Лист2!$AE422 -> 30 | AZ13: =[4]Лист2!$AF422 -> COMES
A14: 03.10.23/Калинина/1 | B14: 2023-10-03 | C14: =Реестр!#REF! ->  | D14: =IF(Реестр!#REF!,IF(Реестр!#REF!<=Реестр!#REF!,"выполнено ","выполнено не в срок "),IF(Реестр!#REF!<$B$1>Реестр!#REF!,"просрочено ","срок не истек")) ->  | E14: =[3]Лист2!$X423 -> 1184-09 | J14: =I14*VLOOKUP(O14,'Пл.курс ЕВРО'!$A$2:$B$10,2,1) -> 0 | K14: 1 | L14: 021023-1 | M14: 1184 | N14: 2023 | O14: Октябрь | P14: 3 | Q14: 1 | R14: 6 | S14: 1.6 | T14: неокр. | U14: АД31 | V14: Т1 | W14: 03.02. Системы вентиляции | X14: 22233-2018 | Y14: Завод ВКО | AD14: =#REF!+#REF!+B14 ->  | AE14: =INDEX(#REF!,MATCH(1E+100,#REF!,1)) ->  | AG14: Калинина | AH14: все заполнено | AI14: =[3]Лист2!$AF423 -> 160000 | AJ14: =[3]Лист2!$AA423 -> 0.925 | AK14: =[3]Лист2!$AB423 -> 1500 | AL14: =[3]Лист2!$AC423 -> 160 | AM14: =[3]Лист2!$AD423 -> 200х140 | AN14: =[3]Лист2!$AE423 -> B | AO14: =[3]Лист2!$Y423 -> Да | AP14: =[3]Лист2!$Z423 -> 1 | AQ14: =[3]Лист2!$AH423 -> Согласовано Мещеряковым | AR14: =[3]Лист2!$AI423 -> 0 | AS14: =[3]Лист2!$AJ423 -> 00:00:00 | AT14: =[3]Лист2!$AS423 -> Согласовано Мещеряковым | AU14: =[3]Лист2!$AT423 -> 00:00:00 | AV14: =[3]Лист2!$AU423 -> 00:00:00 | AW14: =[3]Лист2!$AK423 -> все заполнено | AX14: =[3]Лист2!$AW423 -> все заполнено | AY14: =[4]Лист2!$AE423 -> 49 | AZ14: =[4]Лист2!$AF423 -> COMES
A15: 04.10.23/Голубев/1 | B15: 2023-10-04 | C15: =Реестр!#REF! ->  | D15: =IF(Реестр!#REF!,IF(Реестр!#REF!<=Реестр!#REF!,"выполнено ","выполнено не в срок "),IF(Реестр!#REF!<$B$1>Реестр!#REF!,"просрочено ","срок не истек")) ->  | E15: =[3]Лист2!$X424 -> 1322-01 | J15: =I15*VLOOKUP(O15,'Пл.курс ЕВРО'!$A$2:$B$10,2,1) -> 0 | K15: 1 | L15: 140923-4 | M15: новая | N15: 2023 | O15: Октябрь | P15: 4 | Q15: 6 | R15: 6 | S15: 5 | T15: окраш. | U15: АД31 | V15: Т1 | W15: 03.07. Навесные вентилируемые фасады | X15: 22233-2018 | Y15: Квалитет | AD15: =#REF!+#REF!+B15 ->  | AE15: =INDEX(#REF!,MATCH(1E+100,#REF!,1)) ->  | AG15: Голубев | AH15: все заполнено | AI15: =[3]Лист2!$AF424 -> 95000 | AJ15: =[3]Лист2!$AA424 -> 0.17 | AK15: =[3]Лист2!$AB424 -> 1000 | AL15: =[3]Лист2!$AC424 -> 130 | AM15: =[3]Лист2!$AD424 -> 200х140 | AN15: =[3]Лист2!$AE424 -> C | AO15: =[3]Лист2!$Y424 -> Нет | AP15: =[3]Лист2!$Z424 -> 3 | AQ15: =[3]Лист2!$AH424 -> Согласовано Мещеряковым | AR15: =[3]Лист2!$AI424 -> 0 | AS15: =[3]Лист2!$AJ424 -> 00:00:00 | AT15: =[3]Лист2!$AS424 -> Согласовано Мещеряковым | AU15: =[3]Лист2!$AT424 -> 00:00:00 | AV15: =[3]Лист2!$AU424 -> 00:00:00 | AW15: =[3]Лист2!$AK424 -> все заполнено | AX15: =[3]Лист2!$AW424 -> все заполнено | AY15: =[4]Лист2!$AE424 -> 25 | AZ15: =[4]Лист2!$AF424 -> FRX
A16: 05.10.23/Калинина/1 | B16: 2023-10-05 | C16: =Реестр!#REF! ->  | D16: =IF(Реестр!#REF!,IF(Реестр!#REF!<=Реестр!#REF!,"выполнено ","выполнено не в срок "),IF(Реестр!#REF!<$B$1>Реестр!#REF!,"просрочено ","срок не истек")) ->  | E16: =[3]Лист2!$X425 -> 1026-15 | J16: =I16*VLOOKUP(O16,'Пл.курс ЕВРО'!$A$2:$B$10,2,1) -> 0 | K16: 1 | L16: 200923-8-13 | M16: 1026 | N16: =TEXT(B16,"ГГГ") -> 2023 | O16: =TEXT(B16,"ММММММММ") -> Октябрь | P16: =DAY(B16) -> 5 | Q16: 3 | R16: 6 | S16: 2 | T16: анод декор | U16: 6063 | V16: Т6 | W16: 05.02. Двери межкомнатные; окна\двери | X16: 22233-2018 | Y16: ИП Галактионов А.А. | AD16: =#REF!+#REF!+B16 ->  | AE16: =INDEX(#REF!,MATCH(1E+100,#REF!,1)) ->  | AG16: Калинина | AH16: все заполнено | AI16: =[3]Лист2!$AF425 -> 85000 | AJ16: =[3]Лист2!$AA425 -> 0.95 | AK16: =[3]Лист2!$AB425 -> 1500 | AL16: =[3]Лист2!$AC425 -> 160 | AM16: =[3]Лист2!$AD425 -> 200х140 | AN16: =[3]Лист2!$AE425 -> B | AO16: =[3]Лист2!$Y425 -> Нет | AP16: =[3]Лист2!$Z425 -> 1 | AQ16: =[3]Лист2!$AH425 -> Согласовано Мещеряковым | AR16: =[3]Лист2!$AI425 -> 0 | AS16: =[3]Лист2!$AJ425 -> 00:00:00 | AT16: =[3]Лист2!$AS425 -> Согласовано Мещеряковым | AU16: =[3]Лист2!$AT425 -> 00:00:00 | AV16: =[3]Лист2!$AU425 -> 00:00:00 | AW16: =[3]Лист2!$AK425 -> все заполнено | AX16: =[3]Лист2!$AW425 -> все заполнено | AY16: =[4]Лист2!$AE425 -> 40 | AZ16: =[4]Лист2!$AF425 -> IM
A17: 05.10.23/Калинина/2 | B17: 2023-10-05 | C17: =Реестр!#REF! ->  | D17: =IF(Реестр!#REF!,IF(Реестр!#REF!<=Реестр!#REF!,"выполнено ","выполнено не в срок "),IF(Реестр!#REF!<$B$1>Реестр!#REF!,"просрочено ","срок не истек")) ->  | E17: =[3]Лист2!$X426 -> 1026-16 | J17: =I17*VLOOKUP(O17,'Пл.курс ЕВРО'!$A$2:$B$10,2,1) -> 0 | K17: 2 | L17: 200923-8-13 | M17: 1026 | N17: 2023 | O17: Октябрь | P17: 5 | Q17: 3 | R17: 6 | S17: 2 | T17: анод декор | U17: 6063 | V17: Т6 | W17: 05.02. Двери межкомнатные; окна\двери | X17: 22233-2018 | Y17: ИП Галактионов А.А. | AD17: =#REF!+#REF!+B17 ->  | AE17: =INDEX(#REF!,MATCH(1E+100,#REF!,1)) ->  | AG17: Калинина | AH17: =IF(COUNTA(K17,Q17:Y17,AG17)=0,"все пусто",IF(COUNTA(K17,Q17:Y17,AG17)=11,"все заполнено","что-то заполнено")) -> все заполнено | AI17: =[3]Лист2!$AF426 -> 230000 | AJ17: =[3]Лист2!$AA426 -> 1.416 | AK17: =[3]Лист2!$AB426 -> 1500 | AL17: =[3]Лист2!$AC426 -> 160 | AM17: =[3]Лист2!$AD426 -> 230х140 | AN17: =[3]Лист2!$AE426 -> C | AO17: =[3]Лист2!$Y426 -> Да | AP17: =[3]Лист2!$Z426 -> 1 | AQ17: =[3]Лист2!$AH426 -> Согласовано Мещеряковым | AR17: =[3]Лист2!$AI426 -> 0 | AS17: =[3]Лист2!$AJ426 -> 00:00:00 | AT17: =[3]Лист2!$AS426 -> Согласовано Мещеряковым | AU17: =[3]Лист2!$AT426 -> 00:00:00 | AV17: =[3]Лист2!$AU426 -> 00:00:00 | AW17: =[3]Лист2!$AK426 -> все заполнено | AX17: =[3]Лист2!$AW426 -> все заполнено | AY17: =[4]Лист2!$AE426 -> 35 | AZ17: =[4]Лист2!$AF426 -> FRX
A18: 05.10.23/Калинина/3 | B18: 2023-10-05 | C18: =Реестр!#REF! ->  | D18: =IF(Реестр!#REF!,IF(Реестр!#REF!<=Реестр!#REF!,"выполнено ","выполнено не в срок "),IF(Реестр!#REF!<$B$1>Реестр!#REF!,"просрочено ","срок не истек")) ->  | E18: =[3]Лист2!$X427 -> 1026-17 | J18: =I18*VLOOKUP(O18,'Пл.курс ЕВРО'!$A$2:$B$10,2,1) -> 0 | K18: 3 | L18: 200923-8-13 | M18: 1026 | N18: =TEXT(B18,"ГГГ") -> 2023 | O18: =TEXT(B18,"ММММММММ") -> Октябрь | P18: =DAY(B18) -> 5 | Q18: 3 | R18: 6 | S18: 2 | T18: анод декор | U18: 6063 | V18: Т6 | W18: 05.02. Двери межкомнатные; окна\двери | X18: 22233-2018 | Y18: ИП Галактионов А.А. | AD18: =#REF!+#REF!+B18 ->  | AE18: =INDEX(#REF!,MATCH(1E+100,#REF!,1)) ->  | AG18: Калинина | AH18: =IF(COUNTA(K18,Q18:Y18,AG18)=0,"все пусто",IF(COUNTA(K18,Q18:Y18,AG18)=11,"все заполнено","что-то заполнено")) -> все заполнено | AI18: =[3]Лист2!$AF427 -> 115000 | AJ18: =[3]Лист2!$AA427 -> 0.853 | AK18: =[3]Лист2!$AB427 -> 1500 | AL18: =[3]Лист2!$AC427 -> 160 | AM18: =[3]Лист2!$AD427 -> 200х140 | AN18: =[3]Лист2!$AE427 -> C | AO18: =[3]Лист2!$Y427 -> Нет | AP18: =[3]Лист2!$Z427 -> 1 | AQ18: =[3]Лист2!$AH427 -> Согласовано Мещеряковым | AR18: =[3]Лист2!$AI427 -> 0 | AS18: =[3]Лист2!$AJ427 -> 00:00:00 | AT18: =[3]Лист2!$AS427 -> Согласовано Мещеряковым | AU18: =[3]Лист2!$AT427 -> 00:00:00 | AV18: =[3]Лист2!$AU427 -> 00:00:00 | AW18: =[3]Лист2!$AK427 -> все заполнено | AX18: =[3]Лист2!$AW427 -> все заполнено | AY18: =[4]Лист2!$AE427 -> 35 | AZ18: =[4]Лист2!$AF427 -> ПрИн
A19: 05.10.23/Калинина/4 | B19: 2023-10-05 | C19: =Реестр!#REF! ->  | D19: =IF(Реестр!#REF!,IF(Реестр!#REF!<=Реестр!#REF!,"выполнено ","выполнено не в срок "),IF(Реестр!#REF!<$B$1>Реестр!#REF!,"просрочено ","срок не истек")) ->  | E19: =[3]Лист2!$X428 -> 1026-18 | J19: =I19*VLOOKUP(O19,'Пл.курс ЕВРО'!$A$2:$B$10,2,1) -> 0 | K19: 4 | L19: 200923-8-13 | M19: 1026 | N19: 2023 | O19: Октябрь | P19: 5 | Q19: 3 | R19: 6 | S19: 2 | T19: анод декор | U19: 6063 | V19: Т6 | W19: 05.02. Двери межкомнатные; окна\двери | X19: 22233-2018 | Y19: ИП Галактионов А.А. | AD19: =#REF!+#REF!+B19 ->  | AE19: =INDEX(#REF!,MATCH(1E+100,#REF!,1)) ->  | AG19: Калинина | AH19: все заполнено | AI19: =[3]Лист2!$AF428 -> 150000 | AJ19: =[3]Лист2!$AA428 -> 0.936 | AK19: =[3]Лист2!$AB428 -> 1500 | AL19: =[3]Лист2!$AC428 -> 160 | AM19: =[3]Лист2!$AD428 -> 230х140 | AN19: =[3]Лист2!$AE428 -> C | AO19: =[3]Лист2!$Y428 -> Нет | AP19: =[3]Лист2!$Z428 -> 1 | AQ19: =[3]Лист2!$AH428 -> Согласовано Мещеряковым | AR19: =[3]Лист2!$AI428 -> 0 | AS19: =[3]Лист2!$AJ428 -> 00:00:00 | AT19: =[3]Лист2!$AS428 -> Согласовано Мещеряковым | AU19: =[3]Лист2!$AT428 -> 00:00:00 | AV19: =[3]Лист2!$AU428 -> 00:00:00 | AW19: =[3]Лист2!$AK428 -> все заполнено | AX19: =[3]Лист2!$AW428 -> все заполнено | AY19: =[4]Лист2!$AE428 -> 30 | AZ19: =[4]Лист2!$AF428 -> FRX
A20: 05.10.23/Калинина/5 | B20: 2023-10-05 | C20: =Реестр!#REF! ->  | D20: =IF(Реестр!#REF!,IF(Реестр!#REF!<=Реестр!#REF!,"выполнено ","выполнено не в срок "),IF(Реестр!#REF!<$B$1>Реестр!#REF!,"просрочено ","срок не истек")) ->  | E20: =[3]Лист2!$X429 -> 1026-19 | J20: =I20*VLOOKUP(O20,'Пл.курс ЕВРО'!$A$2:$B$10,2,1) -> 0 | K20: 5 | L20: 200923-8-13 | M20: 1026 | N20: 2023 | O20: Октябрь | P20: 5 | Q20: 3 | R20: 6 | S20: 2 | T20: анод декор | U20: 6063 | V20: Т6 | W20: 05.02. Двери межкомнатные; окна\двери | X20: 22233-2018 | Y20: ИП Галактионов А.А. | AD20: =#REF!+#REF!+B20 ->  | AE20: =INDEX(#REF!,MATCH(1E+100,#REF!,1)) ->  | AG20: Калинина | AH20: все заполнено | AI20: =[3]Лист2!$AF429 -> 115000 | AJ20: =[3]Лист2!$AA429 -> 1.285 | AK20: =[3]Лист2!$AB429 -> 1500 | AL20: =[3]Лист2!$AC429 -> 160 | AM20: =[3]Лист2!$AD429 -> 200х140 | AN20: =[3]Лист2!$AE429 -> C | AO20: =[3]Лист2!$Y429 -> Нет | AP20: =[3]Лист2!$Z429 -> 1 | AQ20: =[3]Лист2!$AH429 -> Согласовано Мещеряковым | AR20: =[3]Лист2!$AI429 -> 0 | AS20: =[3]Лист2!$AJ429 -> 00:00:00 | AT20: =[3]Лист2!$AS429 -> Согласовано Мещеряковым | AU20: =[3]Лист2!$AT429 -> 00:00:00 | AV20: =[3]Лист2!$AU429 -> 00:00:00 | AW20: =[3]Лист2!$AK429 -> все заполнено | AX20: =[3]Лист2!$AW429 -> все заполнено | AY20: =[4]Лист2!$AE429 -> 35 | AZ20: =[4]Лист2!$AF429 -> IM
A21: 05.10.23/Калинина/6 | B21: 2023-10-05 | C21: =Реестр!#REF! ->  | D21: =IF(Реестр!#REF!,IF(Реестр!#REF!<=Реестр!#REF!,"выполнено ","выполнено не в срок "),IF(Реестр!#REF!<$B$1>Реестр!#REF!,"просрочено ","срок не истек")) ->  | E21: =[3]Лист2!$X430 -> 1026-20 | J21: =I21*VLOOKUP(O21,'Пл.курс ЕВРО'!$A$2:$B$10,2,1) -> 0 | K21: 6 | L21: 200923-8-13 | M21: 1026 | N21: 2023 | O21: Октябрь | P21: 5 | Q21: 3 | R21: 6 | S21: 2 | T21: анод декор | U21: 6063 | V21: Т6 | W21: 05.02. Двери межкомнатные; окна\двери | X21: 22233-2018 | Y21: ИП Галактионов А.А. | AD21: =#REF!+#REF!+B21 ->  | AE21: =INDEX(#REF!,MATCH(1E+100,#REF!,1)) ->  | AG21: Калинина | AH21: все заполнено | AI21: =[3]Лист2!$AF430 -> 80000 | AJ21: =[3]Лист2!$AA430 -> 0.278 | AK21: =[3]Лист2!$AB430 -> 1000 | AL21: =[3]Лист2!$AC430 -> 130 | AM21: =[3]Лист2!$AD430 -> 180х140 | AN21: =[3]Лист2!$AE430 -> B | AO21: =[3]Лист2!$Y430 -> Нет | AP21: =[3]Лист2!$Z430 -> 2 | AQ21: =[3]Лист2!$AH430 -> Согласовано Мещеряковым | AR21: =[3]Лист2!$AI430 -> 0 | AS21: =[3]Лист2!$AJ430 -> 00:00:00 | AT21: =[3]Лист2!$AS430 -> Согласовано Мещеряковым | AU21: =[3]Лист2!$AT430 -> 00:00:00 | AV21: =[3]Лист2!$AU430 -> 00:00:00 | AW21: =[3]Лист2!$AK430 -> все заполнено | AX21: =[3]Лист2!$AW430 -> все заполнено | AY21: =[4]Лист2!$AE430 -> 35 | AZ21: =[4]Лист2!$AF430 -> IM
A22: 06.10.23/Четверткова/1 | B22: 2023-10-06 | C22: =Реестр!#REF! ->  | D22: =IF(Реестр!#REF!,IF(Реестр!#REF!<=Реестр!#REF!,"выполнено ","выполнено не в срок "),IF(Реестр!#REF!<$B$1>Реестр!#REF!,"просрочено ","срок не истек")) ->  | E22: =[3]Лист2!$X431 -> 3630-58 | F22: 2023-10-11 | G22: 1 | I22: 680 | J22: =I22*VLOOKUP(O22,'Пл.курс ЕВРО'!$A$2:$B$10,2,1) -> 78798.4 | K22: 1 | L22: 210923-13 | N22: 2023 | O22: Октябрь | P22: 6 | Q22: 3 | R22: 6 | S22: 1 | T22: под анод. | U22: 6082 | V22: Т6 | W22: 10.03. Прочее для машиностроения и промышленности (в т.ч.нефтехим) | X22: 22233-2018 | Y22: Флагман | AD22: =#REF!+#REF!+B22 ->  | AE22: =INDEX(#REF!,MATCH(1E+100,#REF!,1)) ->  | AG22: Четверткова | AH22: все заполнено | AI22: =[3]Лист2!$AF431 -> 190000 | AJ22: =[3]Лист2!$AA431 -> 0.991 | AK22: =[3]Лист2!$AB431 -> 4000 | AL22: =[3]Лист2!$AC431 -> 240 | AM22: =[3]Лист2!$AD431 -> 230х200 | AN22: =[3]Лист2!$AE431 -> B | AO22: =[3]Лист2!$Y431 -> Нет | AP22: =[3]Лист2!$Z431 -> 2 | AQ22: =[3]Лист2!$AH431 -> Согласовано Мещеряковым | AR22: =[3]Лист2!$AI431 -> 0 | AS22: =[3]Лист2!$AJ431 -> 00:00:00 | AT22: =[3]Лист2!$AS431 -> Согласовано Мещеряковым | AU22: =[3]Лист2!$AT431 -> 00:00:00 | AV22: =[3]Лист2!$AU431 -> 00:00:00 | AW22: =[3]Лист2!$AK431 -> все заполнено | AX22: =[3]Лист2!$AW431 -> все заполнено | AY22: =[4]Лист2!$AE431 -> 80 | AZ22: =[4]Лист2!$AF431 -> FRX
A23: 06.10.23/Четверткова/2 | B23: 2023-10-06 | C23: =Реестр!#REF! ->  | D23: =IF(Реестр!#REF!,IF(Реестр!#REF!<=Реестр!#REF!,"выполнено ","выполнено не в срок "),IF(Реестр!#REF!<$B$1>Реестр!#REF!,"просрочено ","срок не истек")) ->  | E23: =[3]Лист2!$X432 -> 3630-59 | F23: 2023-10-11 | G23: 1 | I23: 650 | J23: =I23*VLOOKUP(O23,'Пл.курс ЕВРО'!$A$2:$B$10,2,1) -> 75322 | K23: 2 | L23: 210923-14 | N23: 2023 | O23: Октябрь | P23: 6 | Q23: 3 | R23: 6 | S23: 1 | T23: под анод. | U23: 6082 | V23: Т6 | W23: 10.03. Прочее для машиностроения и промышленности (в т.ч.нефтехим) | X23: 22233-2018 | Y23: Флагман | AD23: =#REF!+#REF!+B23 ->  | AE23: =INDEX(#REF!,MATCH(1E+100,#REF!,1)) ->  | AG23: Четверткова | AH23: все заполнено | AI23: =[3]Лист2!$AF432 -> 190000 | AJ23: =[3]Лист2!$AA432 -> 0.846 | AK23: =[3]Лист2!$AB432 -> 4000 | AL23: =[3]Лист2!$AC432 -> 240 | AM23: =[3]Лист2!$AD432 -> 230х200 | AN23: =[3]Лист2!$AE432 -> B | AO23: =[3]Лист2!$Y432 -> Нет | AP23: =[3]Лист2!$Z432 -> 2 | AQ23: =[3]Лист2!$AH432 -> Согласовано Мещеряковым | AR23: =[3]Лист2!$AI432 -> 0 | AS23: =[3]Лист2!$AJ432 -> 00:00:00 | AT23: =[3]Лист2!$AS432 -> Согласовано Мещеряковым | AU23: =[3]Лист2!$AT432 -> 00:00:00 | AV23: =[3]Лист2!$AU432 -> 00:00:00 | AW23: =[3]Лист2!$AK432 -> все заполнено | AX23: =[3]Лист2!$AW432 -> все заполнено | AY23: =[4]Лист2!$AE432 -> 80 | AZ23: =[4]Лист2!$AF432 -> IM
A24: =[3]Анкета!$A433 -> 09.10.23/Акафьева/1 | B24: =[3]Анкета!$B433 -> 2023-10-09 | C24: =Реестр!#REF! ->  | D24: =IF(Реестр!#REF!,IF(Реестр!#REF!<=Реестр!#REF!,"выполнено ","выполнено не в срок "),IF(Реестр!#REF!<$B$1>Реестр!#REF!,"просрочено ","срок не истек")) ->  | E24: =[3]Лист2!$X433 -> 1806-64 | F24: 2023-10-06 | G24: 1 | I24: 1800 | J24: =I24*VLOOKUP(O24,'Пл.курс ЕВРО'!$A$2:$B$10,2,1) -> 208584 | K24: =[3]Анкета!$K433 -> 1 | L24: =[3]Анкета!$L433 -> 010623-1-5 | M24: =[3]Анкета!$M433 -> 1806 | N24: 2023 | O24: Октябрь | P24: 9 | Q24: =[3]Анкета!$Q433 -> 6 | R24: =[3]Анкета!$R433 -> 6.5 | S24: =[3]Анкета!$S433 -> 1 | T24: =[3]Анкета!$T433 -> окраш. | U24: =[3]Анкета!$U433 -> АД31 | V24: =[3]Анкета!$V433 -> Т1 | W24: =[3]Анкета!$W433 -> 03.01. Светопрозрачные системы (в т.ч.фасады) | X24: =[3]Анкета!$X433 -> 22233-2018 | Y24: =[3]Анкета!$Y433 -> Авангард | AD24: =#REF!+#REF!+B24 ->  | AE24: =INDEX(#REF!,MATCH(1E+100,#REF!,1)) ->  | AF24: =[3]Анкета!$AF433 -> 0 | AG24: =[3]Анкета!$AG433 -> Акафьева | AH24: =[3]Анкета!$AH433 -> все заполнено | AI24: =[3]Лист2!$AF433 -> 195000 | AJ24: =[3]Лист2!$AA433 -> 4.333 | AK24: =[3]Лист2!$AB433 -> 4000 | AL24: =[3]Лист2!$AC433 -> 240 | AM24: =[3]Лист2!$AD433 -> 230х200 | AN24: =[3]Лист2!$AE433 -> C | AO24: =[3]Лист2!$Y433 -> Нет | AP24: =[3]Лист2!$Z433 -> 1 | AQ24: =[3]Лист2!$AH433 -> Согласовано Мещеряковым | AR24: =[3]Лист2!$AI433 -> 0 | AS24: =[3]Лист2!$AJ433 -> 00:00:00 | AT24: =[3]Лист2!$AS433 -> Согласовано Мещеряковым | AU24: =[3]Лист2!$AT433 -> 00:00:00 | AV24: =[3]Лист2!$AU433 -> 00:00:00 | AW24: =[3]Лист2!$AK433 -> все заполнено | AX24: =[3]Лист2!$AW433 -> все заполнено | AY24: =[4]Лист2!$AE433 -> 55 | AZ24: =[4]Лист2!$AF433 -> ПрИн
A25: =[3]Анкета!$A434 -> 09.10.23/Акафьева/2 | B25: =[3]Анкета!$B434 -> 2023-10-09 | C25: =Реестр!#REF! ->  | D25: =IF(Реестр!#REF!,IF(Реестр!#REF!<=Реестр!#REF!,"выполнено ","выполнено не в срок "),IF(Реестр!#REF!<$B$1>Реестр!#REF!,"просрочено ","срок не истек")) ->  | E25: =[3]Лист2!$X434 -> 1806-65 | F25: 2023-10-06 | G25: 1 | I25: 1195 | J25: =I25*VLOOKUP(O25,'Пл.курс ЕВРО'!$A$2:$B$10,2,1) -> 138476.6 | K25: =[3]Анкета!$K434 -> 2 | L25: =[3]Анкета!$L434 -> 010623-1-5 | M25: =[3]Анкета!$M434 -> 1806 | N25: 2023 | O25: Октябрь | P25: 9 | Q25: =[3]Анкета!$Q434 -> 6 | R25: =[3]Анкета!$R434 -> 6.5 | S25: =[3]Анкета!$S434 -> 1 | T25: =[3]Анкета!$T434 -> окраш. | U25: =[3]Анкета!$U434 -> АД31 | V25: =[3]Анкета!$V434 -> Т1 | W25: =[3]Анкета!$W434 -> 03.01. Светопрозрачные системы (в т.ч.фасады) | X25: =[3]Анкета!$X434 -> 22233-2018 | Y25: =[3]Анкета!$Y434 -> Авангард | AD25: =#REF!+#REF!+B25 ->  | AE25: =INDEX(#REF!,MATCH(1E+100,#REF!,1)) ->  | AF25: =[3]Анкета!$AF434 -> 0 | AG25: =[3]Анкета!$AG434 -> Акафьева | AH25: =[3]Анкета!$AH434 -> все заполнено | AI25: =[3]Лист2!$AF434 -> 270000 | AJ25: =[3]Лист2!$AA434 -> 2.4 | AK25: =[3]Лист2!$AB434 -> 4000 | AL25: =[3]Лист2!$AC434 -> 240 | AM25: =[3]Лист2!$AD434 -> 280х200 | AN25: =[3]Лист2!$AE434 -> B | AO25: =[3]Лист2!$Y434 -> Нет | AP25: =[3]Лист2!$Z434 -> 1 | AQ25: =[3]Лист2!$AH434 -> Согласовано Мещеряковым | AR25: =[3]Лист2!$AI434 -> 0 | AS25: =[3]Лист2!$AJ434 -> 00:00:00 | AT25: =[3]Лист2!$AS434 -> Согласовано Мещеряковым | AU25: =[3]Лист2!$AT434 -> 00:00:00 | AV25: =[3]Лист2!$AU434 -> 00:00:00 | AW25: =[3]Лист2!$AK434 -> все заполнено | AX25: =[3]Лист2!$AW434 -> все заполнено | AY25: =[4]Лист2!$AE434 -> 80 | AZ25: =[4]Лист2!$AF434 -> FRX
A26: =[3]Анкета!$A435 -> 09.10.23/Акафьева/3 | B26: =[3]Анкета!$B435 -> 2023-10-09 | C26: =Реестр!#REF! ->  | D26: =IF(Реестр!#REF!,IF(Реестр!#REF!<=Реестр!#REF!,"выполнено ","выполнено не в срок "),IF(Реестр!#REF!<$B$1>Реестр!#REF!,"просрочено ","срок не истек")) ->  | E26: =[3]Лист2!$X435 -> 1806-66 | F26: 2023-10-06 | G26: 1 | I26: 3312 | J26: =I26*VLOOKUP(O26,'Пл.курс ЕВРО'!$A$2:$B$10,2,1) -> 383794.56 | K26: =[3]Анкета!$K435 -> 3 | L26: =[3]Анкета!$L435 -> 010623-1-5 | M26: =[3]Анкета!$M435 -> 1806 | N26: 2023 | O26: Октябрь | P26: 9 | Q26: =[3]Анкета!$Q435 -> 6 | R26: =[3]Анкета!$R435 -> 6.5 | S26: =[3]Анкета!$S435 -> 1 | T26: =[3]Анкета!$T435 -> окраш. | U26: =[3]Анкета!$U435 -> АД31 | V26: =[3]Анкета!$V435 -> Т1 | W26: =[3]Анкета!$W435 -> 03.01. Светопрозрачные системы (в т.ч.фасады) | X26: =[3]Анкета!$X435 -> 22233-2018 | Y26: =[3]Анкета!$Y435 -> Авангард | AD26: =#REF!+#REF!+B26 ->  | AE26: =INDEX(#REF!,MATCH(1E+100,#REF!,1)) ->  | AF26: =[3]Анкета!$AF435 -> 0 | AG26: =[3]Анкета!$AG435 -> Акафьева | AH26: =[3]Анкета!$AH435 -> все заполнено | AI26: =[3]Лист2!$AF435 -> 515000 | AJ26: =[3]Лист2!$AA435 -> 7.226 | AK26: =[3]Лист2!$AB435 -> 4000 | AL26: =[3]Лист2!$AC435 -> 240 | AM26: =[3]Лист2!$AD435 -> 380х200 | AN26: =[3]Лист2!$AE435 -> D | AO26: =[3]Лист2!$Y435 -> Да | AP26: =[3]Лист2!$Z435 -> 1 | AQ26: =[3]Лист2!$AH435 -> Согласовано Мещеряковым | AR26: =[3]Лист2!$AI435 -> 0 | AS26: =[3]Лист2!$AJ435 -> 00:00:00 | AT26: =[3]Лист2!$AS435 -> Согласовано Мещеряковым | AU26: =[3]Лист2!$AT435 -> 00:00:00 | AV26: =[3]Лист2!$AU435 -> 00:00:00 | AW26: =[3]Лист2!$AK435 -> все заполнено | AX26: =[3]Лист2!$AW435 -> все заполнено | AY26: =[4]Лист2!$AE435 -> 60 | AZ26: =[4]Лист2!$AF435 -> ПрИн
A27: =[3]Анкета!$A436 -> 09.10.23/Акафьева/4 | B27: =[3]Анкета!$B436 -> 2023-10-09 | C27: =Реестр!#REF! ->  | D27: =IF(Реестр!#REF!,IF(Реестр!#REF!<=Реестр!#REF!,"выполнено ","выполнено не в срок "),IF(Реестр!#REF!<$B$1>Реестр!#REF!,"просрочено ","срок не истек")) ->  | E27: =[3]Лист2!$X436 -> 1806-67 | F27: 2023-10-06 | G27: 1 | I27: 3808.8 | J27: =I27*VLOOKUP(O27,'Пл.курс ЕВРО'!$A$2:$B$10,2,1) -> 441363.744 | K27: =[3]Анкета!$K436 -> 4 | L27: =[3]Анкета!$L436 -> 010623-1-5 | M27: =[3]Анкета!$M436 -> 1806 | N27: 2023 | O27: Октябрь | P27: 9 | Q27: =[3]Анкета!$Q436 -> 6 | R27: =[3]Анкета!$R436 -> 6.5 | S27: =[3]Анкета!$S436 -> 1 | T27: =[3]Анкета!$T436 -> окраш. | U27: =[3]Анкета!$U436 -> АД31 | V27: =[3]Анкета!$V436 -> Т1 | W27: =[3]Анкета!$W436 -> 03.01. Светопрозрачные системы (в т.ч.фасады) | X27: =[3]Анкета!$X436 -> 22233-2018 | Y27: =[3]Анкета!$Y436 -> Авангард | AD27: =#REF!+#REF!+B27 ->  | AE27: =INDEX(#REF!,MATCH(1E+100,#REF!,1)) ->  | AF27: =[3]Анкета!$AF436 -> 0 | AG27: =[3]Анкета!$AG436 -> Акафьева | AH27: =[3]Анкета!$AH436 -> все заполнено | AI27: =[3]Лист2!$AF436 -> 515000 | AJ27: =[3]Лист2!$AA436 -> 9.146 | AK27: =[3]Лист2!$AB436 -> 4000 | AL27: =[3]Лист2!$AC436 -> 240 | AM27: =[3]Лист2!$AD436 -> 380х200 | AN27: =[3]Лист2!$AE436 -> D | AO27: =[3]Лист2!$Y436 -> Да | AP27: =[3]Лист2!$Z436 -> 1 | AQ27: =[3]Лист2!$AH436 -> Согласовано Мещеряковым | AR27: =[3]Лист2!$AI436 -> 0 | AS27: =[3]Лист2!$AJ436 -> 00:00:00 | AT27: =[3]Лист2!$AS436 -> Согласовано Мещеряковым | AU27: =[3]Лист2!$AT436 -> 00:00:00 | AV27: =[3]Лист2!$AU436 -> 00:00:00 | AW27: =[3]Лист2!$AK436 -> все заполнено | AX27: =[3]Лист2!$AW436 -> все заполнено | AY27: =[4]Лист2!$AE436 -> 55 | AZ27: =[4]Лист2!$AF436 -> ПрИн
A28: =[3]Анкета!$A437 -> 09.10.23/Акафьева/5 | B28: =[3]Анкета!$B437 -> 2023-10-09 | C28: =Реестр!#REF! ->  | D28: =IF(Реестр!#REF!,IF(Реестр!#REF!<=Реестр!#REF!,"выполнено ","выполнено не в срок "),IF(Реестр!#REF!<$B$1>Реестр!#REF!,"просрочено ","срок не истек")) ->  | E28: =[3]Лист2!$X437 -> 1806-68 | F28: 2023-10-09 | G28: 1 | I28: 940 | J28: =I28*VLOOKUP(O28,'Пл.курс ЕВРО'!$A$2:$B$10,2,1) -> 108927.2 | K28: =[3]Анкета!$K437 -> 5 | L28: =[3]Анкета!$L437 -> 010623-1-5 | M28: =[3]Анкета!$M437 -> 1806 | N28: 2023 | O28: Октябрь | P28: 9 | Q28: =[3]Анкета!$Q437 -> 6 | R28: =[3]Анкета!$R437 -> 6.5 | S28: =[3]Анкета!$S437 -> 1 | T28: =[3]Анкета!$T437 -> окраш. | U28: =[3]Анкета!$U437 -> АД31 | V28: =[3]Анкета!$V437 -> Т1 | W28: =[3]Анкета!$W437 -> 03.01. Светопрозрачные системы (в т.ч.фасады) | X28: =[3]Анкета!$X437 -> 22233-2018 | Y28: =[3]Анкета!$Y437 -> Авангард | AD28: =#REF!+#REF!+B28 ->  | AE28: =INDEX(#REF!,MATCH(1E+100,#REF!,1)) ->  | AF28: =[3]Анкета!$AF437 -> 0 | AG28: =[3]Анкета!$AG437 -> Акафьева | AH28: =[3]Анкета!$AH437 -> все заполнено | AI28: =[3]Лист2!$AF437 -> 195000 | AJ28: =[3]Лист2!$AA437 -> 4.447 | AK28: =[3]Лист2!$AB437 -> 4000 | AL28: =[3]Лист2!$AC437 -> 240 | AM28: =[3]Лист2!$AD437 -> 230х200 | AN28: =[3]Лист2!$AE437 -> A | AO28: =[3]Лист2!$Y437 -> Нет | AP28: =[3]Лист2!$Z437 -> 1 | AQ28: =[3]Лист2!$AH437 -> Согласовано Мещеряковым | AR28: =[3]Лист2!$AI437 -> 0 | AS28: =[3]Лист2!$AJ437 -> 00:00:00 | AT28: =[3]Лист2!$AS437 -> Согласовано Мещеряковым | AU28: =[3]Лист2!$AT437 -> 00:00:00 | AV28: =[3]Лист2!$AU437 -> 00:00:00 | AW28: =[3]Лист2!$AK437 -> все заполнено | AX28: =[3]Лист2!$AW437 -> все заполнено | AY28: =[4]Лист2!$AE437 -> 80 | AZ28: =[4]Лист2!$AF437 -> FRX
A29: =[3]Анкета!$A438 -> 09.10.23/Четверткова/1 | B29: =[3]Анкета!$B438 -> 2023-10-09 | C29: =Реестр!#REF! ->  | D29: =IF(Реестр!#REF!,IF(Реестр!#REF!<=Реестр!#REF!,"выполнено ","выполнено не в срок "),IF(Реестр!#REF!<$B$1>Реестр!#REF!,"просрочено ","срок не истек")) ->  | E29: =[3]Лист2!$X438 -> 3630-34 | F29: 2023-10-10 | G29: 1 | I29: 445 | J29: =I29*VLOOKUP(O29,'Пл.курс ЕВРО'!$A$2:$B$10,2,1) -> 51566.6 | K29: =[3]Анкета!$K438 -> 1 | L29: =[3]Анкета!$L438 -> 0 | M29: =[3]Анкета!$M438 -> 3630 | N29: 2023 | O29: Октябрь | P29: 9 | Q29: =[3]Анкета!$Q438 -> 3 | R29: =[3]Анкета!$R438 -> 6 | S29: =[3]Анкета!$S438 -> 1 | T29: =[3]Анкета!$T438 -> под анод. | U29: =[3]Анкета!$U438 -> 6060 | V29: =[3]Анкета!$V438 -> Т1 | W29: =[3]Анкета!$W438 -> 03.06. Прочее для стройки | X29: =[3]Анкета!$X438 -> 22233-2018 | Y29: =[3]Анкета!$Y438 -> Ижев зд. анод | AD29: =#REF!+#REF!+B29 ->  | AE29: =INDEX(#REF!,MATCH(1E+100,#REF!,1)) ->  | AF29: =[3]Анкета!$AF438 -> 0 | AG29: =[3]Анкета!$AG438 -> Четверткова | AH29: =[3]Анкета!$AH438 -> все заполнено | AI29: =[3]Лист2!$AF438 -> 85000 | AJ29: =[3]Лист2!$AA438 -> 0.413 | AK29: =[3]Лист2!$AB438 -> 1500 | AL29: =[3]Лист2!$AC438 -> 160 | AM29: =[3]Лист2!$AD438 -> 200х140 | AN29: =[3]Лист2!$AE438 -> B | AO29: =[3]Лист2!$Y438 -> Нет | AP29: =[3]Лист2!$Z438 -> 2 | AQ29: =[3]Лист2!$AH438 -> Согласовано Мещеряковым | AR29: =[3]Лист2!$AI438 -> 0 | AS29: =[3]Лист2!$AJ438 -> 00:00:00 | AT29: =[3]Лист2!$AS438 -> Согласовано Мещеряковым | AU29: =[3]Лист2!$AT438 -> 00:00:00 | AV29: =[3]Лист2!$AU438 -> 00:00:00 | AW29: =[3]Лист2!$AK438 -> все заполнено | AX29: =[3]Лист2!$AW438 -> все заполнено | AY29: =[4]Лист2!$AE438 -> 30 | AZ29: =[4]Лист2!$AF438 -> IM
A30: =[3]Анкета!$A439 -> 09.10.23/Тарлыкова/1 | B30: =[3]Анкета!$B439 -> 2023-10-09 | C30: =Реестр!#REF! ->  | D30: =IF(Реестр!#REF!,IF(Реестр!#REF!<=Реестр!#REF!,"выполнено ","выполнено не в срок "),IF(Реестр!#REF!<$B$1>Реестр!#REF!,"просрочено ","срок не истек")) ->  | E30: =[3]Лист2!$X439 -> 1002-26 | G30: 1 | I30: 3564 | J30: =I30*VLOOKUP(O30,'Пл.курс ЕВРО'!$A$2:$B$10,2,1) -> 412996.32 | K30: =[3]Анкета!$K439 -> 1 | L30: =[3]Анкета!$L439 -> 070923-3-4 | M30: =[3]Анкета!$M439 -> 1002 | N30: 2023 | O30: Октябрь | P30: 9 | Q30: =[3]Анкета!$Q439 -> 3 | R30: =[3]Анкета!$R439 -> 4 | S30: =[3]Анкета!$S439 -> 1 | T30: =[3]Анкета!$T439 -> анод защит. | U30: =[3]Анкета!$U439 -> АД31 | V30: =[3]Анкета!$V439 -> Т1 | W30: =[3]Анкета!$W439 -> 10.02. Приборостроение | X30: =[3]Анкета!$X439 -> 22233-2018 | Y30: =[3]Анкета!$Y439 -> Алюсит | AD30: =#REF!+#REF!+B30 ->  | AE30: =INDEX(#REF!,MATCH(1E+100,#REF!,1)) ->  | AF30: =[3]Анкета!$AF439 -> 0 | AG30: =[3]Анкета!$AG439 -> Тарлыкова | AH30: =[3]Анкета!$AH439 -> все заполнено | AI30: =[3]Лист2!$AF439 -> 870000 | AJ30: =[3]Лист2!$AA439 -> 5.452 | AK30: =[3]Лист2!$AB439 -> 4000 | AL30: =[3]Лист2!$AC439 -> 240 | AM30: =[3]Лист2!$AD439 -> 450х260 | AN30: =[3]Лист2!$AE439 -> C | AO30: =[3]Лист2!$Y439 -> Да | AP30: =[3]Лист2!$Z439 -> 1 | AQ30: =[3]Лист2!$AH439 -> Согласовано Мещеряковым | AR30: =[3]Лист2!$AI439 -> 0 | AS30: =[3]Лист2!$AJ439 -> Вставка общая для 1002-26.27 | AT30: =[3]Лист2!$AS439 -> Согласовано Мещеряковым | AU30: =[3]Лист2!$AT439 -> 00:00:00 | AV30: =[3]Лист2!$AU439 -> 00:00:00 | AW30: =[3]Лист2!$AK439 -> все заполнено | AX30: =[3]Лист2!$AW439 -> все заполнено | AY30: =[4]Лист2!$AE439 -> 70 | AZ30: =[4]Лист2!$AF439 -> COMES
A31: =[3]Анкета!$A440 -> 09.10.23/Тарлыкова/2 | B31: =[3]Анкета!$B440 -> 2023-10-09 | C31: =Реестр!#REF! ->  | D31: =IF(Реестр!#REF!,IF(Реестр!#REF!<=Реестр!#REF!,"выполнено ","выполнено не в срок "),IF(Реестр!#REF!<$B$1>Реестр!#REF!,"просрочено ","срок не истек")) ->  | E31: =[3]Лист2!$X440 -> 1002-27 | G31: 1 | I31: 3564 | J31: =I31*VLOOKUP(O31,'Пл.курс ЕВРО'!$A$2:$B$10,2,1) -> 412996.32 | K31: =[3]Анкета!$K440 -> 2 | L31: =[3]Анкета!$L440 -> 070923-3-4 | M31: =[3]Анкета!$M440 -> 1002 | N31: 2023 | O31: Октябрь | P31: 9 | Q31: =[3]Анкета!$Q440 -> 3 | R31: =[3]Анкета!$R440 -> 4 | S31: =[3]Анкета!$S440 -> 1 | T31: =[3]Анкета!$T440 -> анод защит. | U31: =[3]Анкета!$U440 -> АД31 | V31: =[3]Анкета!$V440 -> Т1 | W31: =[3]Анкета!$W440 -> 10.02. Приборостроение | X31: =[3]Анкета!$X440 -> 22233-2018 | Y31: =[3]Анкета!$Y440 -> Алюсит | AD31: =#REF!+#REF!+B31 ->  | AE31: =INDEX(#REF!,MATCH(1E+100,#REF!,1)) ->  | AF31: =[3]Анкета!$AF440 -> 0 | AG31: =[3]Анкета!$AG440 -> Тарлыкова | AH31: =[3]Анкета!$AH440 -> все заполнено | AI31: =[3]Лист2!$AF440 -> 680000 | AJ31: =[3]Лист2!$AA440 -> 6.718 | AK31: =[3]Лист2!$AB440 -> 4000 | AL31: =[3]Лист2!$AC440 -> 240 | AM31: =[3]Лист2!$AD440 -> 450х260 | AN31: =[3]Лист2!$AE440 -> C | AO31: =[3]Лист2!$Y440 -> Да | AP31: =[3]Лист2!$Z440 -> 1 | AQ31: =[3]Лист2!$AH440 -> Согласовано Мещеряковым | AR31: =[3]Лист2!$AI440 -> 0 | AS31: =[3]Лист2!$AJ440 -> 00:00:00 | AT31: =[3]Лист2!$AS440 -> Согласовано Мещеряковым | AU31: =[3]Лист2!$AT440 -> 00:00:00 | AV31: =[3]Лист2!$AU440 -> 00:00:00 | AW31: =[3]Лист2!$AK440 -> все заполнено | AX31: =[3]Лист2!$AW440 -> все заполнено | AY31: =[4]Лист2!$AE440 -> 70 | AZ31: =[4]Лист2!$AF440 -> EXP
A32: =[3]Анкета!$A441 -> 09.10.23/Акафьева/6 | B32: =[3]Анкета!$B441 -> 2023-10-09 | C32: =Реестр!#REF! ->  | D32: =IF(Реестр!#REF!,IF(Реестр!#REF!<=Реестр!#REF!,"выполнено ","выполнено не в срок "),IF(Реестр!#REF!<$B$1>Реестр!#REF!,"просрочено ","срок не истек")) ->  | E32: =[3]Лист2!$X441 -> 1640-17 | F32: 2023-10-12 | G32: 1 | I32: 525 | J32: =I32*VLOOKUP(O32,'Пл.курс ЕВРО'!$A$2:$B$10,2,1) -> 60837 | K32: =[3]Анкета!$K441 -> 6 | L32: =[3]Анкета!$L441 -> 070923-2 | M32: =[3]Анкета!$M441 -> 1640 | N32: 2023 | O32: Октябрь | P32: 9 | Q32: =[3]Анкета!$Q441 -> 6 | R32: =[3]Анкета!$R441 -> 6 | S32: =[3]Анкета!$S441 -> 0.3 | T32: =[3]Анкета!$T441 -> неокр. | U32: =[3]Анкета!$U441 -> АД31 | V32: =[3]Анкета!$V441 -> Т1 | W32: =[3]Анкета!$W441 -> 03.06.2. Фурнитура и комплектующие | X32: =[3]Анкета!$X441 -> 22233-2018 | Y32: =[3]Анкета!$Y441 -> Алрос | AD32: =#REF!+#REF!+B32 ->  | AE32: =INDEX(#REF!,MATCH(1E+100,#REF!,1)) ->  | AF32: =[3]Анкета!$AF441 -> 0 | AG32: =[3]Анкета!$AG441 -> Акафьева | AH32: =[3]Анкета!$AH441 -> все заполнено | AI32: =[3]Лист2!$AF441 -> 95000 | AJ32: =[3]Лист2!$AA441 -> 0.339 | AK32: =[3]Лист2!$AB441 -> 1000 | AL32: =[3]Лист2!$AC441 -> 130 | AM32: =[3]Лист2!$AD441 -> 180х140 | AN32: =[3]Лист2!$AE441 -> B | AO32: =[3]Лист2!$Y441 -> Нет | AP32: =[3]Лист2!$Z441 -> 2 | AQ32: =[3]Лист2!$AH441 -> Согласовано Мещеряковым | AR32: =[3]Лист2!$AI441 -> 0 | AS32: =[3]Лист2!$AJ441 -> 00:00:00 | AT32: =[3]Лист2!$AS441 -> Согласовано Мещеряковым | AU32: =[3]Лист2!$AT441 -> 00:00:00 | AV32: =[3]Лист2!$AU441 -> 00:00:00 | AW32: =[3]Лист2!$AK441 -> все заполнено | AX32: =[3]Лист2!$AW441 -> все заполнено | AY32: =[4]Лист2!$AE441 -> 40 | AZ32: =[4]Лист2!$AF441 -> FRX

Sheet фирмы (2) (hidden)
A1: Проверка | B1: Ф_Лейбл | C1: Ф_Название | D1: МенеджерОС | E1: Менеджер | F1: =INDIRECT(CELL("address")) -> 0 | H1: Отбор | P1: Ф_Лейбл | Q1: Ф_Название
A2: =IF(ISNUMBER(SEARCH(F$1,B2,1)),MAX($A$1:A1)+1,0) -> 0 | B2: ПКФ Алюминий ВПК | C2: ООО "ПКФ Алюминий ВПК" | D2: Халдина О.Н | E2: NULL | G2: 1 | H2: =VLOOKUP(G2,A:B,2,0) -> 0 | I2: пкф | O2: KALEVA | P2: 1 | Q2: 0
A3: =IF(ISNUMBER(SEARCH(F$1,B3,1)),MAX($A$1:A2)+1,0) -> 0 | B3: Стальные системы | C3: Стальные системы | D3: NULL | E3: Голубев | G3: 2 | H3: АВА дог. 208 от 11.12.2019_матрицы | I3: 25 | O3: Osif&Partners, s.r.o.Словакия | P3: 1 | Q3: 0
A4: =IF(ISNUMBER(SEARCH(F$1,B4,1)),MAX($A$1:A3)+1,0) -> 1 | B4: 0 | C4: 0 | D4: Маслова И.С | E4: NULL | G4: 3 | H4: АСТ 2020 | I4: пкф | O4: Авангард(Общий) | P4: 1 | Q4: 1
A5: =IF(ISNUMBER(SEARCH(F$1,B5,1)),MAX($A$1:A4)+1,0) -> 0 | B5: 111 | D5: Горчаков Е.М | E5: Горчаков | G5: 4 | H5: Вэлко-2000 | I5: пкф | O5: АВА-Трейд | P5: 1 | Q5: 0
A6: =IF(ISNUMBER(SEARCH(F$1,B6,1)),MAX($A$1:A5)+1,0) -> 0 | B6: 25 Микрон | C6: ООО "25 Микрон" | D6: Четверткова О. | E6: Верхомий | G6: 5 | H6: ДисплейСолюш2022 | O6: АвтоСпецКомпонент | P6: 1 | Q6: 0
A7: =IF(ISNUMBER(SEARCH(F$1,B7,1)),MAX($A$1:A6)+1,0) -> 0 | B7: ACCO | C7: ACCO | D7: NULL | E7: Голубев | G7: 6 | H7: Дока2017 | O7: Азбука Света | P7: 1 | Q7: 0
A8: =IF(ISNUMBER(SEARCH(F$1,B8,1)),MAX($A$1:A7)+1,0) -> 0 | B8: Aclima | C8: Aclima | D8: NULL | E8: Голубев | G8: 7 | H8: Зенит2019 | O8: Актор -М | P8: 1 | Q8: 0
A9: =IF(ISNUMBER(SEARCH(F$1,B9,1)),MAX($A$1:A8)+1,0) -> 0 | B9: AI-KUN KZ Казахстан | C9: AI-KUN KZ | D9: Калинина Т.С | E9: Каменев | G9: 8 | H9: КапТехноСтрой7725726402 | O9: АЛ5-ЮГ ООО | P9: 1 | Q9: 0
A10: =IF(ISNUMBER(SEARCH(F$1,B10,1)),MAX($A$1:A9)+1,0) -> 0 | B10: ALFRESCO | C10: ООО «СВЕТ2000» | D10: Горчаков Е.М | E10: Горчаков | G10: 9 | H10: Каравелла 2000 | O10: А-ЛЕД.ПРО | P10: 1 | Q10: 1
A11: =IF(ISNUMBER(SEARCH(F$1,B11,1)),MAX($A$1:A10)+1,0) -> 0 | B11: Alpica | C11: Alpica | D11: NULL | E11: Голубев | G11: 10 | H11: Крафт2021 | O11: Ал-Профи | P11: 1 | Q11: 0
A12: =IF(ISNUMBER(SEARCH(F$1,B12,1)),MAX($A$1:A11)+1,0) -> 0 | B12: Altair | C12: Altair | D12: NULL | E12: Голубев | G12: 11 | H12: КТМ-2000 | O12: Алсит | P12: 1 | Q12: 0
A13: =IF(ISNUMBER(SEARCH(F$1,B13,1)),MAX($A$1:A12)+1,0) -> 0 | B13: Ampermark | C13: Ampermark | D13: NULL | E13: Голубев | G13: 12 | H13: Минск 2019 | O13: АЛТЕКО | P13: 1 | Q13: 0
A14: =IF(ISNUMBER(SEARCH(F$1,B14,1)),MAX($A$1:A13)+1,0) -> 0 | B14: Auto VIM | C14: Auto VIM | D14: NULL | E14: Голубев | G14: 13 | H14: ООО «РемиЛинг 2000» | O14: Алюминиевый Материал | P14: 1 | Q14: 0
A15: =IF(ISNUMBER(SEARCH(F$1,B15,1)),MAX($A$1:A14)+1,0) -> 0 | B15: BEDNAREK Польша | C15: PPHU BEDNAREK | D15: Калинина Т.С | E15: Вяльшина | G15: 14 | H15: РемиЛинг 2000 | O15: Алюмстрой Санкт Петербург | P15: 1 | Q15: 0
A16: =IF(ISNUMBER(SEARCH(F$1,B16,1)),MAX($A$1:A15)+1,0) -> 0 | B16: Benkam Europe | C16: UAB Benkam Europe | D16: Калинина Т.С | E16: NULL | G16: 15 | H16: СТИ 2023 | O16: Антарэс | P16: 1 | Q16: 0
A17: =IF(ISNUMBER(SEARCH(F$1,B17,1)),MAX($A$1:A16)+1,0) -> 0 | B17: Bildex | C17: Bildex | D17: NULL | E17: Голубев | G17: 16 | H17: ТверБульв0837 | O17: Априори ПТК | P17: 1 | Q17: 0
A18: =IF(ISNUMBER(SEARCH(F$1,B18,1)),MAX($A$1:A17)+1,0) -> 0 | B18: CA Aluminum” JV LLC Узбекистан | C18: CA Aluminum” JV LLC | D18: Калинина Т.С | E18: Кузнец | G18: 17 | H18: ТЕХНО2015 | O18: Артес Дизайн | P18: 1 | Q18: 0
A19: =IF(ISNUMBER(SEARCH(F$1,B19,1)),MAX($A$1:A18)+1,0) -> 0 | B19: Carl Spaeter GmbH | C19: Carl Spaeter GmbH | D19: Калинина Т.С | E19: NULL | G19: 18 | H19: Титан_16.08.2018 | O19: АСП-Инжиниринг | P19: 1 | Q19: 0
A20: =IF(ISNUMBER(SEARCH(F$1,B20,1)),MAX($A$1:A19)+1,0) -> 0 | B20: Centaure | C20: Centaure | D20: Голубев А.С | E20: Голубев | G20: 19 | H20: Титан2015 | O20: АСТЕР-М | P20: 1 | Q20: 0
A21: =IF(ISNUMBER(SEARCH(F$1,B21,1)),MAX($A$1:A20)+1,0) -> 0 | B21: DESTINUS | C21: UAB "DESTINUS" | D21: Калинина Т.С | E21: Вяльшина | G21: 20 | H21: ФАСАД СТРОЙ 7704409716 | O21: Атлант ТД | P21: 1 | Q21: 0
A22: =IF(ISNUMBER(SEARCH(F$1,B22,1)),MAX($A$1:A21)+1,0) -> 0 | B22: Diden Grup SRL Молдова | C22: Diden Grup SRL | D22: Калинина Т.С | E22: Вяльшина | G22: 21 | H22: ФОТОТЕХ 2018 | O22: Белпрофайл Белоруссия | P22: 1 | Q22: 0
A23: =IF(ISNUMBER(SEARCH(F$1,B23,1)),MAX($A$1:A22)+1,0) -> 0 | B23: Dormax Blinds sp. z o.o.Польша | C23: Dormax Blinds sp. z o.o. | D23: Калинина Т.С | E23: Вяльшина | G23: 22 | O23: Бествинд | P23: 1 | Q23: 0
A24: =IF(ISNUMBER(SEARCH(F$1,B24,1)),MAX($A$1:A23)+1,0) -> 0 | B24: Dufter PV-Systeme GmbH | C24: Dufter PV-Systeme GmbH | D24: Калинина Т.С | E24: NULL | G24: 23 | O24: БиСиДи Уникальные Фасады | P24: 1 | Q24: 0
A25: =IF(ISNUMBER(SEARCH(F$1,B25,1)),MAX($A$1:A24)+1,0) -> 0 | B25: ELKOP, S.R.O. | C25: ELKOP, S.R.O. | D25: Калинина Т.С | E25: NULL | G25: 24 | O25: Вартон | P25: 1 | Q25: 0
A26: =IF(ISNUMBER(SEARCH(F$1,B26,1)),MAX($A$1:A25)+1,0) -> 0 | B26: ETILed | C26: ETILed | D26: NULL | E26: Голубев | G26: 25 | O26: ВЕЗА ООО | P26: 1 | Q26: 1
A27: =IF(ISNUMBER(SEARCH(F$1,B27,1)),MAX($A$1:A26)+1,0) -> 0 | B27: Forst | C27: Forst | D27: NULL | E27: Голубев | G27: 26 | O27: Вензелес | P27: 1 | Q27: 0
A28: =IF(ISNUMBER(SEARCH(F$1,B28,1)),MAX($A$1:A27)+1,0) -> 0 | B28: FROSTOR | C28: ООО «ФРОСТОР ГРУПП» | D28: Горчаков Е.М | E28: Горчаков | G28: 27 | O28: ВЕНТОПРОММАШ | P28: 1 | Q28: 0
A29: =IF(ISNUMBER(SEARCH(F$1,B29,1)),MAX($A$1:A28)+1,0) -> 0 | B29: Galaktik Cinema | C29: Galaktik Cinema | D29: NULL | E29: Голубев | G29: 28 | O29: Версаль | P29: 1 | Q29: 0
A30: =IF(ISNUMBER(SEARCH(F$1,B30,1)),MAX($A$1:A29)+1,0) -> 0 | B30: GEZE RUS | C30: GEZE RUS | D30: Верхомий И.Е | E30: Верхомий | G30: 29 | O30: ВЕРТИКАЛЬ ЮГ | P30: 1 | Q30: 0
A31: =IF(ISNUMBER(SEARCH(F$1,B31,1)),MAX($A$1:A30)+1,0) -> 0 | B31: Glass Lock | C31: ООО "Классика" | D31: Верхомий И.Е | E31: Верхомий | G31: 30 | O31: ВИВА Строй | P31: 1 | Q31: 0
A32: =IF(ISNUMBER(SEARCH(F$1,B32,1)),MAX($A$1:A31)+1,0) -> 0 | B32: GlassProf | C32: GlassProf | D32: NULL | E32: Голубев | G32: 31 | O32: ВИКО Белоруссия | P32: 1 | Q32: 0
A33: =IF(ISNUMBER(SEARCH(F$1,B33,1)),MAX($A$1:A32)+1,0) -> 0 | B33: Good Light | C33: «Гуд Лак» | D33: Горчаков Е.М | E33: Голубев | G33: 32 | O33: ВИНДЕКО | P33: 1 | Q33: 0
A34: =IF(ISNUMBER(SEARCH(F$1,B34,1)),MAX($A$1:A33)+1,0) -> 0 | B34: GS-Metall GmbH | C34: GS-Metall GmbH | D34: Калинина Т.С | E34: NULL | G34: 33 | H34: =VLOOKUP(G34,A:B,2,0) ->  | O34: ВинтекПластик | P34: 1 | Q34: 0
A35: =IF(ISNUMBER(SEARCH(F$1,B35,1)),MAX($A$1:A34)+1,0) -> 0 | B35: Hans-Erich Gemmel & CO. GmbH | C35: Hans-Erich Gemmel & CO. GmbH | D35: Калинина Т.С | E35: NULL | G35: 34 | O35: ВКС_ | P35: 1 | Q35: 0
A36: =IF(ISNUMBER(SEARCH(F$1,B36,1)),MAX($A$1:A35)+1,0) -> 0 | B36: HOSTEN SP Z O.O.Польша | C36: HOSTEN SP Z O.O. | D36: Калинина Т.С | E36: Вяльшина | G36: 35 | O36: ВМС-ГРУПП | P36: 1 | Q36: 0
A37: =IF(ISNUMBER(SEARCH(F$1,B37,1)),MAX($A$1:A36)+1,0) -> 0 | B37: HTF | C37: HTF | D37: NULL | E37: Голубев | G37: 36 | O37: Вуаля Студия Белоруссия | P37: 1 | Q37: 0
A38: =IF(ISNUMBER(SEARCH(F$1,B38,1)),MAX($A$1:A37)+1,0) -> 0 | B38: INTESSO | C38: INTESSO | D38: NULL | E38: Голубев | G38: 37 | O38: Вундеркинд | P38: 1 | Q38: 0
A39: =IF(ISNUMBER(SEARCH(F$1,B39,1)),MAX($A$1:A38)+1,0) -> 0 | B39: IntiLED | C39: ООО "Интилед" | D39: Горчаков Е.М | E39: Горчаков | G39: 38 | O39: Вэлко-2000 | P39: 1 | Q39: 0
A40: =IF(ISNUMBER(SEARCH(F$1,B40,1)),MAX($A$1:A39)+1,0) -> 0 | B40: Investconsulting Slovakia group, s.r.o. | C40: Investconsulting Slovakia group, s.r.o. | D40: Калинина Т.С | E40: Верхомий | G40: 39 | O40: ГАЛВИНГ | P40: 1 | Q40: 0
A41: =IF(ISNUMBER(SEARCH(F$1,B41,1)),MAX($A$1:A40)+1,0) -> 0 | B41: Isoterm | C41: Изотерм | D41: NULL | E41: Голубев | G41: 40 | O41: Генезис ИК | P41: 1 | Q41: 0
A42: =IF(ISNUMBER(SEARCH(F$1,B42,1)),MAX($A$1:A41)+1,0) -> 0 | B42: KALEVA | C42: Оконная мануфактура ООО | D42: Четверткова О. | E42: Четверткова | G42: 41 | O42: ГЛАСКО | P42: 1 | Q42: 0
A43: =IF(ISNUMBER(SEARCH(F$1,B43,1)),MAX($A$1:A42)+1,0) -> 0 | B43: Kitstore | C43: NULL | D43: Горчаков Е.М | E43: Горчаков | G43: 42 | O43: Гольфстрим | P43: 1 | Q43: 0
A44: =IF(ISNUMBER(SEARCH(F$1,B44,1)),MAX($A$1:A43)+1,0) -> 0 | B44: Komfovent | C44: ООО "АМАЛВА-ОКА" | D44: Горчаков Е.М | E44: Горчаков | G44: 43 | O44: Горизонт АО | P44: 1 | Q44: 1
A45: =IF(ISNUMBER(SEARCH(F$1,B45,1)),MAX($A$1:A44)+1,0) -> 0 | B45: Korf | C45: ООО «МегаПрестиж» | D45: Четверткова О. | E45: NULL | G45: 44 | O45: Горизонт ПК | P45: 1 | Q45: 0
A46: =IF(ISNUMBER(SEARCH(F$1,B46,1)),MAX($A$1:A45)+1,0) -> 0 | B46: Kupe 62 | C46: Kupe 62 | D46: Верхомий И.Е | E46: Верхомий | G46: 45 | O46: ГС-Резерв СК | P46: 1 | Q46: 0
A47: =IF(ISNUMBER(SEARCH(F$1,B47,1)),MAX($A$1:A46)+1,0) -> 0 | B47: Lagofasad | C47: Lagofasad | D47: NULL | E47: Голубев | G47: 46 | O47: ГУ ЦЕНТР | P47: 1 | Q47: 0
A48: =IF(ISNUMBER(SEARCH(F$1,B48,1)),MAX($A$1:A47)+1,0) -> 0 | B48: Langlitz Metalle GmbH | C48: Langlitz Metalle GmbH | D48: Калинина Т.С | E48: NULL | G48: 47 | O48: Д Студия | P48: 1 | Q48: 0
A49: =IF(ISNUMBER(SEARCH(F$1,B49,1)),MAX($A$1:A48)+1,0) -> 0 | B49: LBB TRADE Турция | C49: LBB TRADE MAKINE SANAYİ İTH. İHR. LTD. STI. | D49: Калинина Т.С | E49: Кузнец | G49: 48 | O49: ДЛС | P49: 1 | Q49: 0
A50: =IF(ISNUMBER(SEARCH(F$1,B50,1)),MAX($A$1:A49)+1,0) -> 0 | B50: Leburg | C50: Leburg | D50: NULL | E50: Голубев | G50: 49 | O50: ДП энд Партнерс Белоруссия | P50: 1 | Q50: 0
A51: =IF(ISNUMBER(SEARCH(F$1,B51,1)),MAX($A$1:A50)+1,0) -> 0 | B51: LEDCRAFT | C51: ООО "Ледкрафт" | D51: Горчаков Е.М | E51: Горчаков | G51: 50 | O51: Евроформат | P51: 1 | Q51: 1
A52: =IF(ISNUMBER(SEARCH(F$1,B52,1)),MAX($A$1:A51)+1,0) -> 0 | B52: LEDEL | C52: ООО "Ледел" | D52: Горчаков Е.М | E52: Горчаков | O52: Завод | P52: 1 | Q52: 1
A53: =IF(ISNUMBER(SEARCH(F$1,B53,1)),MAX($A$1:A52)+1,0) -> 0 | B53: Ledelt | C53: Ledelt | D53: NULL | E53: Голубев | O53: Завод ВКО | P53: 1 | Q53: 0
A54: =IF(ISNUMBER(SEARCH(F$1,B54,1)),MAX($A$1:A53)+1,0) -> 0 | B54: Ledoxi | C54: Ledoxi | D54: NULL | E54: NULL | O54: Зенон (верно) | P54: 1 | Q54: 0
A55: =IF(ISNUMBER(SEARCH(F$1,B55,1)),MAX($A$1:A54)+1,0) -> 0 | B55: LP TRADING s.r.o. | C55: LP TRADING s.r.o. | D55: Калинина Т.С | E55: NULL | O55: Зименкова ИП | P55: 1 | Q55: 0
A56: =IF(ISNUMBER(SEARCH(F$1,B56,1)),MAX($A$1:A55)+1,0) -> 0 | B56: Lucendi | C56: ООО "ЛЮЦЕНДИ" | D56: Горчаков Е.М | E56: Горчаков | O56: Ижев зд. анод | P56: 1 | Q56: 0
A57: =IF(ISNUMBER(SEARCH(F$1,B57,1)),MAX($A$1:A56)+1,0) -> 0 | B57: Lukoza | C57: ООО "ЛУКОЗА" | D57: Горчаков Е.М | E57: Горчаков | O57: ИЗТТ | P57: 1 | Q57: 0
A58: =IF(ISNUMBER(SEARCH(F$1,B58,1)),MAX($A$1:A57)+1,0) -> 0 | B58: Luxlift | C58: Luxlift | D58: NULL | E58: Голубев | O58: ИМПУЛЬС выс тех | P58: 1 | Q58: 0
A59: =IF(ISNUMBER(SEARCH(F$1,B59,1)),MAX($A$1:A58)+1,0) -> 0 | B59: Magnum Polska | C59: Magnum Polska | D59: Калинина Т.С | E59: Вяльшина | O59: Инициал Дизайн | P59: 1 | Q59: 0
A60: =IF(ISNUMBER(SEARCH(F$1,B60,1)),MAX($A$1:A59)+1,0) -> 0 | B60: Mekran | C60: Mekran | D60: NULL | E60: Голубев | O60: Интертрейд | P60: 1 | Q60: 0
A61: =IF(ISNUMBER(SEARCH(F$1,B61,1)),MAX($A$1:A60)+1,0) -> 0 | B61: Naveco | C61: ООО "ТТМ Центр Север" | D61: Верхомий И.Е | E61: Верхомий | O61: ИнтерьерСтиль | P61: 1 | Q61: 0
A62: =IF(ISNUMBER(SEARCH(F$1,B62,1)),MAX($A$1:A61)+1,0) -> 0 | B62: NLCO | C62: NLCO | D62: NULL | E62: Голубев | O62: Интех ТД | P62: 1 | Q62: 0
A63: =IF(ISNUMBER(SEARCH(F$1,B63,1)),MAX($A$1:A62)+1,0) -> 0 | B63: Nord FOX | C63: Nord FOX | D63: NULL | E63: Голубев | O63: ИП Бакушкин | P63: 1 | Q63: 1
A64: =IF(ISNUMBER(SEARCH(F$1,B64,1)),MAX($A$1:A63)+1,0) -> 0 | B64: Osif&Partners, s.r.o.Словакия | C64: Osif&Partners, s.r.o. | D64: Калинина Т.С | E64: УК | O64: ИП Галактионов А.А. | P64: 1 | Q64: 1
A65: =IF(ISNUMBER(SEARCH(F$1,B65,1)),MAX($A$1:A64)+1,0) -> 0 | B65: PandoraLed | C65: PandoraLed | D65: NULL | E65: Голубев | O65: ИП Домнина Е.А. | P65: 1 | Q65: 0
A66: =IF(ISNUMBER(SEARCH(F$1,B66,1)),MAX($A$1:A65)+1,0) -> 0 | B66: Primet | C66: "PRIMET" | D66: Верхомий И.Е | E66: Верхомий | O66: ИП Охотников П.Г. | P66: 1 | Q66: 0
A67: =IF(ISNUMBER(SEARCH(F$1,B67,1)),MAX($A$1:A66)+1,0) -> 0 | B67: REO LAT Польша | C67: REO LAT SIA | D67: Калинина Т.С | E67: Вяльшина | O67: ИП Разуваева | P67: 1 | Q67: 0
A68: =IF(ISNUMBER(SEARCH(F$1,B68,1)),MAX($A$1:A67)+1,0) -> 0 | B68: Rohm and Haas | C68: Rohm and Haas | D68: NULL | E68: NULL | O68: Иплана | P68: 1 | Q68: 2
A69: =IF(ISNUMBER(SEARCH(F$1,B69,1)),MAX($A$1:A68)+1,0) -> 0 | B69: Sibalux РФ | C69: "Sibalux" | D69: Верхомий И.Е | E69: Верхомий | O69: КапСтройКомпл | P69: 1 | Q69: 0
A70: =IF(ISNUMBER(SEARCH(F$1,B70,1)),MAX($A$1:A69)+1,0) -> 0 | B70: SLONECZNE MARKIZY "S.C. Suchy Las, Poland" | C70: SLONECZNE MARKIZY "S.C. Suchy Las, Poland" | D70: Калинина Т.С | E70: Вяльшина | O70: Катрис | P70: 1 | Q70: 0
A71: =IF(ISNUMBER(SEARCH(F$1,B71,1)),MAX($A$1:A70)+1,0) -> 0 | B71: Slovenka hlinikova spol. s.r.o. | C71: Slovenka hlinikova spol. s.r.o. | D71: Калинина Т.С | E71: Верхомий | O71: Комплект плюс | P71: 1 | Q71: 0
A72: =IF(ISNUMBER(SEARCH(F$1,B72,1)),MAX($A$1:A71)+1,0) -> 0 | B72: SOFT LIDER Молдавия | C72: SOFT LIDER S.R.L | D72: Калинина Т.С | E72: Калинина | O72: Королан | P72: 1 | Q72: 0
A73: =IF(ISNUMBER(SEARCH(F$1,B73,1)),MAX($A$1:A72)+1,0) -> 0 | B73: SPM | C73: SPM проведаль | D73: Верхомий И.Е | E73: Верхомий | O73: КорпСолнце | P73: 1 | Q73: 0
A74: =IF(ISNUMBER(SEARCH(F$1,B74,1)),MAX($A$1:A73)+1,0) -> 0 | B74: SV Technics | C74: SV Technics | D74: NULL | E74: Голубев | O74: Кримелте | P74: 1 | Q74: 0
A75: =IF(ISNUMBER(SEARCH(F$1,B75,1)),MAX($A$1:A74)+1,0) -> 0 | B75: TDS-LIGHT | C75: TDS-LIGHT | D75: Горчаков Е.М | E75: Горчаков | O75: ЛАБРОМЕД | P75: 1 | Q75: 0
A76: =IF(ISNUMBER(SEARCH(F$1,B76,1)),MAX($A$1:A75)+1,0) -> 0 | B76: Technolux | C76: ООО АЭТЗ "РЕКОРД" | D76: Горчаков Е.М | E76: Горчаков | O76: Лайн Про | P76: 1 | Q76: 0
A77: =IF(ISNUMBER(SEARCH(F$1,B77,1)),MAX($A$1:A76)+1,0) -> 0 | B77: test123 | C77: tester | D77: NULL | E77: NULL | O77: ЛЕГАС-ГРУПП | P77: 1 | Q77: 0
A78: =IF(ISNUMBER(SEARCH(F$1,B78,1)),MAX($A$1:A77)+1,0) -> 0 | B78: UBC grup | C78: UBC grup | D78: Верхомий И.Е | E78: Верхомий | O78: Локус | P78: 1 | Q78: 1
A79: =IF(ISNUMBER(SEARCH(F$1,B79,1)),MAX($A$1:A78)+1,0) -> 0 | B79: Varton | C79: Varton | D79: NULL | E79: Голубев | O79: Майдан Р(верно) | P79: 1 | Q79: 0
A80: =IF(ISNUMBER(SEARCH(F$1,B80,1)),MAX($A$1:A79)+1,0) -> 0 | B80: Weinmann Aach AG | C80: Weinmann Aach AG | D80: Калинина Т.С | E80: NULL | O80: Марти Гласс | P80: 1 | Q80: 0
A81: =IF(ISNUMBER(SEARCH(F$1,B81,1)),MAX($A$1:A80)+1,0) -> 0 | B81: Wheil | C81: ООО «НПТ Климатика» | D81: Горчаков Е.М | E81: Горчаков | O81: МАРТИНИ РУС | P81: 1 | Q81: 1
A82: =IF(ISNUMBER(SEARCH(F$1,B82,1)),MAX($A$1:A81)+1,0) -> 0 | B82: Xlight | C82: ООО "Икслайт" | D82: Горчаков Е.М | E82: Горчаков | O82: Мастер Плюс | P82: 1 | Q82: 1
A83: =IF(ISNUMBER(SEARCH(F$1,B83,1)),MAX($A$1:A82)+1,0) -> 0 | B83: АБСД_РУС | C83: "АБСД_РУС" ООО | D83: NULL | E83: NULL | O83: МастерТехнолодж | P83: 1 | Q83: 0
A84: =IF(ISNUMBER(SEARCH(F$1,B84,1)),MAX($A$1:A83)+1,0) -> 0 | B84: Абсолют Премиум | C84: "Абсолют Премиум" ООО | D84: NULL | E84: NULL | O84: МашТест | P84: 1 | Q84: 0
A85: =IF(ISNUMBER(SEARCH(F$1,B85,1)),MAX($A$1:A84)+1,0) -> 2 | B85: АВА дог. 208 от 11.12.2019_матрицы | C85: АВА дог. 208 от 11.12.2019_матрицы | D85: NULL | E85: NULL | O85: МДМ | P85: 1 | Q85: 0
A86: =IF(ISNUMBER(SEARCH(F$1,B86,1)),MAX($A$1:A85)+1,0) -> 0 | B86: АВА_товарный кредит | C86: АВА_товарный кредит | D86: NULL | E86: NULL | O86: Медиа Эстейт | P86: 1 | Q86: 1
A87: =IF(ISNUMBER(SEARCH(F$1,B87,1)),MAX($A$1:A86)+1,0) -> 0 | B87: АВА_Трейд | C87: ООО "Ава-Трейд" | D87: NULL | E87: NULL | O87: МетОптТрейд СЦ | P87: 1 | Q87: 0
A88: =IF(ISNUMBER(SEARCH(F$1,B88,1)),MAX($A$1:A87)+1,0) -> 0 | B88: АВА_Трейд(матрицы) | C88: АВА_Трейд(матрицы) | D88: NULL | E88: NULL | O88: Миксал | P88: 1 | Q88: 0
A89: =IF(ISNUMBER(SEARCH(F$1,B89,1)),MAX($A$1:A88)+1,0) -> 0 | B89: АВА-МАК обороты ВКЛ | C89: АВА-МАК_обороты ВКЛ | D89: NULL | E89: NULL | O89: МитПроф | P89: 1 | Q89: 0
A90: =IF(ISNUMBER(SEARCH(F$1,B90,1)),MAX($A$1:A89)+1,0) -> 0 | B90: Авангард + | C90: ООО «Авангард+» | D90: Горчаков Е.М | E90: Голубев | O90: Монолит23 | P90: 1 | Q90: 0
A91: =IF(ISNUMBER(SEARCH(F$1,B91,1)),MAX($A$1:A90)+1,0) -> 0 | B91: Авангард ГК | C91: Авангард Группа Компаний | D91: Акафьева Т. | E91: NULL | O91: МонтичеллиРУС | P91: 1 | Q91: 0
A92: =IF(ISNUMBER(SEARCH(F$1,B92,1)),MAX($A$1:A91)+1,0) -> 0 | B92: Авангард Проект_пост | C92: Авангард Проект_поставщик | D92: NULL | E92: NULL | O92: МопТорг | P92: 1 | Q92: 0
A93: =IF(ISNUMBER(SEARCH(F$1,B93,1)),MAX($A$1:A92)+1,0) -> 0 | B93: Авангард Строй | C93: Авангард Строй ООО | D93: Маслова И.С | E93: Маслова | O93: Москитка | P93: 1 | Q93: 1
A94: =IF(ISNUMBER(SEARCH(F$1,B94,1)),MAX($A$1:A93)+1,0) -> 0 | B94: Авангард(Выст) | C94: Авангард(Выставка) | D94: NULL | E94: NULL | O94: МФ-Центр | P94: 1 | Q94: 0
A95: =IF(ISNUMBER(SEARCH(F$1,B95,1)),MAX($A$1:A94)+1,0) -> 0 | B95: Авангард(краска) | C95: Авангард (краска) | D95: NULL | E95: NULL | O95: Наяда 1 | P95: 1 | Q95: 0
A96: =IF(ISNUMBER(SEARCH(F$1,B96,1)),MAX($A$1:A95)+1,0) -> 0 | B96: Авангард(Общий) | C96: Авангард(Общий) | D96: Акафьева Т. | E96: УК | O96: НордАл | P96: 1 | Q96: 0
A97: =IF(ISNUMBER(SEARCH(F$1,B97,1)),MAX($A$1:A96)+1,0) -> 0 | B97: АВАНС | C97: АВАНС ООО | D97: Четверткова О. | E97: Голубев | O97: НордВерк | P97: 1 | Q97: 0
A98: =IF(ISNUMBER(SEARCH(F$1,B98,1)),MAX($A$1:A97)+1,0) -> 0 | B98: АвантеЛед | C98: ООО «АвантеЛед» | D98: Горчаков Е.М | E98: Горчаков | O98: Нортекс 1 | P98: 1 | Q98: 0
A99: =IF(ISNUMBER(SEARCH(F$1,B99,1)),MAX($A$1:A98)+1,0) -> 0 | B99: АВА-Трейд | C99: АВА-ТРейд ООО | D99: Маслова И.С | E99: Маслова | O99: НПО Машиностр 1 | P99: 1 | Q99: 0
A100: =IF(ISNUMBER(SEARCH(F$1,B100,1)),MAX($A$1:A99)+1,0) -> 0 | B100: АВА-Трейд (командировки) | C100: АВА-Трейд (командировки) | D100: NULL | E100: NULL | O100: ОЗМК | P100: 1 | Q100: 0
A101: =IF(ISNUMBER(SEARCH(F$1,B101,1)),MAX($A$1:A100)+1,0) -> 0 | B101: АВА-Трейд (покраска) | C101: АВА-Трейд (покраска) | D101: Маслова И.С | E101: Маслова | O101: ОКНА ДОМКОМ | P101: 1 | Q101: 0
A102: =IF(ISNUMBER(SEARCH(F$1,B102,1)),MAX($A$1:A101)+1,0) -> 0 | B102: АВА-Трейд (РУСАЛ) | C102: АВА-Трейд (РУСАЛ) | D102: NULL | E102: NULL | O102: ОКНА СТОЛИЦЫ | P102: 1 | Q102: 0
A103: =IF(ISNUMBER(SEARCH(F$1,B103,1)),MAX($A$1:A102)+1,0) -> 0 | B103: АВА-Трейд (товар) | C103: АВА-Трейд (товар) | D103: NULL | E103: NULL | O103: ОлВайтПро Белоруссия | P103: 1 | Q103: 0
A104: =IF(ISNUMBER(SEARCH(F$1,B104,1)),MAX($A$1:A103)+1,0) -> 0 | B104: АВА-Трейд достоставка ХЕВЕЛ | C104: АВА-Трейд доставка по проекту ХЕВЕЛ | D104: NULL | E104: NULL | O104: ОЛСИСПОРТ | P104: 1 | Q104: 0
A105: =IF(ISNUMBER(SEARCH(F$1,B105,1)),MAX($A$1:A104)+1,0) -> 0 | B105: АВА-Трейд перев. услуг | C105: АВА-Трейд перев. услу | D105: NULL | E105: NULL | O105: Пегас Электромеханический Завод | P105: 1 | Q105: 0
A106: =IF(ISNUMBER(SEARCH(F$1,B106,1)),MAX($A$1:A105)+1,0) -> 0 | B106: АВА-Трейд(доставка) | C106: АВА-Трейд(доставка) | D106: NULL | E106: NULL | O106: Пероф и Ко | P106: 1 | Q106: 0
A107: =IF(ISNUMBER(SEARCH(F$1,B107,1)),MAX($A$1:A106)+1,0) -> 0 | B107: АВА-Трейд_ВГО | C107: АВА-Трейд_ВГО | D107: NULL | E107: NULL | O107: Петралюм 1 | P107: 1 | Q107: 0
A108: =IF(ISNUMBER(SEARCH(F$1,B108,1)),MAX($A$1:A107)+1,0) -> 0 | B108: АВА-Трейд_взаимозачеты | C108: АВА-Трейд_взаимозачеты | D108: NULL | E108: NULL | O108: ПКФ Алюминий ВПК | P108: 1 | Q108: 0
A109: =IF(ISNUMBER(SEARCH(F$1,B109,1)),MAX($A$1:A108)+1,0) -> 0 | B109: АВА-Трейд_дав. сырье | C109: АВА-Трейд_давальческое сырье | D109: NULL | E109: NULL | O109: Планета | P109: 1 | Q109: 0
A110: =IF(ISNUMBER(SEARCH(F$1,B110,1)),MAX($A$1:A109)+1,0) -> 0 | B110: АВА-Трейд_осн. | C110: ООО "АВА-Трейд" | D110: NULL | E110: NULL | O110: ППСХ | P110: 1 | Q110: 0
A111: =IF(ISNUMBER(SEARCH(F$1,B111,1)),MAX($A$1:A110)+1,0) -> 0 | B111: АВА-Трейд_пост. | C111: АВА-Трейд_пост. | D111: NULL | E111: NULL | O111: Продакт Металл | P111: 1 | Q111: 0
A112: =IF(ISNUMBER(SEARCH(F$1,B112,1)),MAX($A$1:A111)+1,0) -> 0 | B112: АВА-Трейд_профиль | C112: ООО "АВА-Трейд" | D112: NULL | E112: NULL | O112: ПРОЖЕКТ | P112: 1 | Q112: 0
A113: =IF(ISNUMBER(SEARCH(F$1,B113,1)),MAX($A$1:A112)+1,0) -> 0 | B113: Ава-Трейд_транзит | C113: Ава-Трейд_транзит | D113: NULL | E113: NULL | O113: Пром Конструктор | P113: 1 | Q113: 0
A114: =IF(ISNUMBER(SEARCH(F$1,B114,1)),MAX($A$1:A113)+1,0) -> 0 | B114: Август | C114: Август ООО | D114: Шабалина Е.В | E114: Шабалина | O114: ПРОММЕТ | P114: 1 | Q114: 0
A115: =IF(ISNUMBER(SEARCH(F$1,B115,1)),MAX($A$1:A114)+1,0) -> 0 | B115: Авент | C115: "Авент" ООО | D115: NULL | E115: NULL | O115: Промышленные полы | P115: 1 | Q115: 0
A116: =IF(ISNUMBER(SEARCH(F$1,B116,1)),MAX($A$1:A115)+1,0) -> 0 | B116: АВЕНТА | C116: АВЕНТА ООО | D116: NULL | E116: NULL | O116: ПроТех | P116: 1 | Q116: 0
A117: =IF(ISNUMBER(SEARCH(F$1,B117,1)),MAX($A$1:A116)+1,0) -> 0 | B117: Авес | C117: Авес ООО | D117: NULL | E117: NULL | O117: Равта | P117: 1 | Q117: 0
A118: =IF(ISNUMBER(SEARCH(F$1,B118,1)),MAX($A$1:A117)+1,0) -> 0 | B118: Авиаль | C118: "АВИАЛЬ Компания" ООО | D118: NULL | E118: NULL | O118: Рассвет | P118: 1 | Q118: 0
A119: =IF(ISNUMBER(SEARCH(F$1,B119,1)),MAX($A$1:A118)+1,0) -> 0 | B119: Авикус | C119: Авикус ООО | D119: NULL | E119: NULL | O119: РВЭ | P119: 1 | Q119: 0
A120: =IF(ISNUMBER(SEARCH(F$1,B120,1)),MAX($A$1:A119)+1,0) -> 0 | B120: АвтоГироРуссланд | C120: АвтоГироРуссланд ООО | D120: Маслова И.С | E120: Верхомий | O120: РешенияДляОкон | P120: 1 | Q120: 0
A121: =IF(ISNUMBER(SEARCH(F$1,B121,1)),MAX($A$1:A120)+1,0) -> 0 | B121: Автограф Жалюзи | C121: Автограф Жалюзи ООО | D121: Маслова И.С | E121: Маслова | O121: РИЧ РОЛ | P121: 1 | Q121: 0
A122: =IF(ISNUMBER(SEARCH(F$1,B122,1)),MAX($A$1:A121)+1,0) -> 0 | B122: Автодизайн | C122: ООО ППФ"Автодизайн" | D122: Верхомий И.Е | E122: Верхомий | O122: Росттехпром | P122: 1 | Q122: 0
A123: =IF(ISNUMBER(SEARCH(F$1,B123,1)),MAX($A$1:A122)+1,0) -> 0 | B123: Автокемпер Пром | C123: Автокемпер Пром ООО | D123: Тимофеева Н.Д | E123: NULL | O123: РТИ-Пушкино | P123: 1 | Q123: 0
A124: =IF(ISNUMBER(SEARCH(F$1,B124,1)),MAX($A$1:A123)+1,0) -> 0 | B124: Автомеханический Завод | C124: Автомеханический Завод | D124: Верхомий И.Е | E124: Верхомий | O124: РУСТЕПЛОПОЛ | P124: 1 | Q124: 0
A125: =IF(ISNUMBER(SEARCH(F$1,B125,1)),MAX($A$1:A124)+1,0) -> 0 | B125: АВТОПРОМСЕРВИС | C125: АВТОПРОМСЕРВИС ООО | D125: Борисова Э.Б | E125: NULL | O125: Рэйлюкс | P125: 1 | Q125: 0
A126: =IF(ISNUMBER(SEARCH(F$1,B126,1)),MAX($A$1:A125)+1,0) -> 0 | B126: АвтоСпецКомпонент | C126: АвтоСпецКомпонент ООО | D126: Голубев А.С | E126: Голубев | O126: Свет НН | P126: 1 | Q126: 0
A127: =IF(ISNUMBER(SEARCH(F$1,B127,1)),MAX($A$1:A126)+1,0) -> 0 | B127: Автоэкспресс | C127: "Автоэкспресс" ООО | D127: NULL | E127: NULL | O127: Синдикат | P127: 1 | Q127: 0
A128: =IF(ISNUMBER(SEARCH(F$1,B128,1)),MAX($A$1:A127)+1,0) -> 0 | B128: АГ ХОЛДИНГ | C128: АГ ХОЛДИНГ | D128: Верхомий И.Е | E128: NULL | O128: СМК | P128: 1 | Q128: 0
A129: =IF(ISNUMBER(SEARCH(F$1,B129,1)),MAX($A$1:A128)+1,0) -> 0 | B129: Агат | C129: Агат ООО | D129: Шабалина Е.В | E129: Шишкин | O129: Снабсервис руб | P129: 1 | Q129: 0
A130: =IF(ISNUMBER(SEARCH(F$1,B130,1)),MAX($A$1:A129)+1,0) -> 0 | B130: Агат(поддон) | C130: ООО "Агат"(поддон) | D130: NULL | E130: NULL | O130: Солнцезащитные системы | P130: 1 | Q130: 0
A131: =IF(ISNUMBER(SEARCH(F$1,B131,1)),MAX($A$1:A130)+1,0) -> 0 | B131: Агрисовгаз | C131: "Агрисовгаз" ООО | D131: NULL | E131: NULL | O131: СолнцезащсистМинск | P131: 1 | Q131: 0
A132: =IF(ISNUMBER(SEARCH(F$1,B132,1)),MAX($A$1:A131)+1,0) -> 0 | B132: Агрисовгаз Представ | C132: Представительство Агрисовгаз ООО | D132: Маслова И.С | E132: NULL | O132: Софос | P132: 1 | Q132: 0
A133: =IF(ISNUMBER(SEARCH(F$1,B133,1)),MAX($A$1:A132)+1,0) -> 0 | B133: Агро Групп МП | C133: Агро Групп МП ООО | D133: Голубев А.С | E133: NULL | O133: СПЕКТР СП | P133: 1 | Q133: 0
A134: =IF(ISNUMBER(SEARCH(F$1,B134,1)),MAX($A$1:A133)+1,0) -> 0 | B134: Агромаш | C134: Агромаш ООО | D134: Голубев А.С | E134: NULL | O134: Спецавтотехника Белоруссия | P134: 1 | Q134: 0
A135: =IF(ISNUMBER(SEARCH(F$1,B135,1)),MAX($A$1:A134)+1,0) -> 0 | B135: Агроспецмашина | C135: Агроспецмашина ЗАО | D135: Маслова И.С | E135: Верхомий | O135: Спорт Макс | P135: 1 | Q135: 0
A136: =IF(ISNUMBER(SEARCH(F$1,B136,1)),MAX($A$1:A135)+1,0) -> 0 | B136: Адекс | C136: АДЕКС ООО | D136: Шабалина Е.В | E136: Шишкин | O136: Стандарт-Электрик | P136: 1 | Q136: 0
A137: =IF(ISNUMBER(SEARCH(F$1,B137,1)),MAX($A$1:A136)+1,0) -> 0 | B137: Азбука Комфорта | C137: "Азбука Комфорта" ООО | D137: NULL | E137: NULL | O137: Стекломаш | P137: 1 | Q137: 0
A138: =IF(ISNUMBER(SEARCH(F$1,B138,1)),MAX($A$1:A137)+1,0) -> 0 | B138: Азбука Света | C138: Азбука Света ООО | D138: Маслова И.С | E138: Голубев | O138: СТИ 2023 | P138: 1 | Q138: 0
A139: =IF(ISNUMBER(SEARCH(F$1,B139,1)),MAX($A$1:A138)+1,0) -> 0 | B139: Ай Пи Джи Клима | C139: Ай Пи Джи Клима ООО | D139: Калинина Т.С | E139: Калинина | O139: СторХан | P139: 1 | Q139: 0
A140: =IF(ISNUMBER(SEARCH(F$1,B140,1)),MAX($A$1:A139)+1,0) -> 0 | B140: Айдо-С | C140: "Айдо-С" ООО | D140: NULL | E140: NULL | O140: Стройкомплекс | P140: 1 | Q140: 0
A141: =IF(ISNUMBER(SEARCH(F$1,B141,1)),MAX($A$1:A140)+1,0) -> 0 | B141: Айнкон | C141: Айнкон ООО | D141: Халдина О.Н | E141: Голубев | O141: Стройремавто Белоруссия | P141: 1 | Q141: 0
A142: =IF(ISNUMBER(SEARCH(F$1,B142,1)),MAX($A$1:A141)+1,0) -> 0 | B142: Аква-Динамика | C142: Аква-Динамика ООО | D142: Верхомий И.Е | E142: NULL | O142: СтройТехРесурсР | P142: 1 | Q142: 0
A143: =IF(ISNUMBER(SEARCH(F$1,B143,1)),MAX($A$1:A142)+1,0) -> 0 | B143: АКВАСИТИ | C143: АКВАСИТИ ООО | D143: Калинина Т.С | E143: Калинина | O143: ТБМ АО | P143: 1 | Q143: 0
A144: =IF(ISNUMBER(SEARCH(F$1,B144,1)),MAX($A$1:A143)+1,0) -> 0 | B144: Акватек | C144: Акватек Производственная компания ООО | D144: NULL | E144: NULL | O144: ТБМ юг | P144: 1 | Q144: 0
A145: =IF(ISNUMBER(SEARCH(F$1,B145,1)),MAX($A$1:A144)+1,0) -> 0 | B145: Акватек (верно) | C145: Акватек Производственная компания ООО | D145: NULL | E145: NULL | O145: Тенткрафт | P145: 1 | Q145: 0
A146: =IF(ISNUMBER(SEARCH(F$1,B146,1)),MAX($A$1:A145)+1,0) -> 0 | B146: Акватек(поддон) | C146: Акватек(поддон) | D146: NULL | E146: NULL | O146: ТеплоЭлементК | P146: 1 | Q146: 0
A147: =IF(ISNUMBER(SEARCH(F$1,B147,1)),MAX($A$1:A146)+1,0) -> 0 | B147: Акватон | C147: Акватон ООО | D147: Шабалина Е.В | E147: Шабалина | O147: Тонар | P147: 1 | Q147: 0
A148: =IF(ISNUMBER(SEARCH(F$1,B148,1)),MAX($A$1:A147)+1,0) -> 0 | B148: Акзо Нобель | C148: "Акзо Нобель" ООО | D148: NULL | E148: NULL | O148: ТОП-ЛАЙН | P148: 1 | Q148: 1
A149: =IF(ISNUMBER(SEARCH(F$1,B149,1)),MAX($A$1:A148)+1,0) -> 0 | B149: Акзо Нобель_$ | C149: "Акзо Нобель"_$ ООО | D149: NULL | E149: NULL | O149: ТрансГарант | P149: 1 | Q149: 0
A150: =IF(ISNUMBER(SEARCH(F$1,B150,1)),MAX($A$1:A149)+1,0) -> 0 | B150: АКПЛАСТ | C150: АКПЛАСТ ООО | D150: Маслова И.С | E150: Голубев | O150: Трансинжиниринг | P150: 1 | Q150: 0
A151: =IF(ISNUMBER(SEARCH(F$1,B151,1)),MAX($A$1:A150)+1,0) -> 0 | B151: Аксиома | C151: Аксиома | D151: NULL | E151: Голубев | O151: ТРВ-инжиниринг | P151: 1 | Q151: 0
A152: =IF(ISNUMBER(SEARCH(F$1,B152,1)),MAX($A$1:A151)+1,0) -> 0 | B152: АКСИС | C152: АКСИС ООО | D152: NULL | E152: NULL | O152: Трейдал | P152: 1 | Q152: 0
A153: =IF(ISNUMBER(SEARCH(F$1,B153,1)),MAX($A$1:A152)+1,0) -> 0 | B153: Актимиста | C153: Актимиста ТК ООО | D153: Халдина О.Н | E153: NULL | O153: УСПК | P153: 1 | Q153: 0
A154: =IF(ISNUMBER(SEARCH(F$1,B154,1)),MAX($A$1:A153)+1,0) -> 0 | B154: Актор -М | C154: Актор -М ООО | D154: Акафьева Т. | E154: Акафьева | O154: Учмебель Белоруссия | P154: 1 | Q154: 0
A155: =IF(ISNUMBER(SEARCH(F$1,B155,1)),MAX($A$1:A154)+1,0) -> 0 | B155: Акура-С | C155: Акура-С ООО | D155: Халдина О.Н | E155: Халдина | O155: Уют 1 | P155: 1 | Q155: 0
A156: =IF(ISNUMBER(SEARCH(F$1,B156,1)),MAX($A$1:A155)+1,0) -> 0 | B156: Акцент | C156: "Акцент" ООО | D156: NULL | E156: NULL | O156: Фасадные Решения | P156: 1 | Q156: 0
A157: =IF(ISNUMBER(SEARCH(F$1,B157,1)),MAX($A$1:A156)+1,0) -> 0 | B157: АКЦЕНТ ООО | C157: ООО "АКЦЕНТ" | D157: NULL | E157: NULL | O157: Ферипласт | P157: 1 | Q157: 0
A158: =IF(ISNUMBER(SEARCH(F$1,B158,1)),MAX($A$1:A157)+1,0) -> 0 | B158: АЛ5 БИЛД | C158: АЛ5 БИЛД ООО | D158: Волчек Е.П | E158: NULL | O158: Фирма Дизайн-Вектор | P158: 1 | Q158: 0
A159: =IF(ISNUMBER(SEARCH(F$1,B159,1)),MAX($A$1:A158)+1,0) -> 0 | B159: АЛ5 ЮГ-МАК обороты ВКЛ | C159: АЛ5 ЮГ-МАК обороты ВКЛ | D159: NULL | E159: NULL | O159: ФПК СтроитКомп | P159: 1 | Q159: 0
A160: =IF(ISNUMBER(SEARCH(F$1,B160,1)),MAX($A$1:A159)+1,0) -> 0 | B160: АЛ5_консульт. услуги | C160: АЛ5_консультационные услуги | D160: NULL | E160: NULL | O160: Франс Гардинер Раша | P160: 1 | Q160: 0
A161: =IF(ISNUMBER(SEARCH(F$1,B161,1)),MAX($A$1:A160)+1,0) -> 0 | B161: АЛ5-СИТИ | C161: АЛ5-СИТИ ООО | D161: Акафьева Т. | E161: NULL | O161: Фристайл | P161: 1 | Q161: 0
A162: =IF(ISNUMBER(SEARCH(F$1,B162,1)),MAX($A$1:A161)+1,0) -> 0 | B162: АЛ5-ЮГ | C162: ООО "АЛ5-ЮГ" | D162: Маслова И.С | E162: Маслова | O162: Фурнитура Холдинг | P162: 1 | Q162: 0
A163: =IF(ISNUMBER(SEARCH(F$1,B163,1)),MAX($A$1:A162)+1,0) -> 0 | B163: АЛ5-ЮГ лом | C163: АЛ5_ЮГ | D163: NULL | E163: NULL | O163: Фэктори-ГУТЭ ВЭТЭР | P163: 1 | Q163: 1
A164: =IF(ISNUMBER(SEARCH(F$1,B164,1)),MAX($A$1:A163)+1,0) -> 0 | B164: АЛ5-ЮГ ООО | C164: АЛ5- ЮГ ООО | D164: Маслова И.С | E164: Маслова | O164: Халла | P164: 1 | Q164: 1
A165: =IF(ISNUMBER(SEARCH(F$1,B165,1)),MAX($A$1:A164)+1,0) -> 0 | B165: АЛ5-ЮГ_займ | C165: АЛ5-ЮГ_займ | D165: NULL | E165: NULL | O165: Хилти | P165: 1 | Q165: 0
A166: =IF(ISNUMBER(SEARCH(F$1,B166,1)),MAX($A$1:A165)+1,0) -> 0 | B166: АЛ5-ЮГ_Транзит (Метем) | C166: АЛ5-ЮГ_Транзит (Метем) | D166: NULL | E166: NULL | O166: Хилти Казахстан | P166: 1 | Q166: 0
A167: =IF(ISNUMBER(SEARCH(F$1,B167,1)),MAX($A$1:A166)+1,0) -> 0 | B167: Аламеда | C167: "Аламеда" МЛК ООО | D167: NULL | E167: NULL | O167: ЦВЕТ-ОК Питер | P167: 1 | Q167: 0
A168: =IF(ISNUMBER(SEARCH(F$1,B168,1)),MAX($A$1:A167)+1,0) -> 0 | B168: Аламеда(поддон) | C168: Аламеда(поддон) | D168: NULL | E168: NULL | O168: Чкаловкий Электро Мех Завой | P168: 1 | Q168: 0
A169: =IF(ISNUMBER(SEARCH(F$1,B169,1)),MAX($A$1:A168)+1,0) -> 0 | B169: Аларм Трейд | C169: Аларм Трейд | D169: NULL | E169: Голубев | O169: Эгида-Радуга | P169: 1 | Q169: 0
A170: =IF(ISNUMBER(SEARCH(F$1,B170,1)),MAX($A$1:A169)+1,0) -> 0 | B170: АЛБ | C170: ООО "АЛБ" | D170: Горчаков Е.М | E170: Горчаков | O170: ЭКОСВЕТ | P170: 1 | Q170: 0
A171: =IF(ISNUMBER(SEARCH(F$1,B171,1)),MAX($A$1:A170)+1,0) -> 0 | B171: АЛВЕНТ | C171: АЛВЕНТ ООО | D171: Халдина О.Н | E171: NULL | O171: Экструдер Консалтинг | P171: 1 | Q171: 0
A172: =IF(ISNUMBER(SEARCH(F$1,B172,1)),MAX($A$1:A171)+1,0) -> 0 | B172: А-ЛЕД.ПРО | C172: А-ЛЕД.ПРО | D172: Шабалина Е.В | E172: Верхомий | O172: Электро-М | P172: 1 | Q172: 0
A173: =IF(ISNUMBER(SEARCH(F$1,B173,1)),MAX($A$1:A172)+1,0) -> 0 | B173: Александровский Сад | C173: Александровский Сад ООО | D173: Акафьева Т. | E173: Акафьева | O173: Эльпласт-Жалюзи | P173: 1 | Q173: 0
A174: =IF(ISNUMBER(SEARCH(F$1,B174,1)),MAX($A$1:A173)+1,0) -> 0 | B174: АлексПРО | C174: Алекс ПРО ООО | D174: Акафьева Т. | E174: Акафьева | O174: ЭНВОЛ | P174: 1 | Q174: 0
A175: =IF(ISNUMBER(SEARCH(F$1,B175,1)),MAX($A$1:A174)+1,0) -> 0 | B175: Алинтекс | C175: Алинтекс ООО | D175: Калинина Т.С | E175: NULL | O175: ЭТЕРНА | P175: 1 | Q175: 0
A176: =IF(ISNUMBER(SEARCH(F$1,B176,1)),MAX($A$1:A175)+1,0) -> 0 | B176: Алипласт | C176: "Алипласт" ООО | D176: NULL | E176: NULL | O176: Юнистем | P176: 1 | Q176: 0
A177: =IF(ISNUMBER(SEARCH(F$1,B177,1)),MAX($A$1:A176)+1,0) -> 0 | B177: Алкалсан | C177: "Алкалсан" ООО | D177: NULL | E177: NULL
A178: =IF(ISNUMBER(SEARCH(F$1,B178,1)),MAX($A$1:A177)+1,0) -> 0 | B178: Алкалсан-GEOCOM | C178: Алкалсан-GEOKOM | D178: NULL | E178: NULL
A179: =IF(ISNUMBER(SEARCH(F$1,B179,1)),MAX($A$1:A178)+1,0) -> 0 | B179: Алкалсан-GOMOZ | C179: Алкалсан-GOMOZOV | D179: NULL | E179: NULL
A180: =IF(ISNUMBER(SEARCH(F$1,B180,1)),MAX($A$1:A179)+1,0) -> 0 | B180: Алкалсан-Импост | C180: Алкалсан-Импост | D180: NULL | E180: NULL
A181: =IF(ISNUMBER(SEARCH(F$1,B181,1)),MAX($A$1:A180)+1,0) -> 0 | B181: Алкалсан-Юниф | C181: Алкалсан-Юнифрейд | D181: NULL | E181: NULL
A182: =IF(ISNUMBER(SEARCH(F$1,B182,1)),MAX($A$1:A181)+1,0) -> 0 | B182: АЛКОМ Москва | C182: АЛКОМ Москва | D182: Кочанова Т.В | E182: NULL
A183: =IF(ISNUMBER(SEARCH(F$1,B183,1)),MAX($A$1:A182)+1,0) -> 0 | B183: АЛКОМ Серпухов | C183: АЛКОМ Серпухов | D183: Маслова И.С | E183: Маслова
A184: =IF(ISNUMBER(SEARCH(F$1,B184,1)),MAX($A$1:A183)+1,0) -> 0 | B184: АлКом(поддоны) | C184: АлКом(поддоны) | D184: NULL | E184: NULL
A185: =IF(ISNUMBER(SEARCH(F$1,B185,1)),MAX($A$1:A184)+1,0) -> 0 | B185: АлКом-М | C185: Алком-М ООО | D185: Кочанова Т.В | E185: NULL
A186: =IF(ISNUMBER(SEARCH(F$1,B186,1)),MAX($A$1:A185)+1,0) -> 0 | B186: Алком-Мет | C186: Алком-Мет ООО | D186: Маслова И.С | E186: Маслова
A187: =IF(ISNUMBER(SEARCH(F$1,B187,1)),MAX($A$1:A186)+1,0) -> 0 | B187: АлКон | C187: ООО "АлКон" г.Смоленск | D187: NULL | E187: NULL
A188: =IF(ISNUMBER(SEARCH(F$1,B188,1)),MAX($A$1:A187)+1,0) -> 0 | B188: АЛКОН Эл-сталь | C188: АЛКОН Эл-сталь ООО | D188: Голубев А.С | E188: NULL
A189: =IF(ISNUMBER(SEARCH(F$1,B189,1)),MAX($A$1:A188)+1,0) -> 0 | B189: Алкотек | C189: Алкотек | D189: NULL | E189: Голубев
A190: =IF(ISNUMBER(SEARCH(F$1,B190,1)),MAX($A$1:A189)+1,0) -> 0 | B190: Аллегри | C190: Аллегри ООО | D190: Халдина О.Н | E190: Халдина
A191: =IF(ISNUMBER(SEARCH(F$1,B191,1)),MAX($A$1:A190)+1,0) -> 0 | B191: АлЛифтСтрой | C191: "АлЛифтСтрой" ЗАО | D191: NULL | E191: NULL
A192: =IF(ISNUMBER(SEARCH(F$1,B192,1)),MAX($A$1:A191)+1,0) -> 0 | B192: Аллюра СПК | C192: Аллюра СПК ООО | D192: Верхомий И.Е | E192: NULL
A193: =IF(ISNUMBER(SEARCH(F$1,B193,1)),MAX($A$1:A192)+1,0) -> 0 | B193: АЛМаркет | C193: ООО "АЛМаркет" | D193: NULL | E193: NULL
A194: =IF(ISNUMBER(SEARCH(F$1,B194,1)),MAX($A$1:A193)+1,0) -> 0 | B194: АлМо | C194: Алмо ООО | D194: Маслова И.С | E194: NULL
A195: =IF(ISNUMBER(SEARCH(F$1,B195,1)),MAX($A$1:A194)+1,0) -> 0 | B195: АлНорд | C195: АлНорд ООО | D195: Калинина Т.С | E195: Голубев
A196: =IF(ISNUMBER(SEARCH(F$1,B196,1)),MAX($A$1:A195)+1,0) -> 0 | B196: АЛПИ | C196: АЛПИ ООО | D196: NULL | E196: NULL
A197: =IF(ISNUMBER(SEARCH(F$1,B197,1)),MAX($A$1:A196)+1,0) -> 0 | B197: Ал-Профи | C197: Ал-Профи ООО | D197: Акафьева Т. | E197: УК
A198: =IF(ISNUMBER(SEARCH(F$1,B198,1)),MAX($A$1:A197)+1,0) -> 0 | B198: Алпрофсервис | C198: Алпрофсервис | D198: NULL | E198: NULL
A199: =IF(ISNUMBER(SEARCH(F$1,B199,1)),MAX($A$1:A198)+1,0) -> 0 | B199: АЛРОКС | C199: АЛРОКС | D199: Маслова И.С | E199: NULL
A200: =IF(ISNUMBER(SEARCH(F$1,B200,1)),MAX($A$1:A199)+1,0) -> 0 | B200: АЛСАВ | C200: АЛСАВ ПК_ООО | D200: Четверткова О. | E200: Голубев
... 1567 more rows

Sheet Классификатор (hidden)
A1: Дублер | B1: Диаметр матрицы | C1: Сложность (А,B,C,D) | D1: Усилие пресса | E1: Комплектация | F1: Валюта | G1: Изготовитель | H1: Менеджер | I1: Заказчик | J1: Галки | K1: Сплав | L1: Состояние поставки | M1: Вид покрытия | N1: Год | O1: Месяц | P1: День | Q1: Назначение профиля | R1: Нормативная документация | S1: Причина рекламации | T1: Принятое решение по реклам | U1: № пресса
A2: Да | B2: 200 | C2: A | D2: 1000 | E2: Держатель упорных шайб (оправа) | F2: Руб | G2: ATS | H2: Акафьева | I2: Анод завод | J2: ü | K2: 1050A | L2: Т | M2: анод декор | N2: 2023 | O2: Январь | P2: 1 | Q2: 01.01. Общестроительный профиль | R2: 22233-2018 | S2: Несоответствие чертежу | T2: Возврат изготовителю | U2: I
A3: Нет | B3: 450 | C3: B | D3: 1500 | E3: Кольцо | F3: € | G3: AKS | H3: Вяльшина | I3: Доксал | J3: û | K3: АД0 | L3: Т1 | M3: анод защит. | N3: 2024 | O3: Февраль | P3: 2 | Q3: 03.01. Светопрозрачные системы (в т.ч.фасады) | S3: Несоответствие твердости | T3: Снижение стоимости | U3: II
B4: 230*200 | C4: C | D4: 4000 | E4: Конус | G4: IM | H4: Верхомий | I4: ИПЛАНА | K4: АД0E | L4: Т4 | M4: неокр. | O4: Март | P4: 3 | Q4: 03.02. Системы вентиляции | T4: Рекламация не принята | U4: III
B5: 180 | C5: D | E5: Комплект | G5: FRX | H5: Голубев | I5: Авангард | K5: АД31 | L5: Т5 | M5: под анод. | O5: Апрель | P5: 4 | Q5: 03.03. Быстровозводимые, самонесущие конструкции | T5: Доработка матрицы своими силами | U5: IV
B6: 330 | C6: S | E6: Матрица+рассекатель | G6: LBB | H6: Зражевский | I6: ВЭЛКО | K6: АД31Е | L6: Т6 | M6: окраш. | O6: Май | P6: 5 | Q6: 03.04. Опалубка строительная | T6: Изготовление новой | U6: V
B7: 278*125 | C7: нет | E7: Матрица | G7: ПрИн | H7: Калинина | I7: А-ЛЕД-ПРО | K7: АД33 | L7: Т64 | O7: Июнь | P7: 6 | Q7: 03.05. Лифты
B8: 380*260 | E8: Матрицедержатель (пакет) | H8: Маслова | I8: ИП Бакушкин | K8: АД35 | L8: Т66 | O8: Июль | P8: 7 | Q8: 03.06. Прочее для стройки
B9: 240*95 | E9: Прессшайба пресс 3 | H9: Мельников | I9: Мастер | K9: 6005А | O9: Август | P9: 8 | Q9: 03.06.1. Сантехническое оборудование (ванны и др.)
B10: 380 | E10: Предкамера | H10: ПДО | I10: Алтек | K10: 6060 | O10: Сентябрь | P10: 9 | Q10: 03.06.2. Фурнитура и комплектующие
B11: 228 | E11: Прессшайба пресс 4 | H11: Фролова | I11: ГАЛВИНГ | K11: 6061 | O11: Октябрь | P11: 10 | Q11: 03.06.3. Остановки общественного транспорта
B12: 330*130 | E12: Прессштемпель | H12: Халдина | I12: Версаль | K12: 6063 | O12: Ноябрь | P12: 11 | Q12: 03.07. Навесные вентилируемые фасады
B13: 380*130 | E13: Прессшайба пресс 2 | H13: Четверткова | I13: Митпроф | K13: 6082 | O13: Декабрь | P13: 12 | Q13: 04.01. Дорожное ограждение, звуковые барьеры, ограждающие конструкции
B14: 280 | E14: Прессшайба пресс 1 | H14: Тарлыкова | I14: Наяда | P14: 13 | Q14: 05.01. Офисные перегородки и двери
E15: Подкладка | H15: Тимофеева | I15: НОВАЯ КОНСТРУКЦИЯ | P15: 14 | Q15: 05.02. Двери межкомнатные; окна\двери
E16: Рассекатель | H16: Шабалина | I16: ООО «ГУ Центр» | P16: 15 | Q16: 06.01. Provedal
E17: Упорная шайба | H17: Шишкин | I17: Промед/Логос | P17: 16 | Q17: 06.02. Безрамное остекление
I18: Проммет | P18: 17 | Q18: 07.01. Москитная сетка
I19: РУЗХИММАШ | P19: 18 | Q19: 08.01. Вертикальные жалюзи
I20: ТБМ | P20: 19 | Q20: 08.02. Рулонные жалюзи
I21: Тонар | P21: 20 | Q21: 08.03. Карнизы шторные
I22: Флагман | P22: 21 | Q22: 08.04. Роллетные конструкции
I23: ХИЛТИ | P23: 22 | Q23: 08.05. Перила
I24: РВМ | P24: 23 | Q24: 08.06. Напольно-стеновые элементы (в т.ч.пороги)
I25: ЛПЗ Сегал | P25: 24 | Q25: 08.07. Потолочные элементы
I26: КТМ | P26: 25 | Q26: 09.01. Шкафы-купе
I27: ДБР | P27: 26 | Q27: 09.02. Торгово-выставочное оборудование
I28: Фристайл | P28: 27 | Q28: 09.03. Корпусная и прочее для мебели
I29: Нортекс | P29: 28 | Q29: 09.04. Конструкционный профиль
I30: Рич Ролл | P30: 29 | Q30: 10.01. Станкостроение
I31: Марти Глас | P31: 30 | Q31: 10.02. Приборостроение
I32: Инфопространство | P32: 31 | Q32: 10.03. Прочее для машиностроения и промышленности (в т.ч.нефтехим)
I33: ЦветОк | Q33: 11.01. Светильники
I34: Техностайл | Q34: 11.02. Радиаторы охлаждения
I35: Масттех | Q35: 11.03. Холодильное оборудование
I36: Стандарт | Q36: 11.04. Шины электротехнические
I37: Алвент | Q37: 11.05. Бытовая техника
I38: ИП Земина | Q38: 11.06. Радиаторы отопления
I39: Алсит | Q39: 11.07. Трубы под оребрение
I40: ИнтерьерСтиль | Q40: 11.08. Опоры освещения и флагштоки
I41: РусДеко | Q41: 11.09. Прочее (в т.ч. ТАСы)
I42: ООО "ДЕЛЬФА СП" | Q42: 11.10. Профиль с контролем электропроводности, но не шины
I43: ИП Пробачай | Q43: 12.01. Автомобилестроение (пороги, багажники, обвес, реленги и др.)
I44: Бронер-РУС | Q44: 12.02. Автомобилестроение (борта)
I45: Франс Гардинер Раша | Q45: 12.03. Автомобилестроение (общественный транспорт)
I46: Автокемпер Пром | Q46: 12.04. Вагоностроение
I47: Мартини Рус | Q47: 12.05. Авиастроение
I48: ДЛС | Q48: 12.06. Судостроение
I49: Ал5Юг | Q49: 12.07. Велосипеды
I50: Экструдер Консалдинг | Q50: 12.08. Спецтехника
I51: Магамакс | Q51: 12.09. Прочее для транспорта
I52: Росттехпром | Q52: 13.01. Профиль для рекламы
I53: СТИНЕР | Q53: 14.01. Медицинское оборудование
I54: Трансинжиниринг | Q54: 14.02. Чистые комнаты (медицина)
I55: ДиСи Хоум | Q55: 15.01. ВПК
I56: ОлВайтПро | Q56: 16.01. Правила, уровни, прочий инструмент
I57: ООО ВНС | Q57: 17.01. Фототехника
I58: Партнер Сервис | Q58: 17.02. Спортивный, туристический, садовый инвентарь
I59: МИТПРОФ | Q59: 17.03. Антенны телевизионные
I60: Алком | Q60: 17.04. Прочее для потребления
I61: Виндеко | Q61: 18.01. Растеневодство (теплицы, грибницы и т.д.) и животноводство
I62: ИП Горбылев | Q62: 18.02. Сельскохозяйственное оборудование
I63: ФОРТИС | Q63: 19.01. Солнечные панели (батареи)
I64: БПК | Q64: 20.01. Лестницы \ стремянки
I65: РЕХАУ
I66: Флортек
I67: Прайм Механика
I68: Еврометиз
I69: Реал Групп
I70: Техпромимпорт
I71: ФДТ
I72: Ава-Трейд (Вектор Фасад)
I73: Сталко
I74: Завод ВКО
I75: Квалитет

Sheet Лист2
A1: =Реестр!B3 -> Дата получения запроса от менеджера КО на изготовление чертежа, эскиза, образца | B1: =Реестр!AM3 -> Габаритные размеры инстр-та, мм | C1: =Реестр!AZ3 -> Изготовитель | D1: =Реестр!AN3 -> Категория сложности матрицы | E1: =Реестр!G3 -> Кол-во к заказу | F1: =Реестр!#REF! ->  | G1: =Реестр!J3 -> Ст-ть матрицы от производителя, руб | H1: Произв-е
A2: =(Реестр!B6)+0 -> 2023-10-02 | B2: =Реестр!AM6 -> 230х200 | C2: =Реестр!AZ6 -> FRX | D2: =Реестр!AN6 -> B | E2: =Реестр!G6 -> 0 | F2: =IF(Реестр!#REF!="I","Ф152",IF(Реестр!#REF!="II","Ф127",IF(Реестр!#REF!="III","Ф127",IF(Реестр!#REF!="IV","Ф228",IF(Реестр!#REF!="V","Ф127",""))))) ->  | G2: =Реестр!J6 -> 0 | H2: =E2*G2 -> 0
A3: =(Реестр!B7)+0 -> 2023-10-02 | B3: =Реестр!AM7 -> 450х260 | C3: =Реестр!AZ7 -> IM | D3: =Реестр!AN7 -> D | E3: =Реестр!G7 -> 0 | F3: =IF(Реестр!#REF!="I","Ф152",IF(Реестр!#REF!="II","Ф127",IF(Реестр!#REF!="III","Ф127",IF(Реестр!#REF!="IV","Ф228",IF(Реестр!#REF!="V","Ф127",""))))) ->  | G3: =Реестр!J7 -> 0 | H3: 0
A4: =(Реестр!B8)+0 -> 2023-10-02 | B4: =Реестр!AM8 -> 180х140 | C4: =Реестр!AZ8 -> ПрИн | D4: =Реестр!AN8 -> C | E4: =Реестр!G8 -> 0 | F4: =IF(Реестр!#REF!="I","Ф152",IF(Реестр!#REF!="II","Ф127",IF(Реестр!#REF!="III","Ф127",IF(Реестр!#REF!="IV","Ф228",IF(Реестр!#REF!="V","Ф127",""))))) ->  | G4: =Реестр!J8 -> 0 | H4: 0
A5: =(Реестр!B9)+0 -> 2023-10-02 | B5: =Реестр!AM9 -> 200х140 | C5: =Реестр!AZ9 -> COMES | D5: =Реестр!AN9 -> C | E5: =Реестр!G9 -> 1 | F5: =IF(Реестр!#REF!="I","Ф152",IF(Реестр!#REF!="II","Ф127",IF(Реестр!#REF!="III","Ф127",IF(Реестр!#REF!="IV","Ф228",IF(Реестр!#REF!="V","Ф127",""))))) ->  | G5: =Реестр!J9 -> 126888.6 | H5: 126888.6
A6: =(Реестр!B10)+0 -> 2023-10-02 | B6: =Реестр!AM10 -> 450х260 | C6: =Реестр!AZ10 -> ПрИн | D6: =Реестр!AN10 -> C | E6: =Реестр!G10 -> 0 | F6: =IF(Реестр!#REF!="I","Ф152",IF(Реестр!#REF!="II","Ф127",IF(Реестр!#REF!="III","Ф127",IF(Реестр!#REF!="IV","Ф228",IF(Реестр!#REF!="V","Ф127",""))))) ->  | G6: =Реестр!J10 -> 0 | H6: 0
A7: =(Реестр!B11)+0 -> 2023-10-03 | B7: =Реестр!AM11 -> 180х140 | C7: =Реестр!AZ11 -> FRX | D7: =Реестр!AN11 -> B | E7: =Реестр!G11 -> 0 | F7: =IF(Реестр!#REF!="I","Ф152",IF(Реестр!#REF!="II","Ф127",IF(Реестр!#REF!="III","Ф127",IF(Реестр!#REF!="IV","Ф228",IF(Реестр!#REF!="V","Ф127",""))))) ->  | G7: =Реестр!J11 -> 0 | H7: 0
A8: =(Реестр!B12)+0 -> 2023-10-03 | B8: =Реестр!AM12 -> 180х140 | C8: =Реестр!AZ12 -> EXP | D8: =Реестр!AN12 -> C | E8: =Реестр!G12 -> 0 | F8: =IF(Реестр!#REF!="I","Ф152",IF(Реестр!#REF!="II","Ф127",IF(Реестр!#REF!="III","Ф127",IF(Реестр!#REF!="IV","Ф228",IF(Реестр!#REF!="V","Ф127",""))))) ->  | G8: =Реестр!J12 -> 0 | H8: 0
A9: =(Реестр!B13)+0 -> 2023-10-03 | B9: =Реестр!AM13 -> 180х140 | C9: =Реестр!AZ13 -> COMES | D9: =Реестр!AN13 -> B | E9: =Реестр!G13 -> 0 | F9: =IF(Реестр!#REF!="I","Ф152",IF(Реестр!#REF!="II","Ф127",IF(Реестр!#REF!="III","Ф127",IF(Реестр!#REF!="IV","Ф228",IF(Реестр!#REF!="V","Ф127",""))))) ->  | G9: =Реестр!J13 -> 0 | H9: 0
A10: =(Реестр!B14)+0 -> 2023-10-03 | B10: =Реестр!AM14 -> 200х140 | C10: =Реестр!AZ14 -> COMES | D10: =Реестр!AN14 -> B | E10: =Реестр!G14 -> 0 | F10: =IF(Реестр!#REF!="I","Ф152",IF(Реестр!#REF!="II","Ф127",IF(Реестр!#REF!="III","Ф127",IF(Реестр!#REF!="IV","Ф228",IF(Реестр!#REF!="V","Ф127",""))))) ->  | G10: =Реестр!J14 -> 0 | H10: 0
A11: =(Реестр!B15)+0 -> 2023-10-04 | B11: =Реестр!AM15 -> 200х140 | C11: =Реестр!AZ15 -> FRX | D11: =Реестр!AN15 -> C | E11: =Реестр!G15 -> 0 | F11: =IF(Реестр!#REF!="I","Ф152",IF(Реестр!#REF!="II","Ф127",IF(Реестр!#REF!="III","Ф127",IF(Реестр!#REF!="IV","Ф228",IF(Реестр!#REF!="V","Ф127",""))))) ->  | G11: =Реестр!J15 -> 0 | H11: 0
A12: =(Реестр!B16)+0 -> 2023-10-05 | B12: =Реестр!AM16 -> 200х140 | C12: =Реестр!AZ16 -> IM | D12: =Реестр!AN16 -> B | E12: =Реестр!G16 -> 0 | F12: =IF(Реестр!#REF!="I","Ф152",IF(Реестр!#REF!="II","Ф127",IF(Реестр!#REF!="III","Ф127",IF(Реестр!#REF!="IV","Ф228",IF(Реестр!#REF!="V","Ф127",""))))) ->  | G12: =Реестр!J16 -> 0 | H12: 0
A13: =(Реестр!B17)+0 -> 2023-10-05 | B13: =Реестр!AM17 -> 230х140 | C13: =Реестр!AZ17 -> FRX | D13: =Реестр!AN17 -> C | E13: =Реестр!G17 -> 0 | F13: =IF(Реестр!#REF!="I","Ф152",IF(Реестр!#REF!="II","Ф127",IF(Реестр!#REF!="III","Ф127",IF(Реестр!#REF!="IV","Ф228",IF(Реестр!#REF!="V","Ф127",""))))) ->  | G13: =Реестр!J17 -> 0 | H13: 0
A14: =(Реестр!B18)+0 -> 2023-10-05 | B14: =Реестр!AM18 -> 200х140 | C14: =Реестр!AZ18 -> ПрИн | D14: =Реестр!AN18 -> C | E14: =Реестр!G18 -> 0 | F14: =IF(Реестр!#REF!="I","Ф152",IF(Реестр!#REF!="II","Ф127",IF(Реестр!#REF!="III","Ф127",IF(Реестр!#REF!="IV","Ф228",IF(Реестр!#REF!="V","Ф127",""))))) ->  | G14: =Реестр!J18 -> 0 | H14: 0
A15: =(Реестр!B19)+0 -> 2023-10-05 | B15: =Реестр!AM19 -> 230х140 | C15: =Реестр!AZ19 -> FRX | D15: =Реестр!AN19 -> C | E15: =Реестр!G19 -> 0 | F15: =IF(Реестр!#REF!="I","Ф152",IF(Реестр!#REF!="II","Ф127",IF(Реестр!#REF!="III","Ф127",IF(Реестр!#REF!="IV","Ф228",IF(Реестр!#REF!="V","Ф127",""))))) ->  | G15: =Реестр!J19 -> 0 | H15: 0
A16: =(Реестр!B20)+0 -> 2023-10-05 | B16: =Реестр!AM20 -> 200х140 | C16: =Реестр!AZ20 -> IM | D16: =Реестр!AN20 -> C | E16: =Реестр!G20 -> 0 | F16: =IF(Реестр!#REF!="I","Ф152",IF(Реестр!#REF!="II","Ф127",IF(Реестр!#REF!="III","Ф127",IF(Реестр!#REF!="IV","Ф228",IF(Реестр!#REF!="V","Ф127",""))))) ->  | G16: =Реестр!J20 -> 0 | H16: 0
A17: =(Реестр!B21)+0 -> 2023-10-05 | B17: =Реестр!AM21 -> 180х140 | C17: =Реестр!AZ21 -> IM | D17: =Реестр!AN21 -> B | E17: =Реестр!G21 -> 0 | F17: =IF(Реестр!#REF!="I","Ф152",IF(Реестр!#REF!="II","Ф127",IF(Реестр!#REF!="III","Ф127",IF(Реестр!#REF!="IV","Ф228",IF(Реестр!#REF!="V","Ф127",""))))) ->  | G17: =Реестр!J21 -> 0 | H17: 0
A18: =(Реестр!B22)+0 -> 2023-10-06 | B18: =Реестр!AM22 -> 230х200 | C18: =Реестр!AZ22 -> FRX | D18: =Реестр!AN22 -> B | E18: =Реестр!G22 -> 1 | F18: =IF(Реестр!#REF!="I","Ф152",IF(Реестр!#REF!="II","Ф127",IF(Реестр!#REF!="III","Ф127",IF(Реестр!#REF!="IV","Ф228",IF(Реестр!#REF!="V","Ф127",""))))) ->  | G18: =Реестр!J22 -> 78798.4 | H18: 78798.4
A19: =(Реестр!B23)+0 -> 2023-10-06 | B19: =Реестр!AM23 -> 230х200 | C19: =Реестр!AZ23 -> IM | D19: =Реестр!AN23 -> B | E19: =Реестр!G23 -> 1 | F19: =IF(Реестр!#REF!="I","Ф152",IF(Реестр!#REF!="II","Ф127",IF(Реестр!#REF!="III","Ф127",IF(Реестр!#REF!="IV","Ф228",IF(Реестр!#REF!="V","Ф127",""))))) ->  | G19: =Реестр!J23 -> 75322 | H19: 75322
A20: =(Реестр!B24)+0 -> 2023-10-09 | B20: =Реестр!AM24 -> 230х200 | C20: =Реестр!AZ24 -> ПрИн | D20: =Реестр!AN24 -> C | E20: =Реестр!G24 -> 1 | F20: =IF(Реестр!#REF!="I","Ф152",IF(Реестр!#REF!="II","Ф127",IF(Реестр!#REF!="III","Ф127",IF(Реестр!#REF!="IV","Ф228",IF(Реестр!#REF!="V","Ф127",""))))) ->  | G20: =Реестр!J24 -> 208584 | H20: 208584
A21: =(Реестр!B25)+0 -> 2023-10-09 | B21: =Реестр!AM25 -> 280х200 | C21: =Реестр!AZ25 -> FRX | D21: =Реестр!AN25 -> B | E21: =Реестр!G25 -> 1 | F21: =IF(Реестр!#REF!="I","Ф152",IF(Реестр!#REF!="II","Ф127",IF(Реестр!#REF!="III","Ф127",IF(Реестр!#REF!="IV","Ф228",IF(Реестр!#REF!="V","Ф127",""))))) ->  | G21: =Реестр!J25 -> 138476.6 | H21: 138476.6
A22: =(Реестр!B26)+0 -> 2023-10-09 | B22: =Реестр!AM26 -> 380х200 | C22: =Реестр!AZ26 -> ПрИн | D22: =Реестр!AN26 -> D | E22: =Реестр!G26 -> 1 | F22: =IF(Реестр!#REF!="I","Ф152",IF(Реестр!#REF!="II","Ф127",IF(Реестр!#REF!="III","Ф127",IF(Реестр!#REF!="IV","Ф228",IF(Реестр!#REF!="V","Ф127",""))))) ->  | G22: =Реестр!J26 -> 383794.56 | H22: 383794.56
A23: =(Реестр!B27)+0 -> 2023-10-09 | B23: =Реестр!AM27 -> 380х200 | C23: =Реестр!AZ27 -> ПрИн | D23: =Реестр!AN27 -> D | E23: =Реестр!G27 -> 1 | F23: =IF(Реестр!#REF!="I","Ф152",IF(Реестр!#REF!="II","Ф127",IF(Реестр!#REF!="III","Ф127",IF(Реестр!#REF!="IV","Ф228",IF(Реестр!#REF!="V","Ф127",""))))) ->  | G23: =Реестр!J27 -> 441363.744 | H23: 441363.744
A24: =(Реестр!B28)+0 -> 2023-10-09 | B24: =Реестр!AM28 -> 230х200 | C24: =Реестр!AZ28 -> FRX | D24: =Реестр!AN28 -> A | E24: =Реестр!G28 -> 1 | F24: =IF(Реестр!#REF!="I","Ф152",IF(Реестр!#REF!="II","Ф127",IF(Реестр!#REF!="III","Ф127",IF(Реестр!#REF!="IV","Ф228",IF(Реестр!#REF!="V","Ф127",""))))) ->  | G24: =Реестр!J28 -> 108927.2 | H24: 108927.2
A25: =(Реестр!B29)+0 -> 2023-10-09 | B25: =Реестр!AM29 -> 200х140 | C25: =Реестр!AZ29 -> IM | D25: =Реестр!AN29 -> B | E25: =Реестр!G29 -> 1 | F25: =IF(Реестр!#REF!="I","Ф152",IF(Реестр!#REF!="II","Ф127",IF(Реестр!#REF!="III","Ф127",IF(Реестр!#REF!="IV","Ф228",IF(Реестр!#REF!="V","Ф127",""))))) ->  | G25: =Реестр!J29 -> 51566.6 | H25: 51566.6
A26: =(Реестр!B30)+0 -> 2023-10-09 | B26: =Реестр!AM30 -> 450х260 | C26: =Реестр!AZ30 -> COMES | D26: =Реестр!AN30 -> C | E26: =Реестр!G30 -> 1 | F26: =IF(Реестр!#REF!="I","Ф152",IF(Реестр!#REF!="II","Ф127",IF(Реестр!#REF!="III","Ф127",IF(Реестр!#REF!="IV","Ф228",IF(Реестр!#REF!="V","Ф127",""))))) ->  | G26: =Реестр!J30 -> 412996.32 | H26: 412996.32
A27: =(Реестр!B31)+0 -> 2023-10-09 | B27: =Реестр!AM31 -> 450х260 | C27: =Реестр!AZ31 -> EXP | D27: =Реестр!AN31 -> C | E27: =Реестр!G31 -> 1 | F27: =IF(Реестр!#REF!="I","Ф152",IF(Реестр!#REF!="II","Ф127",IF(Реестр!#REF!="III","Ф127",IF(Реестр!#REF!="IV","Ф228",IF(Реестр!#REF!="V","Ф127",""))))) ->  | G27: =Реестр!J31 -> 412996.32 | H27: 412996.32
A28: =(Реестр!B32)+0 -> 2023-10-09 | B28: =Реестр!AM32 -> 180х140 | C28: =Реестр!AZ32 -> FRX | D28: =Реестр!AN32 -> B | E28: =Реестр!G32 -> 1 | F28: =IF(Реестр!#REF!="I","Ф152",IF(Реестр!#REF!="II","Ф127",IF(Реестр!#REF!="III","Ф127",IF(Реестр!#REF!="IV","Ф228",IF(Реестр!#REF!="V","Ф127",""))))) ->  | G28: =Реестр!J32 -> 60837 | H28: 60837
A29: =(Реестр!B595)+0 -> 00:00:00 | B29: =Реестр!AM595 -> 0 | C29: =Реестр!AZ595 -> 0 | D29: =Реестр!AN595 -> 0 | E29: =Реестр!G595 -> 0 | F29: =IF(Реестр!#REF!="I","Ф152",IF(Реестр!#REF!="II","Ф127",IF(Реестр!#REF!="III","Ф127",IF(Реестр!#REF!="IV","Ф228",IF(Реестр!#REF!="V","Ф127",""))))) ->  | G29: =Реестр!J595 -> 0 | H29: =E29*G29 -> 0
A30: =(Реестр!B596)+0 -> 00:00:00 | B30: =Реестр!AM596 -> 0 | C30: =Реестр!AZ596 -> 0 | D30: =Реестр!AN596 -> 0 | E30: =Реестр!G596 -> 0 | F30: =IF(Реестр!#REF!="I","Ф152",IF(Реестр!#REF!="II","Ф127",IF(Реестр!#REF!="III","Ф127",IF(Реестр!#REF!="IV","Ф228",IF(Реестр!#REF!="V","Ф127",""))))) ->  | G30: =Реестр!J596 -> 0 | H30: 0
A31: =(Реестр!B597)+0 -> 00:00:00 | B31: =Реестр!AM597 -> 0 | C31: =Реестр!AZ597 -> 0 | D31: =Реестр!AN597 -> 0 | E31: =Реестр!G597 -> 0 | F31: =IF(Реестр!#REF!="I","Ф152",IF(Реестр!#REF!="II","Ф127",IF(Реестр!#REF!="III","Ф127",IF(Реестр!#REF!="IV","Ф228",IF(Реестр!#REF!="V","Ф127",""))))) ->  | G31: =Реестр!J597 -> 0 | H31: 0
A32: =(Реестр!B598)+0 -> 00:00:00 | B32: =Реестр!AM598 -> 0 | C32: =Реестр!AZ598 -> 0 | D32: =Реестр!AN598 -> 0 | E32: =Реестр!G598 -> 0 | F32: =IF(Реестр!#REF!="I","Ф152",IF(Реестр!#REF!="II","Ф127",IF(Реестр!#REF!="III","Ф127",IF(Реестр!#REF!="IV","Ф228",IF(Реестр!#REF!="V","Ф127",""))))) ->  | G32: =Реестр!J598 -> 0 | H32: 0
A33: =(Реестр!B599)+0 -> 00:00:00 | B33: =Реестр!AM599 -> 0 | C33: =Реестр!AZ599 -> 0 | D33: =Реестр!AN599 -> 0 | E33: =Реестр!G599 -> 0 | F33: =IF(Реестр!#REF!="I","Ф152",IF(Реестр!#REF!="II","Ф127",IF(Реестр!#REF!="III","Ф127",IF(Реестр!#REF!="IV","Ф228",IF(Реестр!#REF!="V","Ф127",""))))) ->  | G33: =Реестр!J599 -> 0 | H33: 0
A34: =(Реестр!B600)+0 -> 00:00:00 | B34: =Реестр!AM600 -> 0 | C34: =Реестр!AZ600 -> 0 | D34: =Реестр!AN600 -> 0 | E34: =Реестр!G600 -> 0 | F34: =IF(Реестр!#REF!="I","Ф152",IF(Реестр!#REF!="II","Ф127",IF(Реестр!#REF!="III","Ф127",IF(Реестр!#REF!="IV","Ф228",IF(Реестр!#REF!="V","Ф127",""))))) ->  | G34: =Реестр!J600 -> 0 | H34: 0
A35: =(Реестр!B601)+0 -> 00:00:00 | B35: =Реестр!AM601 -> 0 | C35: =Реестр!AZ601 -> 0 | D35: =Реестр!AN601 -> 0 | E35: =Реестр!G601 -> 0 | F35: =IF(Реестр!#REF!="I","Ф152",IF(Реестр!#REF!="II","Ф127",IF(Реестр!#REF!="III","Ф127",IF(Реестр!#REF!="IV","Ф228",IF(Реестр!#REF!="V","Ф127",""))))) ->  | G35: =Реестр!J601 -> 0 | H35: 0
A36: =(Реестр!B602)+0 -> 00:00:00 | B36: =Реестр!AM602 -> 0 | C36: =Реестр!AZ602 -> 0 | D36: =Реестр!AN602 -> 0 | E36: =Реестр!G602 -> 0 | F36: =IF(Реестр!#REF!="I","Ф152",IF(Реестр!#REF!="II","Ф127",IF(Реестр!#REF!="III","Ф127",IF(Реестр!#REF!="IV","Ф228",IF(Реестр!#REF!="V","Ф127",""))))) ->  | G36: =Реестр!J602 -> 0 | H36: 0
A37: =(Реестр!B603)+0 -> 00:00:00 | B37: =Реестр!AM603 -> 0 | C37: =Реестр!AZ603 -> 0 | D37: =Реестр!AN603 -> 0 | E37: =Реестр!G603 -> 0 | F37: =IF(Реестр!#REF!="I","Ф152",IF(Реестр!#REF!="II","Ф127",IF(Реестр!#REF!="III","Ф127",IF(Реестр!#REF!="IV","Ф228",IF(Реестр!#REF!="V","Ф127",""))))) ->  | G37: =Реестр!J603 -> 0 | H37: 0
A38: =(Реестр!B604)+0 -> 00:00:00 | B38: =Реестр!AM604 -> 0 | C38: =Реестр!AZ604 -> 0 | D38: =Реестр!AN604 -> 0 | E38: =Реестр!G604 -> 0 | F38: =IF(Реестр!#REF!="I","Ф152",IF(Реестр!#REF!="II","Ф127",IF(Реестр!#REF!="III","Ф127",IF(Реестр!#REF!="IV","Ф228",IF(Реестр!#REF!="V","Ф127",""))))) ->  | G38: =Реестр!J604 -> 0 | H38: 0
A39: =(Реестр!B605)+0 -> 00:00:00 | B39: =Реестр!AM605 -> 0 | C39: =Реестр!AZ605 -> 0 | D39: =Реестр!AN605 -> 0 | E39: =Реестр!G605 -> 0 | F39: =IF(Реестр!#REF!="I","Ф152",IF(Реестр!#REF!="II","Ф127",IF(Реестр!#REF!="III","Ф127",IF(Реестр!#REF!="IV","Ф228",IF(Реестр!#REF!="V","Ф127",""))))) ->  | G39: =Реестр!J605 -> 0 | H39: 0
A40: =(Реестр!B606)+0 -> 00:00:00 | B40: =Реестр!AM606 -> 0 | C40: =Реестр!AZ606 -> 0 | D40: =Реестр!AN606 -> 0 | E40: =Реестр!G606 -> 0 | F40: =IF(Реестр!#REF!="I","Ф152",IF(Реестр!#REF!="II","Ф127",IF(Реестр!#REF!="III","Ф127",IF(Реестр!#REF!="IV","Ф228",IF(Реестр!#REF!="V","Ф127",""))))) ->  | G40: =Реестр!J606 -> 0 | H40: 0
A41: =(Реестр!B607)+0 -> 00:00:00 | B41: =Реестр!AM607 -> 0 | C41: =Реестр!AZ607 -> 0 | D41: =Реестр!AN607 -> 0 | E41: =Реестр!G607 -> 0 | F41: =IF(Реестр!#REF!="I","Ф152",IF(Реестр!#REF!="II","Ф127",IF(Реестр!#REF!="III","Ф127",IF(Реестр!#REF!="IV","Ф228",IF(Реестр!#REF!="V","Ф127",""))))) ->  | G41: =Реестр!J607 -> 0 | H41: 0
A42: =(Реестр!B608)+0 -> 00:00:00 | B42: =Реестр!AM608 -> 0 | C42: =Реестр!AZ608 -> 0 | D42: =Реестр!AN608 -> 0 | E42: =Реестр!G608 -> 0 | F42: =IF(Реестр!#REF!="I","Ф152",IF(Реестр!#REF!="II","Ф127",IF(Реестр!#REF!="III","Ф127",IF(Реестр!#REF!="IV","Ф228",IF(Реестр!#REF!="V","Ф127",""))))) ->  | G42: =Реестр!J608 -> 0 | H42: 0
A43: =(Реестр!B609)+0 -> 00:00:00 | B43: =Реестр!AM609 -> 0 | C43: =Реестр!AZ609 -> 0 | D43: =Реестр!AN609 -> 0 | E43: =Реестр!G609 -> 0 | F43: =IF(Реестр!#REF!="I","Ф152",IF(Реестр!#REF!="II","Ф127",IF(Реестр!#REF!="III","Ф127",IF(Реестр!#REF!="IV","Ф228",IF(Реестр!#REF!="V","Ф127",""))))) ->  | G43: =Реестр!J609 -> 0 | H43: 0
A44: =(Реестр!B610)+0 -> 00:00:00 | B44: =Реестр!AM610 -> 0 | C44: =Реестр!AZ610 -> 0 | D44: =Реестр!AN610 -> 0 | E44: =Реестр!G610 -> 0 | F44: =IF(Реестр!#REF!="I","Ф152",IF(Реестр!#REF!="II","Ф127",IF(Реестр!#REF!="III","Ф127",IF(Реестр!#REF!="IV","Ф228",IF(Реестр!#REF!="V","Ф127",""))))) ->  | G44: =Реестр!J610 -> 0 | H44: 0
A45: =(Реестр!B611)+0 -> 00:00:00 | B45: =Реестр!AM611 -> 0 | C45: =Реестр!AZ611 -> 0 | D45: =Реестр!AN611 -> 0 | E45: =Реестр!G611 -> 0 | F45: =IF(Реестр!#REF!="I","Ф152",IF(Реестр!#REF!="II","Ф127",IF(Реестр!#REF!="III","Ф127",IF(Реестр!#REF!="IV","Ф228",IF(Реестр!#REF!="V","Ф127",""))))) ->  | G45: =Реестр!J611 -> 0 | H45: 0
A46: =(Реестр!B612)+0 -> 00:00:00 | B46: =Реестр!AM612 -> 0 | C46: =Реестр!AZ612 -> 0 | D46: =Реестр!AN612 -> 0 | E46: =Реестр!G612 -> 0 | F46: =IF(Реестр!#REF!="I","Ф152",IF(Реестр!#REF!="II","Ф127",IF(Реестр!#REF!="III","Ф127",IF(Реестр!#REF!="IV","Ф228",IF(Реестр!#REF!="V","Ф127",""))))) ->  | G46: =Реестр!J612 -> 0 | H46: 0
A47: =(Реестр!B613)+0 -> 00:00:00 | B47: =Реестр!AM613 -> 0 | C47: =Реестр!AZ613 -> 0 | D47: =Реестр!AN613 -> 0 | E47: =Реестр!G613 -> 0 | F47: =IF(Реестр!#REF!="I","Ф152",IF(Реестр!#REF!="II","Ф127",IF(Реестр!#REF!="III","Ф127",IF(Реестр!#REF!="IV","Ф228",IF(Реестр!#REF!="V","Ф127",""))))) ->  | G47: =Реестр!J613 -> 0 | H47: 0
A48: =(Реестр!B614)+0 -> 00:00:00 | B48: =Реестр!AM614 -> 0 | C48: =Реестр!AZ614 -> 0 | D48: =Реестр!AN614 -> 0 | E48: =Реестр!G614 -> 0 | F48: =IF(Реестр!#REF!="I","Ф152",IF(Реестр!#REF!="II","Ф127",IF(Реестр!#REF!="III","Ф127",IF(Реестр!#REF!="IV","Ф228",IF(Реестр!#REF!="V","Ф127",""))))) ->  | G48: =Реестр!J614 -> 0 | H48: 0
A49: =(Реестр!B615)+0 -> 00:00:00 | B49: =Реестр!AM615 -> 0 | C49: =Реестр!AZ615 -> 0 | D49: =Реестр!AN615 -> 0 | E49: =Реестр!G615 -> 0 | F49: =IF(Реестр!#REF!="I","Ф152",IF(Реестр!#REF!="II","Ф127",IF(Реестр!#REF!="III","Ф127",IF(Реестр!#REF!="IV","Ф228",IF(Реестр!#REF!="V","Ф127",""))))) ->  | G49: =Реестр!J615 -> 0 | H49: 0
A50: =(Реестр!B616)+0 -> 00:00:00 | B50: =Реестр!AM616 -> 0 | C50: =Реестр!AZ616 -> 0 | D50: =Реестр!AN616 -> 0 | E50: =Реестр!G616 -> 0 | F50: =IF(Реестр!#REF!="I","Ф152",IF(Реестр!#REF!="II","Ф127",IF(Реестр!#REF!="III","Ф127",IF(Реестр!#REF!="IV","Ф228",IF(Реестр!#REF!="V","Ф127",""))))) ->  | G50: =Реестр!J616 -> 0 | H50: 0
A51: =(Реестр!B617)+0 -> 00:00:00 | B51: =Реестр!AM617 -> 0 | C51: =Реестр!AZ617 -> 0 | D51: =Реестр!AN617 -> 0 | E51: =Реестр!G617 -> 0 | F51: =IF(Реестр!#REF!="I","Ф152",IF(Реестр!#REF!="II","Ф127",IF(Реестр!#REF!="III","Ф127",IF(Реестр!#REF!="IV","Ф228",IF(Реестр!#REF!="V","Ф127",""))))) ->  | G51: =Реестр!J617 -> 0 | H51: 0
A52: =(Реестр!B618)+0 -> 00:00:00 | B52: =Реестр!AM618 -> 0 | C52: =Реестр!AZ618 -> 0 | D52: =Реестр!AN618 -> 0 | E52: =Реестр!G618 -> 0 | F52: =IF(Реестр!#REF!="I","Ф152",IF(Реестр!#REF!="II","Ф127",IF(Реестр!#REF!="III","Ф127",IF(Реестр!#REF!="IV","Ф228",IF(Реестр!#REF!="V","Ф127",""))))) ->  | G52: =Реестр!J618 -> 0 | H52: 0
A53: =(Реестр!B619)+0 -> 00:00:00 | B53: =Реестр!AM619 -> 0 | C53: =Реестр!AZ619 -> 0 | D53: =Реестр!AN619 -> 0 | E53: =Реестр!G619 -> 0 | F53: =IF(Реестр!#REF!="I","Ф152",IF(Реестр!#REF!="II","Ф127",IF(Реестр!#REF!="III","Ф127",IF(Реестр!#REF!="IV","Ф228",IF(Реестр!#REF!="V","Ф127",""))))) ->  | G53: =Реестр!J619 -> 0 | H53: 0
A54: =(Реестр!B620)+0 -> 00:00:00 | B54: =Реестр!AM620 -> 0 | C54: =Реестр!AZ620 -> 0 | D54: =Реестр!AN620 -> 0 | E54: =Реестр!G620 -> 0 | F54: =IF(Реестр!#REF!="I","Ф152",IF(Реестр!#REF!="II","Ф127",IF(Реестр!#REF!="III","Ф127",IF(Реестр!#REF!="IV","Ф228",IF(Реестр!#REF!="V","Ф127",""))))) ->  | G54: =Реестр!J620 -> 0 | H54: 0
A55: =(Реестр!B621)+0 -> 00:00:00 | B55: =Реестр!AM621 -> 0 | C55: =Реестр!AZ621 -> 0 | D55: =Реестр!AN621 -> 0 | E55: =Реестр!G621 -> 0 | F55: =IF(Реестр!#REF!="I","Ф152",IF(Реестр!#REF!="II","Ф127",IF(Реестр!#REF!="III","Ф127",IF(Реестр!#REF!="IV","Ф228",IF(Реестр!#REF!="V","Ф127",""))))) ->  | G55: =Реестр!J621 -> 0 | H55: 0
A56: =(Реестр!B622)+0 -> 00:00:00 | B56: =Реестр!AM622 -> 0 | C56: =Реестр!AZ622 -> 0 | D56: =Реестр!AN622 -> 0 | E56: =Реестр!G622 -> 0 | F56: =IF(Реестр!#REF!="I","Ф152",IF(Реестр!#REF!="II","Ф127",IF(Реестр!#REF!="III","Ф127",IF(Реестр!#REF!="IV","Ф228",IF(Реестр!#REF!="V","Ф127",""))))) ->  | G56: =Реестр!J622 -> 0 | H56: 0
A57: =(Реестр!B623)+0 -> 00:00:00 | B57: =Реестр!AM623 -> 0 | C57: =Реестр!AZ623 -> 0 | D57: =Реестр!AN623 -> 0 | E57: =Реестр!G623 -> 0 | F57: =IF(Реестр!#REF!="I","Ф152",IF(Реестр!#REF!="II","Ф127",IF(Реестр!#REF!="III","Ф127",IF(Реестр!#REF!="IV","Ф228",IF(Реестр!#REF!="V","Ф127",""))))) ->  | G57: =Реестр!J623 -> 0 | H57: 0
A58: =(Реестр!B624)+0 -> 00:00:00 | B58: =Реестр!AM624 -> 0 | C58: =Реестр!AZ624 -> 0 | D58: =Реестр!AN624 -> 0 | E58: =Реестр!G624 -> 0 | F58: =IF(Реестр!#REF!="I","Ф152",IF(Реестр!#REF!="II","Ф127",IF(Реестр!#REF!="III","Ф127",IF(Реестр!#REF!="IV","Ф228",IF(Реестр!#REF!="V","Ф127",""))))) ->  | G58: =Реестр!J624 -> 0 | H58: 0
A59: =(Реестр!B625)+0 -> 00:00:00 | B59: =Реестр!AM625 -> 0 | C59: =Реестр!AZ625 -> 0 | D59: =Реестр!AN625 -> 0 | E59: =Реестр!G625 -> 0 | F59: =IF(Реестр!#REF!="I","Ф152",IF(Реестр!#REF!="II","Ф127",IF(Реестр!#REF!="III","Ф127",IF(Реестр!#REF!="IV","Ф228",IF(Реестр!#REF!="V","Ф127",""))))) ->  | G59: =Реестр!J625 -> 0 | H59: 0
A60: =(Реестр!B626)+0 -> 00:00:00 | B60: =Реестр!AM626 -> 0 | C60: =Реестр!AZ626 -> 0 | D60: =Реестр!AN626 -> 0 | E60: =Реестр!G626 -> 0 | F60: =IF(Реестр!#REF!="I","Ф152",IF(Реестр!#REF!="II","Ф127",IF(Реестр!#REF!="III","Ф127",IF(Реестр!#REF!="IV","Ф228",IF(Реестр!#REF!="V","Ф127",""))))) ->  | G60: =Реестр!J626 -> 0 | H60: 0
A61: =(Реестр!B627)+0 -> 00:00:00 | B61: =Реестр!AM627 -> 0 | C61: =Реестр!AZ627 -> 0 | D61: =Реестр!AN627 -> 0 | E61: =Реестр!G627 -> 0 | F61: =IF(Реестр!#REF!="I","Ф152",IF(Реестр!#REF!="II","Ф127",IF(Реестр!#REF!="III","Ф127",IF(Реестр!#REF!="IV","Ф228",IF(Реестр!#REF!="V","Ф127",""))))) ->  | G61: =Реестр!J627 -> 0 | H61: 0
A62: =(Реестр!B628)+0 -> 00:00:00 | B62: =Реестр!AM628 -> 0 | C62: =Реестр!AZ628 -> 0 | D62: =Реестр!AN628 -> 0 | E62: =Реестр!G628 -> 0 | F62: =IF(Реестр!#REF!="I","Ф152",IF(Реестр!#REF!="II","Ф127",IF(Реестр!#REF!="III","Ф127",IF(Реестр!#REF!="IV","Ф228",IF(Реестр!#REF!="V","Ф127",""))))) ->  | G62: =Реестр!J628 -> 0 | H62: 0
A63: =(Реестр!B629)+0 -> 00:00:00 | B63: =Реестр!AM629 -> 0 | C63: =Реестр!AZ629 -> 0 | D63: =Реестр!AN629 -> 0 | E63: =Реестр!G629 -> 0 | F63: =IF(Реестр!#REF!="I","Ф152",IF(Реестр!#REF!="II","Ф127",IF(Реестр!#REF!="III","Ф127",IF(Реестр!#REF!="IV","Ф228",IF(Реестр!#REF!="V","Ф127",""))))) ->  | G63: =Реестр!J629 -> 0 | H63: 0
A64: =(Реестр!B630)+0 -> 00:00:00 | B64: =Реестр!AM630 -> 0 | C64: =Реестр!AZ630 -> 0 | D64: =Реестр!AN630 -> 0 | E64: =Реестр!G630 -> 0 | F64: =IF(Реестр!#REF!="I","Ф152",IF(Реестр!#REF!="II","Ф127",IF(Реестр!#REF!="III","Ф127",IF(Реестр!#REF!="IV","Ф228",IF(Реестр!#REF!="V","Ф127",""))))) ->  | G64: =Реестр!J630 -> 0 | H64: 0
A65: =(Реестр!B631)+0 -> 00:00:00 | B65: =Реестр!AM631 -> 0 | C65: =Реестр!AZ631 -> 0 | D65: =Реестр!AN631 -> 0 | E65: =Реестр!G631 -> 0 | F65: =IF(Реестр!#REF!="I","Ф152",IF(Реестр!#REF!="II","Ф127",IF(Реестр!#REF!="III","Ф127",IF(Реестр!#REF!="IV","Ф228",IF(Реестр!#REF!="V","Ф127",""))))) ->  | G65: =Реестр!J631 -> 0 | H65: 0
A66: =(Реестр!B632)+0 -> 00:00:00 | B66: =Реестр!AM632 -> 0 | C66: =Реестр!AZ632 -> 0 | D66: =Реестр!AN632 -> 0 | E66: =Реестр!G632 -> 0 | F66: =IF(Реестр!#REF!="I","Ф152",IF(Реестр!#REF!="II","Ф127",IF(Реестр!#REF!="III","Ф127",IF(Реестр!#REF!="IV","Ф228",IF(Реестр!#REF!="V","Ф127",""))))) ->  | G66: =Реестр!J632 -> 0 | H66: 0
A67: =(Реестр!B633)+0 -> 00:00:00 | B67: =Реестр!AM633 -> 0 | C67: =Реестр!AZ633 -> 0 | D67: =Реестр!AN633 -> 0 | E67: =Реестр!G633 -> 0 | F67: =IF(Реестр!#REF!="I","Ф152",IF(Реестр!#REF!="II","Ф127",IF(Реестр!#REF!="III","Ф127",IF(Реестр!#REF!="IV","Ф228",IF(Реестр!#REF!="V","Ф127",""))))) ->  | G67: =Реестр!J633 -> 0 | H67: 0
A68: =(Реестр!B634)+0 -> 00:00:00 | B68: =Реестр!AM634 -> 0 | C68: =Реестр!AZ634 -> 0 | D68: =Реестр!AN634 -> 0 | E68: =Реестр!G634 -> 0 | F68: =IF(Реестр!#REF!="I","Ф152",IF(Реестр!#REF!="II","Ф127",IF(Реестр!#REF!="III","Ф127",IF(Реестр!#REF!="IV","Ф228",IF(Реестр!#REF!="V","Ф127",""))))) ->  | G68: =Реестр!J634 -> 0 | H68: 0
A69: =(Реестр!B635)+0 -> 00:00:00 | B69: =Реестр!AM635 -> 0 | C69: =Реестр!AZ635 -> 0 | D69: =Реестр!AN635 -> 0 | E69: =Реестр!G635 -> 0 | F69: =IF(Реестр!#REF!="I","Ф152",IF(Реестр!#REF!="II","Ф127",IF(Реестр!#REF!="III","Ф127",IF(Реестр!#REF!="IV","Ф228",IF(Реестр!#REF!="V","Ф127",""))))) ->  | G69: =Реестр!J635 -> 0 | H69: 0
A70: =(Реестр!B636)+0 -> 00:00:00 | B70: =Реестр!AM636 -> 0 | C70: =Реестр!AZ636 -> 0 | D70: =Реестр!AN636 -> 0 | E70: =Реестр!G636 -> 0 | F70: =IF(Реестр!#REF!="I","Ф152",IF(Реестр!#REF!="II","Ф127",IF(Реестр!#REF!="III","Ф127",IF(Реестр!#REF!="IV","Ф228",IF(Реестр!#REF!="V","Ф127",""))))) ->  | G70: =Реестр!J636 -> 0 | H70: 0
A71: =(Реестр!B637)+0 -> 00:00:00 | B71: =Реестр!AM637 -> 0 | C71: =Реестр!AZ637 -> 0 | D71: =Реестр!AN637 -> 0 | E71: =Реестр!G637 -> 0 | F71: =IF(Реестр!#REF!="I","Ф152",IF(Реестр!#REF!="II","Ф127",IF(Реестр!#REF!="III","Ф127",IF(Реестр!#REF!="IV","Ф228",IF(Реестр!#REF!="V","Ф127",""))))) ->  | G71: =Реестр!J637 -> 0 | H71: 0
A72: =(Реестр!B638)+0 -> 00:00:00 | B72: =Реестр!AM638 -> 0 | C72: =Реестр!AZ638 -> 0 | D72: =Реестр!AN638 -> 0 | E72: =Реестр!G638 -> 0 | F72: =IF(Реестр!#REF!="I","Ф152",IF(Реестр!#REF!="II","Ф127",IF(Реестр!#REF!="III","Ф127",IF(Реестр!#REF!="IV","Ф228",IF(Реестр!#REF!="V","Ф127",""))))) ->  | G72: =Реестр!J638 -> 0 | H72: 0
A73: =(Реестр!B639)+0 -> 00:00:00 | B73: =Реестр!AM639 -> 0 | C73: =Реестр!AZ639 -> 0 | D73: =Реестр!AN639 -> 0 | E73: =Реестр!G639 -> 0 | F73: =IF(Реестр!#REF!="I","Ф152",IF(Реестр!#REF!="II","Ф127",IF(Реестр!#REF!="III","Ф127",IF(Реестр!#REF!="IV","Ф228",IF(Реестр!#REF!="V","Ф127",""))))) ->  | G73: =Реестр!J639 -> 0 | H73: =E73*G73 -> 0
A74: =(Реестр!B640)+0 -> 00:00:00 | B74: =Реестр!AM640 -> 0 | C74: =Реестр!AZ640 -> 0 | D74: =Реестр!AN640 -> 0 | E74: =Реестр!G640 -> 0 | F74: =IF(Реестр!#REF!="I","Ф152",IF(Реестр!#REF!="II","Ф127",IF(Реестр!#REF!="III","Ф127",IF(Реестр!#REF!="IV","Ф228",IF(Реестр!#REF!="V","Ф127",""))))) ->  | G74: =Реестр!J640 -> 0 | H74: 0
A75: =(Реестр!B641)+0 -> 00:00:00 | B75: =Реестр!AM641 -> 0 | C75: =Реестр!AZ641 -> 0 | D75: =Реестр!AN641 -> 0 | E75: =Реестр!G641 -> 0 | F75: =IF(Реестр!#REF!="I","Ф152",IF(Реестр!#REF!="II","Ф127",IF(Реестр!#REF!="III","Ф127",IF(Реестр!#REF!="IV","Ф228",IF(Реестр!#REF!="V","Ф127",""))))) ->  | G75: =Реестр!J641 -> 0 | H75: 0
A76: =(Реестр!B642)+0 -> 00:00:00 | B76: =Реестр!AM642 -> 0 | C76: =Реестр!AZ642 -> 0 | D76: =Реестр!AN642 -> 0 | E76: =Реестр!G642 -> 0 | F76: =IF(Реестр!#REF!="I","Ф152",IF(Реестр!#REF!="II","Ф127",IF(Реестр!#REF!="III","Ф127",IF(Реестр!#REF!="IV","Ф228",IF(Реестр!#REF!="V","Ф127",""))))) ->  | G76: =Реестр!J642 -> 0 | H76: 0
A77: =(Реестр!B643)+0 -> 00:00:00 | B77: =Реестр!AM643 -> 0 | C77: =Реестр!AZ643 -> 0 | D77: =Реестр!AN643 -> 0 | E77: =Реестр!G643 -> 0 | F77: =IF(Реестр!#REF!="I","Ф152",IF(Реестр!#REF!="II","Ф127",IF(Реестр!#REF!="III","Ф127",IF(Реестр!#REF!="IV","Ф228",IF(Реестр!#REF!="V","Ф127",""))))) ->  | G77: =Реестр!J643 -> 0 | H77: 0
A78: =(Реестр!B644)+0 -> 00:00:00 | B78: =Реестр!AM644 -> 0 | C78: =Реестр!AZ644 -> 0 | D78: =Реестр!AN644 -> 0 | E78: =Реестр!G644 -> 0 | F78: =IF(Реестр!#REF!="I","Ф152",IF(Реестр!#REF!="II","Ф127",IF(Реестр!#REF!="III","Ф127",IF(Реестр!#REF!="IV","Ф228",IF(Реестр!#REF!="V","Ф127",""))))) ->  | G78: =Реестр!J644 -> 0 | H78: 0
A79: =(Реестр!B645)+0 -> 00:00:00 | B79: =Реестр!AM645 -> 0 | C79: =Реестр!AZ645 -> 0 | D79: =Реестр!AN645 -> 0 | E79: =Реестр!G645 -> 0 | F79: =IF(Реестр!#REF!="I","Ф152",IF(Реестр!#REF!="II","Ф127",IF(Реестр!#REF!="III","Ф127",IF(Реестр!#REF!="IV","Ф228",IF(Реестр!#REF!="V","Ф127",""))))) ->  | G79: =Реестр!J645 -> 0 | H79: 0
A80: =(Реестр!B646)+0 -> 00:00:00 | B80: =Реестр!AM646 -> 0 | C80: =Реестр!AZ646 -> 0 | D80: =Реестр!AN646 -> 0 | E80: =Реестр!G646 -> 0 | F80: =IF(Реестр!#REF!="I","Ф152",IF(Реестр!#REF!="II","Ф127",IF(Реестр!#REF!="III","Ф127",IF(Реестр!#REF!="IV","Ф228",IF(Реестр!#REF!="V","Ф127",""))))) ->  | G80: =Реестр!J646 -> 0 | H80: 0
A81: =(Реестр!B647)+0 -> 00:00:00 | B81: =Реестр!AM647 -> 0 | C81: =Реестр!AZ647 -> 0 | D81: =Реестр!AN647 -> 0 | E81: =Реестр!G647 -> 0 | F81: =IF(Реестр!#REF!="I","Ф152",IF(Реестр!#REF!="II","Ф127",IF(Реестр!#REF!="III","Ф127",IF(Реестр!#REF!="IV","Ф228",IF(Реестр!#REF!="V","Ф127",""))))) ->  | G81: =Реестр!J647 -> 0 | H81: 0
A82: =(Реестр!B648)+0 -> 00:00:00 | B82: =Реестр!AM648 -> 0 | C82: =Реестр!AZ648 -> 0 | D82: =Реестр!AN648 -> 0 | E82: =Реестр!G648 -> 0 | F82: =IF(Реестр!#REF!="I","Ф152",IF(Реестр!#REF!="II","Ф127",IF(Реестр!#REF!="III","Ф127",IF(Реестр!#REF!="IV","Ф228",IF(Реестр!#REF!="V","Ф127",""))))) ->  | G82: =Реестр!J648 -> 0 | H82: 0
A83: =(Реестр!B649)+0 -> 00:00:00 | B83: =Реестр!AM649 -> 0 | C83: =Реестр!AZ649 -> 0 | D83: =Реестр!AN649 -> 0 | E83: =Реестр!G649 -> 0 | F83: =IF(Реестр!#REF!="I","Ф152",IF(Реестр!#REF!="II","Ф127",IF(Реестр!#REF!="III","Ф127",IF(Реестр!#REF!="IV","Ф228",IF(Реестр!#REF!="V","Ф127",""))))) ->  | G83: =Реестр!J649 -> 0 | H83: 0
A84: =(Реестр!B650)+0 -> 00:00:00 | B84: =Реестр!AM650 -> 0 | C84: =Реестр!AZ650 -> 0 | D84: =Реестр!AN650 -> 0 | E84: =Реестр!G650 -> 0 | F84: =IF(Реестр!#REF!="I","Ф152",IF(Реестр!#REF!="II","Ф127",IF(Реестр!#REF!="III","Ф127",IF(Реестр!#REF!="IV","Ф228",IF(Реестр!#REF!="V","Ф127",""))))) ->  | G84: =Реестр!J650 -> 0 | H84: 0
A85: =(Реестр!B651)+0 -> 00:00:00 | B85: =Реестр!AM651 -> 0 | C85: =Реестр!AZ651 -> 0 | D85: =Реестр!AN651 -> 0 | E85: =Реестр!G651 -> 0 | F85: =IF(Реестр!#REF!="I","Ф152",IF(Реестр!#REF!="II","Ф127",IF(Реестр!#REF!="III","Ф127",IF(Реестр!#REF!="IV","Ф228",IF(Реестр!#REF!="V","Ф127",""))))) ->  | G85: =Реестр!J651 -> 0 | H85: 0
A86: =(Реестр!B652)+0 -> 00:00:00 | B86: =Реестр!AM652 -> 0 | C86: =Реестр!AZ652 -> 0 | D86: =Реестр!AN652 -> 0 | E86: =Реестр!G652 -> 0 | F86: =IF(Реестр!#REF!="I","Ф152",IF(Реестр!#REF!="II","Ф127",IF(Реестр!#REF!="III","Ф127",IF(Реестр!#REF!="IV","Ф228",IF(Реестр!#REF!="V","Ф127",""))))) ->  | G86: =Реестр!J652 -> 0 | H86: 0
A87: =(Реестр!B653)+0 -> 00:00:00 | B87: =Реестр!AM653 -> 0 | C87: =Реестр!AZ653 -> 0 | D87: =Реестр!AN653 -> 0 | E87: =Реестр!G653 -> 0 | F87: =IF(Реестр!#REF!="I","Ф152",IF(Реестр!#REF!="II","Ф127",IF(Реестр!#REF!="III","Ф127",IF(Реестр!#REF!="IV","Ф228",IF(Реестр!#REF!="V","Ф127",""))))) ->  | G87: =Реестр!J653 -> 0 | H87: 0
A88: =(Реестр!B654)+0 -> 00:00:00 | B88: =Реестр!AM654 -> 0 | C88: =Реестр!AZ654 -> 0 | D88: =Реестр!AN654 -> 0 | E88: =Реестр!G654 -> 0 | F88: =IF(Реестр!#REF!="I","Ф152",IF(Реестр!#REF!="II","Ф127",IF(Реестр!#REF!="III","Ф127",IF(Реестр!#REF!="IV","Ф228",IF(Реестр!#REF!="V","Ф127",""))))) ->  | G88: =Реестр!J654 -> 0 | H88: 0
A89: =(Реестр!B655)+0 -> 00:00:00 | B89: =Реестр!AM655 -> 0 | C89: =Реестр!AZ655 -> 0 | D89: =Реестр!AN655 -> 0 | E89: =Реестр!G655 -> 0 | F89: =IF(Реестр!#REF!="I","Ф152",IF(Реестр!#REF!="II","Ф127",IF(Реестр!#REF!="III","Ф127",IF(Реестр!#REF!="IV","Ф228",IF(Реестр!#REF!="V","Ф127",""))))) ->  | G89: =Реестр!J655 -> 0 | H89: 0
A90: =(Реестр!B656)+0 -> 00:00:00 | B90: =Реестр!AM656 -> 0 | C90: =Реестр!AZ656 -> 0 | D90: =Реестр!AN656 -> 0 | E90: =Реестр!G656 -> 0 | F90: =IF(Реестр!#REF!="I","Ф152",IF(Реестр!#REF!="II","Ф127",IF(Реестр!#REF!="III","Ф127",IF(Реестр!#REF!="IV","Ф228",IF(Реестр!#REF!="V","Ф127",""))))) ->  | G90: =Реестр!J656 -> 0 | H90: 0
A91: =(Реестр!B657)+0 -> 00:00:00 | B91: =Реестр!AM657 -> 0 | C91: =Реестр!AZ657 -> 0 | D91: =Реестр!AN657 -> 0 | E91: =Реестр!G657 -> 0 | F91: =IF(Реестр!#REF!="I","Ф152",IF(Реестр!#REF!="II","Ф127",IF(Реестр!#REF!="III","Ф127",IF(Реестр!#REF!="IV","Ф228",IF(Реестр!#REF!="V","Ф127",""))))) ->  | G91: =Реестр!J657 -> 0 | H91: 0
A92: =(Реестр!B658)+0 -> 00:00:00 | B92: =Реестр!AM658 -> 0 | C92: =Реестр!AZ658 -> 0 | D92: =Реестр!AN658 -> 0 | E92: =Реестр!G658 -> 0 | F92: =IF(Реестр!#REF!="I","Ф152",IF(Реестр!#REF!="II","Ф127",IF(Реестр!#REF!="III","Ф127",IF(Реестр!#REF!="IV","Ф228",IF(Реестр!#REF!="V","Ф127",""))))) ->  | G92: =Реестр!J658 -> 0 | H92: 0
A93: =(Реестр!B659)+0 -> 00:00:00 | B93: =Реестр!AM659 -> 0 | C93: =Реестр!AZ659 -> 0 | D93: =Реестр!AN659 -> 0 | E93: =Реестр!G659 -> 0 | F93: =IF(Реестр!#REF!="I","Ф152",IF(Реестр!#REF!="II","Ф127",IF(Реестр!#REF!="III","Ф127",IF(Реестр!#REF!="IV","Ф228",IF(Реестр!#REF!="V","Ф127",""))))) ->  | G93: =Реестр!J659 -> 0 | H93: 0
A94: =(Реестр!B660)+0 -> 00:00:00 | B94: =Реестр!AM660 -> 0 | C94: =Реестр!AZ660 -> 0 | D94: =Реестр!AN660 -> 0 | E94: =Реестр!G660 -> 0 | F94: =IF(Реестр!#REF!="I","Ф152",IF(Реестр!#REF!="II","Ф127",IF(Реестр!#REF!="III","Ф127",IF(Реестр!#REF!="IV","Ф228",IF(Реестр!#REF!="V","Ф127",""))))) ->  | G94: =Реестр!J660 -> 0 | H94: 0
A95: =(Реестр!B661)+0 -> 00:00:00 | B95: =Реестр!AM661 -> 0 | C95: =Реестр!AZ661 -> 0 | D95: =Реестр!AN661 -> 0 | E95: =Реестр!G661 -> 0 | F95: =IF(Реестр!#REF!="I","Ф152",IF(Реестр!#REF!="II","Ф127",IF(Реестр!#REF!="III","Ф127",IF(Реестр!#REF!="IV","Ф228",IF(Реестр!#REF!="V","Ф127",""))))) ->  | G95: =Реестр!J661 -> 0 | H95: 0
A96: =(Реестр!B662)+0 -> 00:00:00 | B96: =Реестр!AM662 -> 0 | C96: =Реестр!AZ662 -> 0 | D96: =Реестр!AN662 -> 0 | E96: =Реестр!G662 -> 0 | F96: =IF(Реестр!#REF!="I","Ф152",IF(Реестр!#REF!="II","Ф127",IF(Реестр!#REF!="III","Ф127",IF(Реестр!#REF!="IV","Ф228",IF(Реестр!#REF!="V","Ф127",""))))) ->  | G96: =Реестр!J662 -> 0 | H96: 0
A97: =(Реестр!B663)+0 -> 00:00:00 | B97: =Реестр!AM663 -> 0 | C97: =Реестр!AZ663 -> 0 | D97: =Реестр!AN663 -> 0 | E97: =Реестр!G663 -> 0 | F97: =IF(Реестр!#REF!="I","Ф152",IF(Реестр!#REF!="II","Ф127",IF(Реестр!#REF!="III","Ф127",IF(Реестр!#REF!="IV","Ф228",IF(Реестр!#REF!="V","Ф127",""))))) ->  | G97: =Реестр!J663 -> 0 | H97: 0
A98: =(Реестр!B664)+0 -> 00:00:00 | B98: =Реестр!AM664 -> 0 | C98: =Реестр!AZ664 -> 0 | D98: =Реестр!AN664 -> 0 | E98: =Реестр!G664 -> 0 | F98: =IF(Реестр!#REF!="I","Ф152",IF(Реестр!#REF!="II","Ф127",IF(Реестр!#REF!="III","Ф127",IF(Реестр!#REF!="IV","Ф228",IF(Реестр!#REF!="V","Ф127",""))))) ->  | G98: =Реестр!J664 -> 0 | H98: 0
A99: =(Реестр!B665)+0 -> 00:00:00 | B99: =Реестр!AM665 -> 0 | C99: =Реестр!AZ665 -> 0 | D99: =Реестр!AN665 -> 0 | E99: =Реестр!G665 -> 0 | F99: =IF(Реестр!#REF!="I","Ф152",IF(Реестр!#REF!="II","Ф127",IF(Реестр!#REF!="III","Ф127",IF(Реестр!#REF!="IV","Ф228",IF(Реестр!#REF!="V","Ф127",""))))) ->  | G99: =Реестр!J665 -> 0 | H99: 0
A100: =(Реестр!B666)+0 -> 00:00:00 | B100: =Реестр!AM666 -> 0 | C100: =Реестр!AZ666 -> 0 | D100: =Реестр!AN666 -> 0 | E100: =Реестр!G666 -> 0 | F100: =IF(Реестр!#REF!="I","Ф152",IF(Реестр!#REF!="II","Ф127",IF(Реестр!#REF!="III","Ф127",IF(Реестр!#REF!="IV","Ф228",IF(Реестр!#REF!="V","Ф127",""))))) ->  | G100: =Реестр!J666 -> 0 | H100: 0
A101: =(Реестр!B667)+0 -> 00:00:00 | B101: =Реестр!AM667 -> 0 | C101: =Реестр!AZ667 -> 0 | D101: =Реестр!AN667 -> 0 | E101: =Реестр!G667 -> 0 | F101: =IF(Реестр!#REF!="I","Ф152",IF(Реестр!#REF!="II","Ф127",IF(Реестр!#REF!="III","Ф127",IF(Реестр!#REF!="IV","Ф228",IF(Реестр!#REF!="V","Ф127",""))))) ->  | G101: =Реестр!J667 -> 0 | H101: 0
A102: =(Реестр!B668)+0 -> 00:00:00 | B102: =Реестр!AM668 -> 0 | C102: =Реестр!AZ668 -> 0 | D102: =Реестр!AN668 -> 0 | E102: =Реестр!G668 -> 0 | F102: =IF(Реестр!#REF!="I","Ф152",IF(Реестр!#REF!="II","Ф127",IF(Реестр!#REF!="III","Ф127",IF(Реестр!#REF!="IV","Ф228",IF(Реестр!#REF!="V","Ф127",""))))) ->  | G102: =Реестр!J668 -> 0 | H102: 0
A103: =(Реестр!B669)+0 -> 00:00:00 | B103: =Реестр!AM669 -> 0 | C103: =Реестр!AZ669 -> 0 | D103: =Реестр!AN669 -> 0 | E103: =Реестр!G669 -> 0 | F103: =IF(Реестр!#REF!="I","Ф152",IF(Реестр!#REF!="II","Ф127",IF(Реестр!#REF!="III","Ф127",IF(Реестр!#REF!="IV","Ф228",IF(Реестр!#REF!="V","Ф127",""))))) ->  | G103: =Реестр!J669 -> 0 | H103: 0
A104: =(Реестр!B670)+0 -> 00:00:00 | B104: =Реестр!AM670 -> 0 | C104: =Реестр!AZ670 -> 0 | D104: =Реестр!AN670 -> 0 | E104: =Реестр!G670 -> 0 | F104: =IF(Реестр!#REF!="I","Ф152",IF(Реестр!#REF!="II","Ф127",IF(Реестр!#REF!="III","Ф127",IF(Реестр!#REF!="IV","Ф228",IF(Реестр!#REF!="V","Ф127",""))))) ->  | G104: =Реестр!J670 -> 0 | H104: 0
A105: =(Реестр!B671)+0 -> 00:00:00 | B105: =Реестр!AM671 -> 0 | C105: =Реестр!AZ671 -> 0 | D105: =Реестр!AN671 -> 0 | E105: =Реестр!G671 -> 0 | F105: =IF(Реестр!#REF!="I","Ф152",IF(Реестр!#REF!="II","Ф127",IF(Реестр!#REF!="III","Ф127",IF(Реестр!#REF!="IV","Ф228",IF(Реестр!#REF!="V","Ф127",""))))) ->  | G105: =Реестр!J671 -> 0 | H105: 0
A106: =(Реестр!B672)+0 -> 00:00:00 | B106: =Реестр!AM672 -> 0 | C106: =Реестр!AZ672 -> 0 | D106: =Реестр!AN672 -> 0 | E106: =Реестр!G672 -> 0 | F106: =IF(Реестр!#REF!="I","Ф152",IF(Реестр!#REF!="II","Ф127",IF(Реестр!#REF!="III","Ф127",IF(Реестр!#REF!="IV","Ф228",IF(Реестр!#REF!="V","Ф127",""))))) ->  | G106: =Реестр!J672 -> 0 | H106: 0
A107: =(Реестр!B673)+0 -> 00:00:00 | B107: =Реестр!AM673 -> 0 | C107: =Реестр!AZ673 -> 0 | D107: =Реестр!AN673 -> 0 | E107: =Реестр!G673 -> 0 | F107: =IF(Реестр!#REF!="I","Ф152",IF(Реестр!#REF!="II","Ф127",IF(Реестр!#REF!="III","Ф127",IF(Реестр!#REF!="IV","Ф228",IF(Реестр!#REF!="V","Ф127",""))))) ->  | G107: =Реестр!J673 -> 0 | H107: 0
A108: =(Реестр!B674)+0 -> 00:00:00 | B108: =Реестр!AM674 -> 0 | C108: =Реестр!AZ674 -> 0 | D108: =Реестр!AN674 -> 0 | E108: =Реестр!G674 -> 0 | F108: =IF(Реестр!#REF!="I","Ф152",IF(Реестр!#REF!="II","Ф127",IF(Реестр!#REF!="III","Ф127",IF(Реестр!#REF!="IV","Ф228",IF(Реестр!#REF!="V","Ф127",""))))) ->  | G108: =Реестр!J674 -> 0 | H108: 0
A109: =(Реестр!B675)+0 -> 00:00:00 | B109: =Реестр!AM675 -> 0 | C109: =Реестр!AZ675 -> 0 | D109: =Реестр!AN675 -> 0 | E109: =Реестр!G675 -> 0 | F109: =IF(Реестр!#REF!="I","Ф152",IF(Реестр!#REF!="II","Ф127",IF(Реестр!#REF!="III","Ф127",IF(Реестр!#REF!="IV","Ф228",IF(Реестр!#REF!="V","Ф127",""))))) ->  | G109: =Реестр!J675 -> 0 | H109: 0
A110: =(Реестр!B676)+0 -> 00:00:00 | B110: =Реестр!AM676 -> 0 | C110: =Реестр!AZ676 -> 0 | D110: =Реестр!AN676 -> 0 | E110: =Реестр!G676 -> 0 | F110: =IF(Реестр!#REF!="I","Ф152",IF(Реестр!#REF!="II","Ф127",IF(Реестр!#REF!="III","Ф127",IF(Реестр!#REF!="IV","Ф228",IF(Реестр!#REF!="V","Ф127",""))))) ->  | G110: =Реестр!J676 -> 0 | H110: 0
A111: =(Реестр!B677)+0 -> 00:00:00 | B111: =Реестр!AM677 -> 0 | C111: =Реестр!AZ677 -> 0 | D111: =Реестр!AN677 -> 0 | E111: =Реестр!G677 -> 0 | F111: =IF(Реестр!#REF!="I","Ф152",IF(Реестр!#REF!="II","Ф127",IF(Реестр!#REF!="III","Ф127",IF(Реестр!#REF!="IV","Ф228",IF(Реестр!#REF!="V","Ф127",""))))) ->  | G111: =Реестр!J677 -> 0 | H111: 0
A112: =(Реестр!B678)+0 -> 00:00:00 | B112: =Реестр!AM678 -> 0 | C112: =Реестр!AZ678 -> 0 | D112: =Реестр!AN678 -> 0 | E112: =Реестр!G678 -> 0 | F112: =IF(Реестр!#REF!="I","Ф152",IF(Реестр!#REF!="II","Ф127",IF(Реестр!#REF!="III","Ф127",IF(Реестр!#REF!="IV","Ф228",IF(Реестр!#REF!="V","Ф127",""))))) ->  | G112: =Реестр!J678 -> 0 | H112: 0
A113: =(Реестр!B679)+0 -> 00:00:00 | B113: =Реестр!AM679 -> 0 | C113: =Реестр!AZ679 -> 0 | D113: =Реестр!AN679 -> 0 | E113: =Реестр!G679 -> 0 | F113: =IF(Реестр!#REF!="I","Ф152",IF(Реестр!#REF!="II","Ф127",IF(Реестр!#REF!="III","Ф127",IF(Реестр!#REF!="IV","Ф228",IF(Реестр!#REF!="V","Ф127",""))))) ->  | G113: =Реестр!J679 -> 0 | H113: 0
A114: =(Реестр!B680)+0 -> 00:00:00 | B114: =Реестр!AM680 -> 0 | C114: =Реестр!AZ680 -> 0 | D114: =Реестр!AN680 -> 0 | E114: =Реестр!G680 -> 0 | F114: =IF(Реестр!#REF!="I","Ф152",IF(Реестр!#REF!="II","Ф127",IF(Реестр!#REF!="III","Ф127",IF(Реестр!#REF!="IV","Ф228",IF(Реестр!#REF!="V","Ф127",""))))) ->  | G114: =Реестр!J680 -> 0 | H114: 0
A115: =(Реестр!B681)+0 -> 00:00:00 | B115: =Реестр!AM681 -> 0 | C115: =Реестр!AZ681 -> 0 | D115: =Реестр!AN681 -> 0 | E115: =Реестр!G681 -> 0 | F115: =IF(Реестр!#REF!="I","Ф152",IF(Реестр!#REF!="II","Ф127",IF(Реестр!#REF!="III","Ф127",IF(Реестр!#REF!="IV","Ф228",IF(Реестр!#REF!="V","Ф127",""))))) ->  | G115: =Реестр!J681 -> 0 | H115: 0
A116: =(Реестр!B682)+0 -> 00:00:00 | B116: =Реестр!AM682 -> 0 | C116: =Реестр!AZ682 -> 0 | D116: =Реестр!AN682 -> 0 | E116: =Реестр!G682 -> 0 | F116: =IF(Реестр!#REF!="I","Ф152",IF(Реестр!#REF!="II","Ф127",IF(Реестр!#REF!="III","Ф127",IF(Реестр!#REF!="IV","Ф228",IF(Реестр!#REF!="V","Ф127",""))))) ->  | G116: =Реестр!J682 -> 0 | H116: 0
A117: =(Реестр!B683)+0 -> 00:00:00 | B117: =Реестр!AM683 -> 0 | C117: =Реестр!AZ683 -> 0 | D117: =Реестр!AN683 -> 0 | E117: =Реестр!G683 -> 0 | F117: =IF(Реестр!#REF!="I","Ф152",IF(Реестр!#REF!="II","Ф127",IF(Реестр!#REF!="III","Ф127",IF(Реестр!#REF!="IV","Ф228",IF(Реестр!#REF!="V","Ф127",""))))) ->  | G117: =Реестр!J683 -> 0 | H117: 0
A118: =(Реестр!B684)+0 -> 00:00:00 | B118: =Реестр!AM684 -> 0 | C118: =Реестр!AZ684 -> 0 | D118: =Реестр!AN684 -> 0 | E118: =Реестр!G684 -> 0 | F118: =IF(Реестр!#REF!="I","Ф152",IF(Реестр!#REF!="II","Ф127",IF(Реестр!#REF!="III","Ф127",IF(Реестр!#REF!="IV","Ф228",IF(Реестр!#REF!="V","Ф127",""))))) ->  | G118: =Реестр!J684 -> 0 | H118: 0
A119: =(Реестр!B685)+0 -> 00:00:00 | B119: =Реестр!AM685 -> 0 | C119: =Реестр!AZ685 -> 0 | D119: =Реестр!AN685 -> 0 | E119: =Реестр!G685 -> 0 | F119: =IF(Реестр!#REF!="I","Ф152",IF(Реестр!#REF!="II","Ф127",IF(Реестр!#REF!="III","Ф127",IF(Реестр!#REF!="IV","Ф228",IF(Реестр!#REF!="V","Ф127",""))))) ->  | G119: =Реестр!J685 -> 0 | H119: 0
A120: =(Реестр!B686)+0 -> 00:00:00 | B120: =Реестр!AM686 -> 0 | C120: =Реестр!AZ686 -> 0 | D120: =Реестр!AN686 -> 0 | E120: =Реестр!G686 -> 0 | F120: =IF(Реестр!#REF!="I","Ф152",IF(Реестр!#REF!="II","Ф127",IF(Реестр!#REF!="III","Ф127",IF(Реестр!#REF!="IV","Ф228",IF(Реестр!#REF!="V","Ф127",""))))) ->  | G120: =Реестр!J686 -> 0 | H120: 0
A121: =(Реестр!B687)+0 -> 00:00:00 | B121: =Реестр!AM687 -> 0 | C121: =Реестр!AZ687 -> 0 | D121: =Реестр!AN687 -> 0 | E121: =Реестр!G687 -> 0 | F121: =IF(Реестр!#REF!="I","Ф152",IF(Реестр!#REF!="II","Ф127",IF(Реестр!#REF!="III","Ф127",IF(Реестр!#REF!="IV","Ф228",IF(Реестр!#REF!="V","Ф127",""))))) ->  | G121: =Реестр!J687 -> 0 | H121: 0
A122: =(Реестр!B688)+0 -> 00:00:00 | B122: =Реестр!AM688 -> 0 | C122: =Реестр!AZ688 -> 0 | D122: =Реестр!AN688 -> 0 | E122: =Реестр!G688 -> 0 | F122: =IF(Реестр!#REF!="I","Ф152",IF(Реестр!#REF!="II","Ф127",IF(Реестр!#REF!="III","Ф127",IF(Реестр!#REF!="IV","Ф228",IF(Реестр!#REF!="V","Ф127",""))))) ->  | G122: =Реестр!J688 -> 0 | H122: 0
A123: =(Реестр!B689)+0 -> 00:00:00 | B123: =Реестр!AM689 -> 0 | C123: =Реестр!AZ689 -> 0 | D123: =Реестр!AN689 -> 0 | E123: =Реестр!G689 -> 0 | F123: =IF(Реестр!#REF!="I","Ф152",IF(Реестр!#REF!="II","Ф127",IF(Реестр!#REF!="III","Ф127",IF(Реестр!#REF!="IV","Ф228",IF(Реестр!#REF!="V","Ф127",""))))) ->  | G123: =Реестр!J689 -> 0 | H123: 0
A124: =(Реестр!B690)+0 -> 00:00:00 | B124: =Реестр!AM690 -> 0 | C124: =Реестр!AZ690 -> 0 | D124: =Реестр!AN690 -> 0 | E124: =Реестр!G690 -> 0 | F124: =IF(Реестр!#REF!="I","Ф152",IF(Реестр!#REF!="II","Ф127",IF(Реестр!#REF!="III","Ф127",IF(Реестр!#REF!="IV","Ф228",IF(Реестр!#REF!="V","Ф127",""))))) ->  | G124: =Реестр!J690 -> 0 | H124: 0
A125: =(Реестр!B691)+0 -> 00:00:00 | B125: =Реестр!AM691 -> 0 | C125: =Реестр!AZ691 -> 0 | D125: =Реестр!AN691 -> 0 | E125: =Реестр!G691 -> 0 | F125: =IF(Реестр!#REF!="I","Ф152",IF(Реестр!#REF!="II","Ф127",IF(Реестр!#REF!="III","Ф127",IF(Реестр!#REF!="IV","Ф228",IF(Реестр!#REF!="V","Ф127",""))))) ->  | G125: =Реестр!J691 -> 0 | H125: 0
A126: =(Реестр!B692)+0 -> 00:00:00 | B126: =Реестр!AM692 -> 0 | C126: =Реестр!AZ692 -> 0 | D126: =Реестр!AN692 -> 0 | E126: =Реестр!G692 -> 0 | F126: =IF(Реестр!#REF!="I","Ф152",IF(Реестр!#REF!="II","Ф127",IF(Реестр!#REF!="III","Ф127",IF(Реестр!#REF!="IV","Ф228",IF(Реестр!#REF!="V","Ф127",""))))) ->  | G126: =Реестр!J692 -> 0 | H126: 0
A127: =(Реестр!B693)+0 -> 00:00:00 | B127: =Реестр!AM693 -> 0 | C127: =Реестр!AZ693 -> 0 | D127: =Реестр!AN693 -> 0 | E127: =Реестр!G693 -> 0 | F127: =IF(Реестр!#REF!="I","Ф152",IF(Реестр!#REF!="II","Ф127",IF(Реестр!#REF!="III","Ф127",IF(Реестр!#REF!="IV","Ф228",IF(Реестр!#REF!="V","Ф127",""))))) ->  | G127: =Реестр!J693 -> 0 | H127: 0
A128: =(Реестр!B694)+0 -> 00:00:00 | B128: =Реестр!AM694 -> 0 | C128: =Реестр!AZ694 -> 0 | D128: =Реестр!AN694 -> 0 | E128: =Реестр!G694 -> 0 | F128: =IF(Реестр!#REF!="I","Ф152",IF(Реестр!#REF!="II","Ф127",IF(Реестр!#REF!="III","Ф127",IF(Реестр!#REF!="IV","Ф228",IF(Реестр!#REF!="V","Ф127",""))))) ->  | G128: =Реестр!J694 -> 0 | H128: 0
A129: =(Реестр!B695)+0 -> 00:00:00 | B129: =Реестр!AM695 -> 0 | C129: =Реестр!AZ695 -> 0 | D129: =Реестр!AN695 -> 0 | E129: =Реестр!G695 -> 0 | F129: =IF(Реестр!#REF!="I","Ф152",IF(Реестр!#REF!="II","Ф127",IF(Реестр!#REF!="III","Ф127",IF(Реестр!#REF!="IV","Ф228",IF(Реестр!#REF!="V","Ф127",""))))) ->  | G129: =Реестр!J695 -> 0 | H129: 0
A130: =(Реестр!B696)+0 -> 00:00:00 | B130: =Реестр!AM696 -> 0 | C130: =Реестр!AZ696 -> 0 | D130: =Реестр!AN696 -> 0 | E130: =Реестр!G696 -> 0 | F130: =IF(Реестр!#REF!="I","Ф152",IF(Реестр!#REF!="II","Ф127",IF(Реестр!#REF!="III","Ф127",IF(Реестр!#REF!="IV","Ф228",IF(Реестр!#REF!="V","Ф127",""))))) ->  | G130: =Реестр!J696 -> 0 | H130: 0
A131: =(Реестр!B697)+0 -> 00:00:00 | B131: =Реестр!AM697 -> 0 | C131: =Реестр!AZ697 -> 0 | D131: =Реестр!AN697 -> 0 | E131: =Реестр!G697 -> 0 | F131: =IF(Реестр!#REF!="I","Ф152",IF(Реестр!#REF!="II","Ф127",IF(Реестр!#REF!="III","Ф127",IF(Реестр!#REF!="IV","Ф228",IF(Реестр!#REF!="V","Ф127",""))))) ->  | G131: =Реестр!J697 -> 0 | H131: 0
A132: =(Реестр!B698)+0 -> 00:00:00 | B132: =Реестр!AM698 -> 0 | C132: =Реестр!AZ698 -> 0 | D132: =Реестр!AN698 -> 0 | E132: =Реестр!G698 -> 0 | F132: =IF(Реестр!#REF!="I","Ф152",IF(Реестр!#REF!="II","Ф127",IF(Реестр!#REF!="III","Ф127",IF(Реестр!#REF!="IV","Ф228",IF(Реестр!#REF!="V","Ф127",""))))) ->  | G132: =Реестр!J698 -> 0 | H132: 0
A133: =(Реестр!B699)+0 -> 00:00:00 | B133: =Реестр!AM699 -> 0 | C133: =Реестр!AZ699 -> 0 | D133: =Реестр!AN699 -> 0 | E133: =Реестр!G699 -> 0 | F133: =IF(Реестр!#REF!="I","Ф152",IF(Реестр!#REF!="II","Ф127",IF(Реестр!#REF!="III","Ф127",IF(Реестр!#REF!="IV","Ф228",IF(Реестр!#REF!="V","Ф127",""))))) ->  | G133: =Реестр!J699 -> 0 | H133: 0
A134: =(Реестр!B700)+0 -> 00:00:00 | B134: =Реестр!AM700 -> 0 | C134: =Реестр!AZ700 -> 0 | D134: =Реестр!AN700 -> 0 | E134: =Реестр!G700 -> 0 | F134: =IF(Реестр!#REF!="I","Ф152",IF(Реестр!#REF!="II","Ф127",IF(Реестр!#REF!="III","Ф127",IF(Реестр!#REF!="IV","Ф228",IF(Реестр!#REF!="V","Ф127",""))))) ->  | G134: =Реестр!J700 -> 0 | H134: 0
A135: =(Реестр!B701)+0 -> 00:00:00 | B135: =Реестр!AM701 -> 0 | C135: =Реестр!AZ701 -> 0 | D135: =Реестр!AN701 -> 0 | E135: =Реестр!G701 -> 0 | F135: =IF(Реестр!#REF!="I","Ф152",IF(Реестр!#REF!="II","Ф127",IF(Реестр!#REF!="III","Ф127",IF(Реестр!#REF!="IV","Ф228",IF(Реестр!#REF!="V","Ф127",""))))) ->  | G135: =Реестр!J701 -> 0 | H135: 0
A136: =(Реестр!B702)+0 -> 00:00:00 | B136: =Реестр!AM702 -> 0 | C136: =Реестр!AZ702 -> 0 | D136: =Реестр!AN702 -> 0 | E136: =Реестр!G702 -> 0 | F136: =IF(Реестр!#REF!="I","Ф152",IF(Реестр!#REF!="II","Ф127",IF(Реестр!#REF!="III","Ф127",IF(Реестр!#REF!="IV","Ф228",IF(Реестр!#REF!="V","Ф127",""))))) ->  | G136: =Реестр!J702 -> 0 | H136: 0
A137: =(Реестр!B703)+0 -> 00:00:00 | B137: =Реестр!AM703 -> 0 | C137: =Реестр!AZ703 -> 0 | D137: =Реестр!AN703 -> 0 | E137: =Реестр!G703 -> 0 | F137: =IF(Реестр!#REF!="I","Ф152",IF(Реестр!#REF!="II","Ф127",IF(Реестр!#REF!="III","Ф127",IF(Реестр!#REF!="IV","Ф228",IF(Реестр!#REF!="V","Ф127",""))))) ->  | G137: =Реестр!J703 -> 0 | H137: =E137*G137 -> 0
A138: =(Реестр!B704)+0 -> 00:00:00 | B138: =Реестр!AM704 -> 0 | C138: =Реестр!AZ704 -> 0 | D138: =Реестр!AN704 -> 0 | E138: =Реестр!G704 -> 0 | F138: =IF(Реестр!#REF!="I","Ф152",IF(Реестр!#REF!="II","Ф127",IF(Реестр!#REF!="III","Ф127",IF(Реестр!#REF!="IV","Ф228",IF(Реестр!#REF!="V","Ф127",""))))) ->  | G138: =Реестр!J704 -> 0 | H138: 0
A139: =(Реестр!B705)+0 -> 00:00:00 | B139: =Реестр!AM705 -> 0 | C139: =Реестр!AZ705 -> 0 | D139: =Реестр!AN705 -> 0 | E139: =Реестр!G705 -> 0 | F139: =IF(Реестр!#REF!="I","Ф152",IF(Реестр!#REF!="II","Ф127",IF(Реестр!#REF!="III","Ф127",IF(Реестр!#REF!="IV","Ф228",IF(Реестр!#REF!="V","Ф127",""))))) ->  | G139: =Реестр!J705 -> 0 | H139: 0
A140: =(Реестр!B706)+0 -> 00:00:00 | B140: =Реестр!AM706 -> 0 | C140: =Реестр!AZ706 -> 0 | D140: =Реестр!AN706 -> 0 | E140: =Реестр!G706 -> 0 | F140: =IF(Реестр!#REF!="I","Ф152",IF(Реестр!#REF!="II","Ф127",IF(Реестр!#REF!="III","Ф127",IF(Реестр!#REF!="IV","Ф228",IF(Реестр!#REF!="V","Ф127",""))))) ->  | G140: =Реестр!J706 -> 0 | H140: 0
A141: =(Реестр!B707)+0 -> 00:00:00 | B141: =Реестр!AM707 -> 0 | C141: =Реестр!AZ707 -> 0 | D141: =Реестр!AN707 -> 0 | E141: =Реестр!G707 -> 0 | F141: =IF(Реестр!#REF!="I","Ф152",IF(Реестр!#REF!="II","Ф127",IF(Реестр!#REF!="III","Ф127",IF(Реестр!#REF!="IV","Ф228",IF(Реестр!#REF!="V","Ф127",""))))) ->  | G141: =Реестр!J707 -> 0 | H141: 0
A142: =(Реестр!B708)+0 -> 00:00:00 | B142: =Реестр!AM708 -> 0 | C142: =Реестр!AZ708 -> 0 | D142: =Реестр!AN708 -> 0 | E142: =Реестр!G708 -> 0 | F142: =IF(Реестр!#REF!="I","Ф152",IF(Реестр!#REF!="II","Ф127",IF(Реестр!#REF!="III","Ф127",IF(Реестр!#REF!="IV","Ф228",IF(Реестр!#REF!="V","Ф127",""))))) ->  | G142: =Реестр!J708 -> 0 | H142: 0
A143: =(Реестр!B709)+0 -> 00:00:00 | B143: =Реестр!AM709 -> 0 | C143: =Реестр!AZ709 -> 0 | D143: =Реестр!AN709 -> 0 | E143: =Реестр!G709 -> 0 | F143: =IF(Реестр!#REF!="I","Ф152",IF(Реестр!#REF!="II","Ф127",IF(Реестр!#REF!="III","Ф127",IF(Реестр!#REF!="IV","Ф228",IF(Реестр!#REF!="V","Ф127",""))))) ->  | G143: =Реестр!J709 -> 0 | H143: 0
A144: =(Реестр!B710)+0 -> 00:00:00 | B144: =Реестр!AM710 -> 0 | C144: =Реестр!AZ710 -> 0 | D144: =Реестр!AN710 -> 0 | E144: =Реестр!G710 -> 0 | F144: =IF(Реестр!#REF!="I","Ф152",IF(Реестр!#REF!="II","Ф127",IF(Реестр!#REF!="III","Ф127",IF(Реестр!#REF!="IV","Ф228",IF(Реестр!#REF!="V","Ф127",""))))) ->  | G144: =Реестр!J710 -> 0 | H144: 0
A145: =(Реестр!B711)+0 -> 00:00:00 | B145: =Реестр!AM711 -> 0 | C145: =Реестр!AZ711 -> 0 | D145: =Реестр!AN711 -> 0 | E145: =Реестр!G711 -> 0 | F145: =IF(Реестр!#REF!="I","Ф152",IF(Реестр!#REF!="II","Ф127",IF(Реестр!#REF!="III","Ф127",IF(Реестр!#REF!="IV","Ф228",IF(Реестр!#REF!="V","Ф127",""))))) ->  | G145: =Реестр!J711 -> 0 | H145: 0
A146: =(Реестр!B712)+0 -> 00:00:00 | B146: =Реестр!AM712 -> 0 | C146: =Реестр!AZ712 -> 0 | D146: =Реестр!AN712 -> 0 | E146: =Реестр!G712 -> 0 | F146: =IF(Реестр!#REF!="I","Ф152",IF(Реестр!#REF!="II","Ф127",IF(Реестр!#REF!="III","Ф127",IF(Реестр!#REF!="IV","Ф228",IF(Реестр!#REF!="V","Ф127",""))))) ->  | G146: =Реестр!J712 -> 0 | H146: 0
A147: =(Реестр!B713)+0 -> 00:00:00 | B147: =Реестр!AM713 -> 0 | C147: =Реестр!AZ713 -> 0 | D147: =Реестр!AN713 -> 0 | E147: =Реестр!G713 -> 0 | F147: =IF(Реестр!#REF!="I","Ф152",IF(Реестр!#REF!="II","Ф127",IF(Реестр!#REF!="III","Ф127",IF(Реестр!#REF!="IV","Ф228",IF(Реестр!#REF!="V","Ф127",""))))) ->  | G147: =Реестр!J713 -> 0 | H147: 0
A148: =(Реестр!B714)+0 -> 00:00:00 | B148: =Реестр!AM714 -> 0 | C148: =Реестр!AZ714 -> 0 | D148: =Реестр!AN714 -> 0 | E148: =Реестр!G714 -> 0 | F148: =IF(Реестр!#REF!="I","Ф152",IF(Реестр!#REF!="II","Ф127",IF(Реестр!#REF!="III","Ф127",IF(Реестр!#REF!="IV","Ф228",IF(Реестр!#REF!="V","Ф127",""))))) ->  | G148: =Реестр!J714 -> 0 | H148: 0
A149: =(Реестр!B715)+0 -> 00:00:00 | B149: =Реестр!AM715 -> 0 | C149: =Реестр!AZ715 -> 0 | D149: =Реестр!AN715 -> 0 | E149: =Реестр!G715 -> 0 | F149: =IF(Реестр!#REF!="I","Ф152",IF(Реестр!#REF!="II","Ф127",IF(Реестр!#REF!="III","Ф127",IF(Реестр!#REF!="IV","Ф228",IF(Реестр!#REF!="V","Ф127",""))))) ->  | G149: =Реестр!J715 -> 0 | H149: 0
A150: =(Реестр!B716)+0 -> 00:00:00 | B150: =Реестр!AM716 -> 0 | C150: =Реестр!AZ716 -> 0 | D150: =Реестр!AN716 -> 0 | E150: =Реестр!G716 -> 0 | F150: =IF(Реестр!#REF!="I","Ф152",IF(Реестр!#REF!="II","Ф127",IF(Реестр!#REF!="III","Ф127",IF(Реестр!#REF!="IV","Ф228",IF(Реестр!#REF!="V","Ф127",""))))) ->  | G150: =Реестр!J716 -> 0 | H150: 0
A151: =(Реестр!B717)+0 -> 00:00:00 | B151: =Реестр!AM717 -> 0 | C151: =Реестр!AZ717 -> 0 | D151: =Реестр!AN717 -> 0 | E151: =Реестр!G717 -> 0 | F151: =IF(Реестр!#REF!="I","Ф152",IF(Реестр!#REF!="II","Ф127",IF(Реестр!#REF!="III","Ф127",IF(Реестр!#REF!="IV","Ф228",IF(Реестр!#REF!="V","Ф127",""))))) ->  | G151: =Реестр!J717 -> 0 | H151: 0
A152: =(Реестр!B718)+0 -> 00:00:00 | B152: =Реестр!AM718 -> 0 | C152: =Реестр!AZ718 -> 0 | D152: =Реестр!AN718 -> 0 | E152: =Реестр!G718 -> 0 | F152: =IF(Реестр!#REF!="I","Ф152",IF(Реестр!#REF!="II","Ф127",IF(Реестр!#REF!="III","Ф127",IF(Реестр!#REF!="IV","Ф228",IF(Реестр!#REF!="V","Ф127",""))))) ->  | G152: =Реестр!J718 -> 0 | H152: 0
A153: =(Реестр!B719)+0 -> 00:00:00 | B153: =Реестр!AM719 -> 0 | C153: =Реестр!AZ719 -> 0 | D153: =Реестр!AN719 -> 0 | E153: =Реестр!G719 -> 0 | F153: =IF(Реестр!#REF!="I","Ф152",IF(Реестр!#REF!="II","Ф127",IF(Реестр!#REF!="III","Ф127",IF(Реестр!#REF!="IV","Ф228",IF(Реестр!#REF!="V","Ф127",""))))) ->  | G153: =Реестр!J719 -> 0 | H153: 0
A154: =(Реестр!B720)+0 -> 00:00:00 | B154: =Реестр!AM720 -> 0 | C154: =Реестр!AZ720 -> 0 | D154: =Реестр!AN720 -> 0 | E154: =Реестр!G720 -> 0 | F154: =IF(Реестр!#REF!="I","Ф152",IF(Реестр!#REF!="II","Ф127",IF(Реестр!#REF!="III","Ф127",IF(Реестр!#REF!="IV","Ф228",IF(Реестр!#REF!="V","Ф127",""))))) ->  | G154: =Реестр!J720 -> 0 | H154: 0
A155: =(Реестр!B721)+0 -> 00:00:00 | B155: =Реестр!AM721 -> 0 | C155: =Реестр!AZ721 -> 0 | D155: =Реестр!AN721 -> 0 | E155: =Реестр!G721 -> 0 | F155: =IF(Реестр!#REF!="I","Ф152",IF(Реестр!#REF!="II","Ф127",IF(Реестр!#REF!="III","Ф127",IF(Реестр!#REF!="IV","Ф228",IF(Реестр!#REF!="V","Ф127",""))))) ->  | G155: =Реестр!J721 -> 0 | H155: 0
A156: =(Реестр!B722)+0 -> 00:00:00 | B156: =Реестр!AM722 -> 0 | C156: =Реестр!AZ722 -> 0 | D156: =Реестр!AN722 -> 0 | E156: =Реестр!G722 -> 0 | F156: =IF(Реестр!#REF!="I","Ф152",IF(Реестр!#REF!="II","Ф127",IF(Реестр!#REF!="III","Ф127",IF(Реестр!#REF!="IV","Ф228",IF(Реестр!#REF!="V","Ф127",""))))) ->  | G156: =Реестр!J722 -> 0 | H156: 0
A157: =(Реестр!B723)+0 -> 00:00:00 | B157: =Реестр!AM723 -> 0 | C157: =Реестр!AZ723 -> 0 | D157: =Реестр!AN723 -> 0 | E157: =Реестр!G723 -> 0 | F157: =IF(Реестр!#REF!="I","Ф152",IF(Реестр!#REF!="II","Ф127",IF(Реестр!#REF!="III","Ф127",IF(Реестр!#REF!="IV","Ф228",IF(Реестр!#REF!="V","Ф127",""))))) ->  | G157: =Реестр!J723 -> 0 | H157: 0
A158: =(Реестр!B724)+0 -> 00:00:00 | B158: =Реестр!AM724 -> 0 | C158: =Реестр!AZ724 -> 0 | D158: =Реестр!AN724 -> 0 | E158: =Реестр!G724 -> 0 | F158: =IF(Реестр!#REF!="I","Ф152",IF(Реестр!#REF!="II","Ф127",IF(Реестр!#REF!="III","Ф127",IF(Реестр!#REF!="IV","Ф228",IF(Реестр!#REF!="V","Ф127",""))))) ->  | G158: =Реестр!J724 -> 0 | H158: 0
A159: =(Реестр!B725)+0 -> 00:00:00 | B159: =Реестр!AM725 -> 0 | C159: =Реестр!AZ725 -> 0 | D159: =Реестр!AN725 -> 0 | E159: =Реестр!G725 -> 0 | F159: =IF(Реестр!#REF!="I","Ф152",IF(Реестр!#REF!="II","Ф127",IF(Реестр!#REF!="III","Ф127",IF(Реестр!#REF!="IV","Ф228",IF(Реестр!#REF!="V","Ф127",""))))) ->  | G159: =Реестр!J725 -> 0 | H159: 0
A160: =(Реестр!B726)+0 -> 00:00:00 | B160: =Реестр!AM726 -> 0 | C160: =Реестр!AZ726 -> 0 | D160: =Реестр!AN726 -> 0 | E160: =Реестр!G726 -> 0 | F160: =IF(Реестр!#REF!="I","Ф152",IF(Реестр!#REF!="II","Ф127",IF(Реестр!#REF!="III","Ф127",IF(Реестр!#REF!="IV","Ф228",IF(Реестр!#REF!="V","Ф127",""))))) ->  | G160: =Реестр!J726 -> 0 | H160: 0
A161: =(Реестр!B727)+0 -> 00:00:00 | B161: =Реестр!AM727 -> 0 | C161: =Реестр!AZ727 -> 0 | D161: =Реестр!AN727 -> 0 | E161: =Реестр!G727 -> 0 | F161: =IF(Реестр!#REF!="I","Ф152",IF(Реестр!#REF!="II","Ф127",IF(Реестр!#REF!="III","Ф127",IF(Реестр!#REF!="IV","Ф228",IF(Реестр!#REF!="V","Ф127",""))))) ->  | G161: =Реестр!J727 -> 0 | H161: 0
A162: =(Реестр!B728)+0 -> 00:00:00 | B162: =Реестр!AM728 -> 0 | C162: =Реестр!AZ728 -> 0 | D162: =Реестр!AN728 -> 0 | E162: =Реестр!G728 -> 0 | F162: =IF(Реестр!#REF!="I","Ф152",IF(Реестр!#REF!="II","Ф127",IF(Реестр!#REF!="III","Ф127",IF(Реестр!#REF!="IV","Ф228",IF(Реестр!#REF!="V","Ф127",""))))) ->  | G162: =Реестр!J728 -> 0 | H162: 0
A163: =(Реестр!B729)+0 -> 00:00:00 | B163: =Реестр!AM729 -> 0 | C163: =Реестр!AZ729 -> 0 | D163: =Реестр!AN729 -> 0 | E163: =Реестр!G729 -> 0 | F163: =IF(Реестр!#REF!="I","Ф152",IF(Реестр!#REF!="II","Ф127",IF(Реестр!#REF!="III","Ф127",IF(Реестр!#REF!="IV","Ф228",IF(Реестр!#REF!="V","Ф127",""))))) ->  | G163: =Реестр!J729 -> 0 | H163: 0
A164: =(Реестр!B730)+0 -> 00:00:00 | B164: =Реестр!AM730 -> 0 | C164: =Реестр!AZ730 -> 0 | D164: =Реестр!AN730 -> 0 | E164: =Реестр!G730 -> 0 | F164: =IF(Реестр!#REF!="I","Ф152",IF(Реестр!#REF!="II","Ф127",IF(Реестр!#REF!="III","Ф127",IF(Реестр!#REF!="IV","Ф228",IF(Реестр!#REF!="V","Ф127",""))))) ->  | G164: =Реестр!J730 -> 0 | H164: 0
A165: =(Реестр!B731)+0 -> 00:00:00 | B165: =Реестр!AM731 -> 0 | C165: =Реестр!AZ731 -> 0 | D165: =Реестр!AN731 -> 0 | E165: =Реестр!G731 -> 0 | F165: =IF(Реестр!#REF!="I","Ф152",IF(Реестр!#REF!="II","Ф127",IF(Реестр!#REF!="III","Ф127",IF(Реестр!#REF!="IV","Ф228",IF(Реестр!#REF!="V","Ф127",""))))) ->  | G165: =Реестр!J731 -> 0 | H165: 0
A166: =(Реестр!B732)+0 -> 00:00:00 | B166: =Реестр!AM732 -> 0 | C166: =Реестр!AZ732 -> 0 | D166: =Реестр!AN732 -> 0 | E166: =Реестр!G732 -> 0 | F166: =IF(Реестр!#REF!="I","Ф152",IF(Реестр!#REF!="II","Ф127",IF(Реестр!#REF!="III","Ф127",IF(Реестр!#REF!="IV","Ф228",IF(Реестр!#REF!="V","Ф127",""))))) ->  | G166: =Реестр!J732 -> 0 | H166: 0
A167: =(Реестр!B733)+0 -> 00:00:00 | B167: =Реестр!AM733 -> 0 | C167: =Реестр!AZ733 -> 0 | D167: =Реестр!AN733 -> 0 | E167: =Реестр!G733 -> 0 | F167: =IF(Реестр!#REF!="I","Ф152",IF(Реестр!#REF!="II","Ф127",IF(Реестр!#REF!="III","Ф127",IF(Реестр!#REF!="IV","Ф228",IF(Реестр!#REF!="V","Ф127",""))))) ->  | G167: =Реестр!J733 -> 0 | H167: 0
A168: =(Реестр!B734)+0 -> 00:00:00 | B168: =Реестр!AM734 -> 0 | C168: =Реестр!AZ734 -> 0 | D168: =Реестр!AN734 -> 0 | E168: =Реестр!G734 -> 0 | F168: =IF(Реестр!#REF!="I","Ф152",IF(Реестр!#REF!="II","Ф127",IF(Реестр!#REF!="III","Ф127",IF(Реестр!#REF!="IV","Ф228",IF(Реестр!#REF!="V","Ф127",""))))) ->  | G168: =Реестр!J734 -> 0 | H168: 0
A169: =(Реестр!B735)+0 -> 00:00:00 | B169: =Реестр!AM735 -> 0 | C169: =Реестр!AZ735 -> 0 | D169: =Реестр!AN735 -> 0 | E169: =Реестр!G735 -> 0 | F169: =IF(Реестр!#REF!="I","Ф152",IF(Реестр!#REF!="II","Ф127",IF(Реестр!#REF!="III","Ф127",IF(Реестр!#REF!="IV","Ф228",IF(Реестр!#REF!="V","Ф127",""))))) ->  | G169: =Реестр!J735 -> 0 | H169: 0
A170: =(Реестр!B736)+0 -> 00:00:00 | B170: =Реестр!AM736 -> 0 | C170: =Реестр!AZ736 -> 0 | D170: =Реестр!AN736 -> 0 | E170: =Реестр!G736 -> 0 | F170: =IF(Реестр!#REF!="I","Ф152",IF(Реестр!#REF!="II","Ф127",IF(Реестр!#REF!="III","Ф127",IF(Реестр!#REF!="IV","Ф228",IF(Реестр!#REF!="V","Ф127",""))))) ->  | G170: =Реестр!J736 -> 0 | H170: 0
A171: =(Реестр!B737)+0 -> 00:00:00 | B171: =Реестр!AM737 -> 0 | C171: =Реестр!AZ737 -> 0 | D171: =Реестр!AN737 -> 0 | E171: =Реестр!G737 -> 0 | F171: =IF(Реестр!#REF!="I","Ф152",IF(Реестр!#REF!="II","Ф127",IF(Реестр!#REF!="III","Ф127",IF(Реестр!#REF!="IV","Ф228",IF(Реестр!#REF!="V","Ф127",""))))) ->  | G171: =Реестр!J737 -> 0 | H171: 0
A172: =(Реестр!B738)+0 -> 00:00:00 | B172: =Реестр!AM738 -> 0 | C172: =Реестр!AZ738 -> 0 | D172: =Реестр!AN738 -> 0 | E172: =Реестр!G738 -> 0 | F172: =IF(Реестр!#REF!="I","Ф152",IF(Реестр!#REF!="II","Ф127",IF(Реестр!#REF!="III","Ф127",IF(Реестр!#REF!="IV","Ф228",IF(Реестр!#REF!="V","Ф127",""))))) ->  | G172: =Реестр!J738 -> 0 | H172: 0
A173: =(Реестр!B739)+0 -> 00:00:00 | B173: =Реестр!AM739 -> 0 | C173: =Реестр!AZ739 -> 0 | D173: =Реестр!AN739 -> 0 | E173: =Реестр!G739 -> 0 | F173: =IF(Реестр!#REF!="I","Ф152",IF(Реестр!#REF!="II","Ф127",IF(Реестр!#REF!="III","Ф127",IF(Реестр!#REF!="IV","Ф228",IF(Реестр!#REF!="V","Ф127",""))))) ->  | G173: =Реестр!J739 -> 0 | H173: 0
A174: =(Реестр!B740)+0 -> 00:00:00 | B174: =Реестр!AM740 -> 0 | C174: =Реестр!AZ740 -> 0 | D174: =Реестр!AN740 -> 0 | E174: =Реестр!G740 -> 0 | F174: =IF(Реестр!#REF!="I","Ф152",IF(Реестр!#REF!="II","Ф127",IF(Реестр!#REF!="III","Ф127",IF(Реестр!#REF!="IV","Ф228",IF(Реестр!#REF!="V","Ф127",""))))) ->  | G174: =Реестр!J740 -> 0 | H174: 0
A175: =(Реестр!B741)+0 -> 00:00:00 | B175: =Реестр!AM741 -> 0 | C175: =Реестр!AZ741 -> 0 | D175: =Реестр!AN741 -> 0 | E175: =Реестр!G741 -> 0 | F175: =IF(Реестр!#REF!="I","Ф152",IF(Реестр!#REF!="II","Ф127",IF(Реестр!#REF!="III","Ф127",IF(Реестр!#REF!="IV","Ф228",IF(Реестр!#REF!="V","Ф127",""))))) ->  | G175: =Реестр!J741 -> 0 | H175: 0
A176: =(Реестр!B742)+0 -> 00:00:00 | B176: =Реестр!AM742 -> 0 | C176: =Реестр!AZ742 -> 0 | D176: =Реестр!AN742 -> 0 | E176: =Реестр!G742 -> 0 | F176: =IF(Реестр!#REF!="I","Ф152",IF(Реестр!#REF!="II","Ф127",IF(Реестр!#REF!="III","Ф127",IF(Реестр!#REF!="IV","Ф228",IF(Реестр!#REF!="V","Ф127",""))))) ->  | G176: =Реестр!J742 -> 0 | H176: 0
A177: =(Реестр!B743)+0 -> 00:00:00 | B177: =Реестр!AM743 -> 0 | C177: =Реестр!AZ743 -> 0 | D177: =Реестр!AN743 -> 0 | E177: =Реестр!G743 -> 0 | F177: =IF(Реестр!#REF!="I","Ф152",IF(Реестр!#REF!="II","Ф127",IF(Реестр!#REF!="III","Ф127",IF(Реестр!#REF!="IV","Ф228",IF(Реестр!#REF!="V","Ф127",""))))) ->  | G177: =Реестр!J743 -> 0 | H177: 0
A178: =(Реестр!B744)+0 -> 00:00:00 | B178: =Реестр!AM744 -> 0 | C178: =Реестр!AZ744 -> 0 | D178: =Реестр!AN744 -> 0 | E178: =Реестр!G744 -> 0 | F178: =IF(Реестр!#REF!="I","Ф152",IF(Реестр!#REF!="II","Ф127",IF(Реестр!#REF!="III","Ф127",IF(Реестр!#REF!="IV","Ф228",IF(Реестр!#REF!="V","Ф127",""))))) ->  | G178: =Реестр!J744 -> 0 | H178: 0
A179: =(Реестр!B745)+0 -> 00:00:00 | B179: =Реестр!AM745 -> 0 | C179: =Реестр!AZ745 -> 0 | D179: =Реестр!AN745 -> 0 | E179: =Реестр!G745 -> 0 | F179: =IF(Реестр!#REF!="I","Ф152",IF(Реестр!#REF!="II","Ф127",IF(Реестр!#REF!="III","Ф127",IF(Реестр!#REF!="IV","Ф228",IF(Реестр!#REF!="V","Ф127",""))))) ->  | G179: =Реестр!J745 -> 0 | H179: 0
A180: =(Реестр!B746)+0 -> 00:00:00 | B180: =Реестр!AM746 -> 0 | C180: =Реестр!AZ746 -> 0 | D180: =Реестр!AN746 -> 0 | E180: =Реестр!G746 -> 0 | F180: =IF(Реестр!#REF!="I","Ф152",IF(Реестр!#REF!="II","Ф127",IF(Реестр!#REF!="III","Ф127",IF(Реестр!#REF!="IV","Ф228",IF(Реестр!#REF!="V","Ф127",""))))) ->  | G180: =Реестр!J746 -> 0 | H180: 0
A181: =(Реестр!B747)+0 -> 00:00:00 | B181: =Реестр!AM747 -> 0 | C181: =Реестр!AZ747 -> 0 | D181: =Реестр!AN747 -> 0 | E181: =Реестр!G747 -> 0 | F181: =IF(Реестр!#REF!="I","Ф152",IF(Реестр!#REF!="II","Ф127",IF(Реестр!#REF!="III","Ф127",IF(Реестр!#REF!="IV","Ф228",IF(Реестр!#REF!="V","Ф127",""))))) ->  | G181: =Реестр!J747 -> 0 | H181: 0
A182: =(Реестр!B748)+0 -> 00:00:00 | B182: =Реестр!AM748 -> 0 | C182: =Реестр!AZ748 -> 0 | D182: =Реестр!AN748 -> 0 | E182: =Реестр!G748 -> 0 | F182: =IF(Реестр!#REF!="I","Ф152",IF(Реестр!#REF!="II","Ф127",IF(Реестр!#REF!="III","Ф127",IF(Реестр!#REF!="IV","Ф228",IF(Реестр!#REF!="V","Ф127",""))))) ->  | G182: =Реестр!J748 -> 0 | H182: 0
A183: =(Реестр!B749)+0 -> 00:00:00 | B183: =Реестр!AM749 -> 0 | C183: =Реестр!AZ749 -> 0 | D183: =Реестр!AN749 -> 0 | E183: =Реестр!G749 -> 0 | F183: =IF(Реестр!#REF!="I","Ф152",IF(Реестр!#REF!="II","Ф127",IF(Реестр!#REF!="III","Ф127",IF(Реестр!#REF!="IV","Ф228",IF(Реестр!#REF!="V","Ф127",""))))) ->  | G183: =Реестр!J749 -> 0 | H183: 0
A184: =(Реестр!B750)+0 -> 00:00:00 | B184: =Реестр!AM750 -> 0 | C184: =Реестр!AZ750 -> 0 | D184: =Реестр!AN750 -> 0 | E184: =Реестр!G750 -> 0 | F184: =IF(Реестр!#REF!="I","Ф152",IF(Реестр!#REF!="II","Ф127",IF(Реестр!#REF!="III","Ф127",IF(Реестр!#REF!="IV","Ф228",IF(Реестр!#REF!="V","Ф127",""))))) ->  | G184: =Реестр!J750 -> 0 | H184: 0
A185: =(Реестр!B751)+0 -> 00:00:00 | B185: =Реестр!AM751 -> 0 | C185: =Реестр!AZ751 -> 0 | D185: =Реестр!AN751 -> 0 | E185: =Реестр!G751 -> 0 | F185: =IF(Реестр!#REF!="I","Ф152",IF(Реестр!#REF!="II","Ф127",IF(Реестр!#REF!="III","Ф127",IF(Реестр!#REF!="IV","Ф228",IF(Реестр!#REF!="V","Ф127",""))))) ->  | G185: =Реестр!J751 -> 0 | H185: 0
A186: =(Реестр!B752)+0 -> 00:00:00 | B186: =Реестр!AM752 -> 0 | C186: =Реестр!AZ752 -> 0 | D186: =Реестр!AN752 -> 0 | E186: =Реестр!G752 -> 0 | F186: =IF(Реестр!#REF!="I","Ф152",IF(Реестр!#REF!="II","Ф127",IF(Реестр!#REF!="III","Ф127",IF(Реестр!#REF!="IV","Ф228",IF(Реестр!#REF!="V","Ф127",""))))) ->  | G186: =Реестр!J752 -> 0 | H186: 0
A187: =(Реестр!B753)+0 -> 00:00:00 | B187: =Реестр!AM753 -> 0 | C187: =Реестр!AZ753 -> 0 | D187: =Реестр!AN753 -> 0 | E187: =Реестр!G753 -> 0 | F187: =IF(Реестр!#REF!="I","Ф152",IF(Реестр!#REF!="II","Ф127",IF(Реестр!#REF!="III","Ф127",IF(Реестр!#REF!="IV","Ф228",IF(Реестр!#REF!="V","Ф127",""))))) ->  | G187: =Реестр!J753 -> 0 | H187: 0
A188: =(Реестр!B754)+0 -> 00:00:00 | B188: =Реестр!AM754 -> 0 | C188: =Реестр!AZ754 -> 0 | D188: =Реестр!AN754 -> 0 | E188: =Реестр!G754 -> 0 | F188: =IF(Реестр!#REF!="I","Ф152",IF(Реестр!#REF!="II","Ф127",IF(Реестр!#REF!="III","Ф127",IF(Реестр!#REF!="IV","Ф228",IF(Реестр!#REF!="V","Ф127",""))))) ->  | G188: =Реестр!J754 -> 0 | H188: 0
A189: =(Реестр!B755)+0 -> 00:00:00 | B189: =Реестр!AM755 -> 0 | C189: =Реестр!AZ755 -> 0 | D189: =Реестр!AN755 -> 0 | E189: =Реестр!G755 -> 0 | F189: =IF(Реестр!#REF!="I","Ф152",IF(Реестр!#REF!="II","Ф127",IF(Реестр!#REF!="III","Ф127",IF(Реестр!#REF!="IV","Ф228",IF(Реестр!#REF!="V","Ф127",""))))) ->  | G189: =Реестр!J755 -> 0 | H189: 0
A190: =(Реестр!B756)+0 -> 00:00:00 | B190: =Реестр!AM756 -> 0 | C190: =Реестр!AZ756 -> 0 | D190: =Реестр!AN756 -> 0 | E190: =Реестр!G756 -> 0 | F190: =IF(Реестр!#REF!="I","Ф152",IF(Реестр!#REF!="II","Ф127",IF(Реестр!#REF!="III","Ф127",IF(Реестр!#REF!="IV","Ф228",IF(Реестр!#REF!="V","Ф127",""))))) ->  | G190: =Реестр!J756 -> 0 | H190: 0
A191: =(Реестр!B757)+0 -> 00:00:00 | B191: =Реестр!AM757 -> 0 | C191: =Реестр!AZ757 -> 0 | D191: =Реестр!AN757 -> 0 | E191: =Реестр!G757 -> 0 | F191: =IF(Реестр!#REF!="I","Ф152",IF(Реестр!#REF!="II","Ф127",IF(Реестр!#REF!="III","Ф127",IF(Реестр!#REF!="IV","Ф228",IF(Реестр!#REF!="V","Ф127",""))))) ->  | G191: =Реестр!J757 -> 0 | H191: 0
A192: =(Реестр!B758)+0 -> 00:00:00 | B192: =Реестр!AM758 -> 0 | C192: =Реестр!AZ758 -> 0 | D192: =Реестр!AN758 -> 0 | E192: =Реестр!G758 -> 0 | F192: =IF(Реестр!#REF!="I","Ф152",IF(Реестр!#REF!="II","Ф127",IF(Реестр!#REF!="III","Ф127",IF(Реестр!#REF!="IV","Ф228",IF(Реестр!#REF!="V","Ф127",""))))) ->  | G192: =Реестр!J758 -> 0 | H192: 0
A193: =(Реестр!B759)+0 -> 00:00:00 | B193: =Реестр!AM759 -> 0 | C193: =Реестр!AZ759 -> 0 | D193: =Реестр!AN759 -> 0 | E193: =Реестр!G759 -> 0 | F193: =IF(Реестр!#REF!="I","Ф152",IF(Реестр!#REF!="II","Ф127",IF(Реестр!#REF!="III","Ф127",IF(Реестр!#REF!="IV","Ф228",IF(Реестр!#REF!="V","Ф127",""))))) ->  | G193: =Реестр!J759 -> 0 | H193: 0
A194: =(Реестр!B760)+0 -> 00:00:00 | B194: =Реестр!AM760 -> 0 | C194: =Реестр!AZ760 -> 0 | D194: =Реестр!AN760 -> 0 | E194: =Реестр!G760 -> 0 | F194: =IF(Реестр!#REF!="I","Ф152",IF(Реестр!#REF!="II","Ф127",IF(Реестр!#REF!="III","Ф127",IF(Реестр!#REF!="IV","Ф228",IF(Реестр!#REF!="V","Ф127",""))))) ->  | G194: =Реестр!J760 -> 0 | H194: 0
A195: =(Реестр!B761)+0 -> 00:00:00 | B195: =Реестр!AM761 -> 0 | C195: =Реестр!AZ761 -> 0 | D195: =Реестр!AN761 -> 0 | E195: =Реестр!G761 -> 0 | F195: =IF(Реестр!#REF!="I","Ф152",IF(Реестр!#REF!="II","Ф127",IF(Реестр!#REF!="III","Ф127",IF(Реестр!#REF!="IV","Ф228",IF(Реестр!#REF!="V","Ф127",""))))) ->  | G195: =Реестр!J761 -> 0 | H195: 0
A196: =(Реестр!B762)+0 -> 00:00:00 | B196: =Реестр!AM762 -> 0 | C196: =Реестр!AZ762 -> 0 | D196: =Реестр!AN762 -> 0 | E196: =Реестр!G762 -> 0 | F196: =IF(Реестр!#REF!="I","Ф152",IF(Реестр!#REF!="II","Ф127",IF(Реестр!#REF!="III","Ф127",IF(Реестр!#REF!="IV","Ф228",IF(Реестр!#REF!="V","Ф127",""))))) ->  | G196: =Реестр!J762 -> 0 | H196: 0
A197: =(Реестр!B763)+0 -> 00:00:00 | B197: =Реестр!AM763 -> 0 | C197: =Реестр!AZ763 -> 0 | D197: =Реестр!AN763 -> 0 | E197: =Реестр!G763 -> 0 | F197: =IF(Реестр!#REF!="I","Ф152",IF(Реестр!#REF!="II","Ф127",IF(Реестр!#REF!="III","Ф127",IF(Реестр!#REF!="IV","Ф228",IF(Реестр!#REF!="V","Ф127",""))))) ->  | G197: =Реестр!J763 -> 0 | H197: 0
A198: =(Реестр!B764)+0 -> 00:00:00 | B198: =Реестр!AM764 -> 0 | C198: =Реестр!AZ764 -> 0 | D198: =Реестр!AN764 -> 0 | E198: =Реестр!G764 -> 0 | F198: =IF(Реестр!#REF!="I","Ф152",IF(Реестр!#REF!="II","Ф127",IF(Реестр!#REF!="III","Ф127",IF(Реестр!#REF!="IV","Ф228",IF(Реестр!#REF!="V","Ф127",""))))) ->  | G198: =Реестр!J764 -> 0 | H198: 0
A199: =(Реестр!B765)+0 -> 00:00:00 | B199: =Реестр!AM765 -> 0 | C199: =Реестр!AZ765 -> 0 | D199: =Реестр!AN765 -> 0 | E199: =Реестр!G765 -> 0 | F199: =IF(Реестр!#REF!="I","Ф152",IF(Реестр!#REF!="II","Ф127",IF(Реестр!#REF!="III","Ф127",IF(Реестр!#REF!="IV","Ф228",IF(Реестр!#REF!="V","Ф127",""))))) ->  | G199: =Реестр!J765 -> 0 | H199: 0
A200: =(Реестр!B766)+0 -> 00:00:00 | B200: =Реестр!AM766 -> 0 | C200: =Реестр!AZ766 -> 0 | D200: =Реестр!AN766 -> 0 | E200: =Реестр!G766 -> 0 | F200: =IF(Реестр!#REF!="I","Ф152",IF(Реестр!#REF!="II","Ф127",IF(Реестр!#REF!="III","Ф127",IF(Реестр!#REF!="IV","Ф228",IF(Реестр!#REF!="V","Ф127",""))))) ->  | G200: =Реестр!J766 -> 0 | H200: 0
... 2946 more rows

Sheet Проверка
A1: Проверка: | F1: мес | G1: габ | H1: слож | I1: изг | J1: кол | K1: цена | L1: произ
F2: 2023-10-01 | G2: 380х200 | H2: D | I2: Alk | J2: 3 | K2: 383795 | L2: =J2*K2 -> 1151385
F3: 2023-10-01 | G3: 380х200 | H3: D | I3: Alk | J3: 4 | K3: 441364 | L3: =J3*K3 -> 1765456
A7: =SUMPRODUCT((H2=H2:H3)*J2:J3*K2:K3)/SUMIF(H2:H3,H2,J2:J3) -> 416691.5714
A8: =SUMPRODUCT((H3=H2:H3)*J2:J3*K2:K3)/SUMIF(H2:H3,H3,J2:J3) -> 416691.5714

Sheet Аналитика
E2: Распределение цен на матрицы в рублях (без доставки) по поставщикам и категориям сложности
E3: Сумма по полю средневзвеш | F3: Изготовитель
E4: Дата | F4: FRX | G4: IM | H4: ПрИн | I4: COMES | J4: EXP | K4: Срвзв.цена,руб
E5: окт
E6: 450х260
E7: C | F7: 0 | G7: 0 | H7: 0 | I7: 412996.32 | J7: 412996.32 | K7: 412996.32
E8: D | F8: 0 | G8: 0 | H8: 0 | I8: 0 | J8: 0 | K8: 0
E9: 180х140
E10: C | F10: 0 | G10: 0 | H10: 0 | I10: 0 | J10: 0 | K10: 0
E11: B | F11: 60837 | G11: 0 | H11: 0 | I11: 0 | J11: 0 | K11: 60837
E12: 200х140
E13: C | F13: 0 | G13: 0 | H13: 0 | I13: 126888.6 | J13: 0 | K13: 126888.6
E14: B | F14: 0 | G14: 51566.6 | H14: 0 | I14: 0 | J14: 0 | K14: 51566.6
E15: 230х140
E16: C | F16: 0 | G16: 0 | H16: 0 | I16: 0 | J16: 0 | K16: 0
E17: 280х200
E18: B | F18: 138476.6 | G18: 0 | H18: 0 | I18: 0 | J18: 0 | K18: 138476.6
E19: 380х200
E20: D | F20: 0 | G20: 0 | H20: 412579.152 | I20: 0 | J20: 0 | K20: 412579.152
E21: 230х200
E22: C | F22: 0 | G22: 0 | H22: 208584 | I22: 0 | J22: 0 | K22: 208584
E23: B | F23: 78798.4 | G23: 75322 | H23: 0 | I23: 0 | J23: 0 | K23: 77060.2
E24: Срвзв.цена,руб | F24: 92704 | G24: 63444.3 | H24: 344580.768 | I24: 269942.46 | J24: 412996.32 | K24: 0

Sheet Пл.курс ЕВРО
A1: 2023
A2: Апрель | B2: 88.8295
A3: Май | B3: 86.0776
A4: Июнь | B4: 90.2924
A5: Июль | B5: 100.0181
A6: Август | B6: 104.0649
A7: Сентябрь | B7: 104.9407
A8: Октябрь | B8: 115.88
A9: Ноябрь | B9: 115.88
A10: Декабрь | B10: 115.88
